Workbook

Sheet Display
F2: iShares S&P 500 Value ETF | AB2: =RTD("cqg.rtd", ,"SystemInfo", "Linetime") -> 46247.39402
B5: Exchange Traded Funds Performance | S5: Top 15 Positive Performing Companies
B6: Symbol | C6: Description | H6: Last | I6: NC | J6: %NC | K6: NC/ATR | L6: Open | M6: High | N6: Low | O6: Volume | Q6: Ratio
B7: IVE | C7: =RTD("cqg.rtd", ,"ContractData",B7, "LongDescription",, "T") -> iShares S&P 500 Value ETF | H7: =RTD("cqg.rtd", ,"ContractData",B7, "LastTradeToday",, "T") -> 238.29 | I7: =RTD("cqg.rtd", ,"ContractData",B7, "NetLastTradeToday",, "T") -> 1.69 | J7: =IFERROR(RTD("cqg.rtd", ,"ContractData",B7, "PerCentNetLastTrade",, "T")/100,"") -> 0.007142857143 | K7: =IFERROR(I7/RTD("cqg.rtd",,"StudyData",B7, "ATR", "MaType=Sim,Period=10", "ATR","D","-1","ALL",,,"FALSE","T")/100,"") -> 0.008890057864 | L7: =RTD("cqg.rtd", ,"ContractData",B7, "OPen",, "T") -> 237.28 | M7: =RTD("cqg.rtd", ,"ContractData", B7, "HIgh",, "T") -> 238.29 | N7: =RTD("cqg.rtd", ,"ContractData",B7, "LOw",, "T") -> 237.16 | O7: =RTD("cqg.rtd", ,"ContractData",B7, "T_CVol",, "T") -> 56165.40878 | Q7: =IFERROR(O7/RTD("cqg.rtd",,"StudyData",B7, "MA", "InputChoice=Vol,MAType=Sim,Period=21", "MA","D","-1","all",,,,"T"),"") -> 0.08496780678
B8: GCE | C8: =RTD("cqg.rtd", ,"ContractData",B8, "LongDescription",, "T") -> Gold (Globex), Dec 26 | H8: =RTD("cqg.rtd", ,"ContractData",B8, "LastTradeToday",, "T") -> 4429.8 | I8: =RTD("cqg.rtd", ,"ContractData",B8, "NetLastTradeToday",, "T") -> -37.7 | J8: =IFERROR(RTD("cqg.rtd", ,"ContractData",B8, "PerCentNetLastTrade",, "T")/100,"") -> -0.008438724119 | K8: =IFERROR(I8/RTD("cqg.rtd",,"StudyData",B8, "ATR", "MaType=Sim,Period=10", "ATR","D","-1","ALL",,,"FALSE","T")/100,"") -> -0.003739337433 | L8: =RTD("cqg.rtd", ,"ContractData",B8, "OPen",, "T") -> 4468.8 | M8: =RTD("cqg.rtd", ,"ContractData", B8, "HIgh",, "T") -> 4509.1 | N8: =RTD("cqg.rtd", ,"ContractData",B8, "LOw",, "T") -> 4420.3 | O8: =RTD("cqg.rtd", ,"ContractData",B8, "T_CVol",, "T") -> 89090 | Q8: =IFERROR(O8/RTD("cqg.rtd",,"StudyData",B8, "MA", "InputChoice=Vol,MAType=Sim,Period=21", "MA","D","-1","all",,,,"T"),"") -> 0.4820733413
B9: EP | C9: =RTD("cqg.rtd", ,"ContractData",B9, "LongDescription",, "T") -> E-Mini S&P 500, Sep 26 | H9: =RTD("cqg.rtd", ,"ContractData",B9, "LastTradeToday",, "T") -> 7835.75 | I9: =RTD("cqg.rtd", ,"ContractData",B9, "NetLastTradeToday",, "T") -> 65.25 | J9: =IFERROR(RTD("cqg.rtd", ,"ContractData",B9, "PerCentNetLastTrade",, "T")/100,"") -> 0.008397143041 | K9: =IFERROR(I9/RTD("cqg.rtd",,"StudyData",B9, "ATR", "MaType=Sim,Period=10", "ATR","D","-1","ALL",,,"FALSE","T")/100,"") -> 0.007427433125 | L9: =RTD("cqg.rtd", ,"ContractData",B9, "OPen",, "T") -> 7770 | M9: =RTD("cqg.rtd", ,"ContractData", B9, "HIgh",, "T") -> 7836.75 | N9: =RTD("cqg.rtd", ,"ContractData",B9, "LOw",, "T") -> 7764.25 | O9: =RTD("cqg.rtd", ,"ContractData",B9, "T_CVol",, "T") -> 326079 | Q9: =IFERROR(O9/RTD("cqg.rtd",,"StudyData",B9, "MA", "InputChoice=Vol,MAType=Sim,Period=21", "MA","D","-1","all",,,,"T"),"") -> 0.2318119521
B10: S.IYY | C10: =RTD("cqg.rtd", ,"ContractData",B10, "LongDescription",, "T") -> iShares DJ US Total Market Idx Fd | H10: =RTD("cqg.rtd", ,"ContractData",B10, "LastTradeToday",, "T") -> 189.78 | I10: =RTD("cqg.rtd", ,"ContractData",B10, "NetLastTradeToday",, "T") -> 1.34 | J10: =IFERROR(RTD("cqg.rtd", ,"ContractData",B10, "PerCentNetLastTrade",, "T")/100,"") -> 0.007111016769 | K10: =IFERROR(I10/RTD("cqg.rtd",,"StudyData",B10, "ATR", "MaType=Sim,Period=10", "ATR","D","-1","ALL",,,"FALSE","T")/100,"") -> 0.007432057682 | L10: =RTD("cqg.rtd", ,"ContractData",B10, "OPen",, "T") -> 188.99 | M10: =RTD("cqg.rtd", ,"ContractData", B10, "HIgh",, "T") -> 189.78 | N10: =RTD("cqg.rtd", ,"ContractData",B10, "LOw",, "T") -> 188.99 | O10: =RTD("cqg.rtd", ,"ContractData",B10, "T_CVol",, "T") -> 5667.263377 | Q10: =IFERROR(O10/RTD("cqg.rtd",,"StudyData",B10, "MA", "InputChoice=Vol,MAType=Sim,Period=21", "MA","D","-1","all",,,,"T"),"") -> 0.1654708143
B11: S.XLE | C11: =RTD("cqg.rtd", ,"ContractData",B11, "LongDescription",, "T") -> Energy Select Sector SPDR | H11: =RTD("cqg.rtd", ,"ContractData",B11, "LastTradeToday",, "T") -> 60.72 | I11: =RTD("cqg.rtd", ,"ContractData",B11, "NetLastTradeToday",, "T") -> -0.31 | J11: =IFERROR(RTD("cqg.rtd", ,"ContractData",B11, "PerCentNetLastTrade",, "T")/100,"") -> -0.005079469114 | K11: =IFERROR(I11/RTD("cqg.rtd",,"StudyData",B11, "ATR", "MaType=Sim,Period=10", "ATR","D","-1","ALL",,,"FALSE","T")/100,"") -> -0.00218156228 | L11: =RTD("cqg.rtd", ,"ContractData",B11, "OPen",, "T") -> 60.52 | M11: =RTD("cqg.rtd", ,"ContractData", B11, "HIgh",, "T") -> 60.87 | N11: =RTD("cqg.rtd", ,"ContractData",B11, "LOw",, "T") -> 60.23 | O11: =RTD("cqg.rtd", ,"ContractData",B11, "T_CVol",, "T") -> 6332696.679 | Q11: =IFERROR(O11/RTD("cqg.rtd",,"StudyData",B11, "MA", "InputChoice=Vol,MAType=Sim,Period=21", "MA","D","-1","all",,,,"T"),"") -> 0.2203840383
B12: S.ARTY | C12: =RTD("cqg.rtd", ,"ContractData",B12, "LongDescription",, "T") -> iShares Robotics and Artificial Intelligence ETF | H12: =RTD("cqg.rtd", ,"ContractData",B12, "LastTradeToday",, "T") -> 77.99 | I12: =RTD("cqg.rtd", ,"ContractData",B12, "NetLastTradeToday",, "T") -> 1.96 | J12: =IFERROR(RTD("cqg.rtd", ,"ContractData",B12, "PerCentNetLastTrade",, "T")/100,"") -> 0.02577929765 | K12: =IFERROR(I12/RTD("cqg.rtd",,"StudyData",B12, "ATR", "MaType=Sim,Period=10", "ATR","D","-1","ALL",,,"FALSE","T")/100,"") -> 0.00698005698 | L12: =RTD("cqg.rtd", ,"ContractData",B12, "OPen",, "T") -> 76.35 | M12: =RTD("cqg.rtd", ,"ContractData", B12, "HIgh",, "T") -> 78.05 | N12: =RTD("cqg.rtd", ,"ContractData",B12, "LOw",, "T") -> 76.35 | O12: =RTD("cqg.rtd", ,"ContractData",B12, "T_CVol",, "T") -> 85930.22224 | Q12: =IFERROR(O12/RTD("cqg.rtd",,"StudyData",B12, "MA", "InputChoice=Vol,MAType=Sim,Period=21", "MA","D","-1","all",,,,"T"),"") -> 0.1712461231
B13: S.ARKQ | C13: =RTD("cqg.rtd", ,"ContractData",B13, "LongDescription",, "T") -> ARK Autonomous Technology & Robotics ETF | H13: =RTD("cqg.rtd", ,"ContractData",B13, "LastTradeToday",, "T") -> 130.21 | I13: =RTD("cqg.rtd", ,"ContractData",B13, "NetLastTradeToday",, "T") -> 1.28 | J13: =IFERROR(RTD("cqg.rtd", ,"ContractData",B13, "PerCentNetLastTrade",, "T")/100,"") -> 0.009927867835 | K13: =IFERROR(I13/RTD("cqg.rtd",,"StudyData",B13, "ATR", "MaType=Sim,Period=10", "ATR","D","-1","ALL",,,"FALSE","T")/100,"") -> 0.003512623491 | L13: =RTD("cqg.rtd", ,"ContractData",B13, "OPen",, "T") -> 128.55 | M13: =RTD("cqg.rtd", ,"ContractData", B13, "HIgh",, "T") -> 130.39 | N13: =RTD("cqg.rtd", ,"ContractData",B13, "LOw",, "T") -> 128.55 | O13: =RTD("cqg.rtd", ,"ContractData",B13, "T_CVol",, "T") -> 32392.98191 | Q13: =IFERROR(O13/RTD("cqg.rtd",,"StudyData",B13, "MA", "InputChoice=Vol,MAType=Sim,Period=21", "MA","D","-1","all",,,,"T"),"") -> 0.2258367213
B14: S.ROBO | C14: =RTD("cqg.rtd", ,"ContractData",B14, "LongDescription",, "T") -> Robo-Stox Global Robotics&Automation ETF | H14: =RTD("cqg.rtd", ,"ContractData",B14, "LastTradeToday",, "T") -> 85.06 | I14: =RTD("cqg.rtd", ,"ContractData",B14, "NetLastTradeToday",, "T") -> 0.3 | J14: =IFERROR(RTD("cqg.rtd", ,"ContractData",B14, "PerCentNetLastTrade",, "T")/100,"") -> 0.00353940538 | K14: =IFERROR(I14/RTD("cqg.rtd",,"StudyData",B14, "ATR", "MaType=Sim,Period=10", "ATR","D","-1","ALL",,,"FALSE","T")/100,"") -> 0.001662049861 | L14: =RTD("cqg.rtd", ,"ContractData",B14, "OPen",, "T") -> 84.71 | M14: =RTD("cqg.rtd", ,"ContractData", B14, "HIgh",, "T") -> 85.16 | N14: =RTD("cqg.rtd", ,"ContractData",B14, "LOw",, "T") -> 84.66 | O14: =RTD("cqg.rtd", ,"ContractData",B14, "T_CVol",, "T") -> 137766.1698 | Q14: =IFERROR(O14/RTD("cqg.rtd",,"StudyData",B14, "MA", "InputChoice=Vol,MAType=Sim,Period=21", "MA","D","-1","all",,,,"T"),"") -> 0.9274974873
B15: S.CHAT | C15: =RTD("cqg.rtd", ,"ContractData",B15, "LongDescription",, "T") -> Roundhill Generative AI & Technology ETF | H15: =RTD("cqg.rtd", ,"ContractData",B15, "LastTradeToday",, "T") -> 94.72 | I15: =RTD("cqg.rtd", ,"ContractData",B15, "NetLastTradeToday",, "T") -> 2.03 | J15: =IFERROR(RTD("cqg.rtd", ,"ContractData",B15, "PerCentNetLastTrade",, "T")/100,"") -> 0.02190096019 | K15: =IFERROR(I15/RTD("cqg.rtd",,"StudyData",B15, "ATR", "MaType=Sim,Period=10", "ATR","D","-1","ALL",,,"FALSE","T")/100,"") -> 0.005476126248 | L15: =RTD("cqg.rtd", ,"ContractData",B15, "OPen",, "T") -> 92.7 | M15: =RTD("cqg.rtd", ,"ContractData", B15, "HIgh",, "T") -> 94.79 | N15: =RTD("cqg.rtd", ,"ContractData",B15, "LOw",, "T") -> 92.7 | O15: =RTD("cqg.rtd", ,"ContractData",B15, "T_CVol",, "T") -> 141743.3378 | Q15: =IFERROR(O15/RTD("cqg.rtd",,"StudyData",B15, "MA", "InputChoice=Vol,MAType=Sim,Period=21", "MA","D","-1","all",,,,"T"),"") -> 0.2236597239
B16: S.IETC | C16: =RTD("cqg.rtd", ,"ContractData",B16, "LongDescription",, "T") -> iShares U.S. Tech Independence Focused ETF | H16: =RTD("cqg.rtd", ,"ContractData",B16, "LastTradeToday",, "T") -> 112 | I16: =RTD("cqg.rtd", ,"ContractData",B16, "NetLastTradeToday",, "T") -> 0.6 | J16: =IFERROR(RTD("cqg.rtd", ,"ContractData",B16, "PerCentNetLastTrade",, "T")/100,"") -> 0.005385996409 | K16: =IFERROR(I16/RTD("cqg.rtd",,"StudyData",B16, "ATR", "MaType=Sim,Period=10", "ATR","D","-1","ALL",,,"FALSE","T")/100,"") -> 0.00243902439 | L16: =RTD("cqg.rtd", ,"ContractData",B16, "OPen",, "T") -> 111.35 | M16: =RTD("cqg.rtd", ,"ContractData", B16, "HIgh",, "T") -> 112 | N16: =RTD("cqg.rtd", ,"ContractData",B16, "LOw",, "T") -> 111.35 | O16: =RTD("cqg.rtd", ,"ContractData",B16, "T_CVol",, "T") -> 3156.470036 | Q16: =IFERROR(O16/RTD("cqg.rtd",,"StudyData",B16, "MA", "InputChoice=Vol,MAType=Sim,Period=21", "MA","D","-1","all",,,,"T"),"") -> 0.06023507073
C17: Top 15 Description | H17: Last | I17: NC | J17: %NC | K17: NC/ATR | L17: Open | M17: High | N17: Low | O17: Volume | Q17: Ratio
A18: =TRIM(IVE!O1) -> S.US.SMCI | B18: News | C18: =IFERROR(PROPER(RTD("cqg.rtd", ,"ContractData",A18, "LongDescription",, "T"))&" ("&RIGHT(A18,LEN(A18)-5)&")","") -> Super Micro Computer (SMCI) | H18: =IF(C18="","",IFERROR(RTD("cqg.rtd", ,"ContractData",A18, "LastTradeToday",, "T"),"")) -> 41.61 | I18: =IF(C18="","",IFERROR(RTD("cqg.rtd", ,"ContractData",A18, "NetLastTradeToday",, "T"),"")) -> 3.99 | J18: =IFERROR(RTD("cqg.rtd", ,"ContractData",A18, "PerCentNetLastTrade",, "T")/100,"") -> 0.1060888062 | K18: =IFERROR(I18/RTD("cqg.rtd",,"StudyData",A18, "ATR", "MaType=Sim,Period=10", "ATR","D","-1","ALL",,,"FALSE","T")/100,"") -> 0.01627243067 | L18: =IF(C18="","",IFERROR(RTD("cqg.rtd", ,"ContractData",A18, "OPen",, "T"),"")) -> 38.28 | M18: =IF(C18="","",IFERROR(RTD("cqg.rtd", ,"ContractData", A18, "HIgh",, "T"),"")) -> 41.75 | N18: =IF(C18="","",IFERROR(RTD("cqg.rtd", ,"ContractData",A18, "LOw",, "T"),"")) -> 38.2 | O18: =IF(C18="","",IFERROR(RTD("cqg.rtd", ,"ContractData",A18, "T_CVol",, "T"),"")) -> 38617346.73 | Q18: =IFERROR(O18/RTD("cqg.rtd",,"StudyData",A18, "MA", "InputChoice=Vol,MAType=Sim,Period=21", "MA","D","-1","all",,,,"T"),"") -> 0.705891966 | R18: =IVE!R1 -> https://finance.yahoo.com/quote/SMCI
A19: =TRIM(IVE!O2) -> S.US.WDC | B19: News | C19: =IFERROR(PROPER(RTD("cqg.rtd", ,"ContractData",A19, "LongDescription",, "T"))&" ("&RIGHT(A19,LEN(A19)-5)&")","") -> Western Digital Cp (WDC) | H19: =IF(C19="","",IFERROR(RTD("cqg.rtd", ,"ContractData",A19, "LastTradeToday",, "T"),"")) -> 483.24 | I19: =IF(C19="","",IFERROR(RTD("cqg.rtd", ,"ContractData",A19, "NetLastTradeToday",, "T"),"")) -> 29.14 | J19: =IFERROR(RTD("cqg.rtd", ,"ContractData",A19, "PerCentNetLastTrade",, "T")/100,"") -> 0.06417088747 | K19: =IFERROR(I19/RTD("cqg.rtd",,"StudyData",A19, "ATR", "MaType=Sim,Period=10", "ATR","D","-1","ALL",,,"FALSE","T")/100,"") -> 0.006078558168 | L19: =IF(C19="","",IFERROR(RTD("cqg.rtd", ,"ContractData",A19, "OPen",, "T"),"")) -> 453.13 | M19: =IF(C19="","",IFERROR(RTD("cqg.rtd", ,"ContractData", A19, "HIgh",, "T"),"")) -> 483.5 | N19: =IF(C19="","",IFERROR(RTD("cqg.rtd", ,"ContractData",A19, "LOw",, "T"),"")) -> 451.55 | O19: =IF(C19="","",IFERROR(RTD("cqg.rtd", ,"ContractData",A19, "T_CVol",, "T"),"")) -> 1744815.455 | Q19: =IFERROR(O19/RTD("cqg.rtd",,"StudyData",A19, "MA", "InputChoice=Vol,MAType=Sim,Period=21", "MA","D","-1","all",,,,"T"),"") -> 0.2085559025 | R19: =IVE!R2 -> https://finance.yahoo.com/quote/WDC
A20: =TRIM(IVE!O3) -> S.US.PSKY | B20: News | C20: =IFERROR(PROPER(RTD("cqg.rtd", ,"ContractData",A20, "LongDescription",, "T"))&" ("&RIGHT(A20,LEN(A20)-5)&")","") -> Paramount Skydn B (PSKY) | H20: =IF(C20="","",IFERROR(RTD("cqg.rtd", ,"ContractData",A20, "LastTradeToday",, "T"),"")) -> 10 | I20: =IF(C20="","",IFERROR(RTD("cqg.rtd", ,"ContractData",A20, "NetLastTradeToday",, "T"),"")) -> 0.5 | J20: =IFERROR(RTD("cqg.rtd", ,"ContractData",A20, "PerCentNetLastTrade",, "T")/100,"") -> 0.05263157895 | K20: =IFERROR(I20/RTD("cqg.rtd",,"StudyData",A20, "ATR", "MaType=Sim,Period=10", "ATR","D","-1","ALL",,,"FALSE","T")/100,"") -> 0.01165501166 | L20: =IF(C20="","",IFERROR(RTD("cqg.rtd", ,"ContractData",A20, "OPen",, "T"),"")) -> 9.5 | M20: =IF(C20="","",IFERROR(RTD("cqg.rtd", ,"ContractData", A20, "HIgh",, "T"),"")) -> 10.03 | N20: =IF(C20="","",IFERROR(RTD("cqg.rtd", ,"ContractData",A20, "LOw",, "T"),"")) -> 9.5 | O20: =IF(C20="","",IFERROR(RTD("cqg.rtd", ,"ContractData",A20, "T_CVol",, "T"),"")) -> 2463149.005 | Q20: =IFERROR(O20/RTD("cqg.rtd",,"StudyData",A20, "MA", "InputChoice=Vol,MAType=Sim,Period=21", "MA","D","-1","all",,,,"T"),"") -> 0.2003374006 | R20: =IVE!R3 -> https://finance.yahoo.com/quote/PSKY
A21: =TRIM(IVE!O4) -> S.US.HPE | B21: News | C21: =IFERROR(PROPER(RTD("cqg.rtd", ,"ContractData",A21, "LongDescription",, "T"))&" ("&RIGHT(A21,LEN(A21)-5)&")","") -> Hewlett Packard Enterprise Company (HPE) | H21: =IF(C21="","",IFERROR(RTD("cqg.rtd", ,"ContractData",A21, "LastTradeToday",, "T"),"")) -> 61.77 | I21: =IF(C21="","",IFERROR(RTD("cqg.rtd", ,"ContractData",A21, "NetLastTradeToday",, "T"),"")) -> 2.98 | J21: =IFERROR(RTD("cqg.rtd", ,"ContractData",A21, "PerCentNetLastTrade",, "T")/100,"") -> 0.05068889267 | K21: =IFERROR(I21/RTD("cqg.rtd",,"StudyData",A21, "ATR", "MaType=Sim,Period=10", "ATR","D","-1","ALL",,,"FALSE","T")/100,"") -> 0.008948948949 | L21: =IF(C21="","",IFERROR(RTD("cqg.rtd", ,"ContractData",A21, "OPen",, "T"),"")) -> 61.2 | M21: =IF(C21="","",IFERROR(RTD("cqg.rtd", ,"ContractData", A21, "HIgh",, "T"),"")) -> 63.44 | N21: =IF(C21="","",IFERROR(RTD("cqg.rtd", ,"ContractData",A21, "LOw",, "T"),"")) -> 60.8 | O21: =IF(C21="","",IFERROR(RTD("cqg.rtd", ,"ContractData",A21, "T_CVol",, "T"),"")) -> 10341334.66 | Q21: =IFERROR(O21/RTD("cqg.rtd",,"StudyData",A21, "MA", "InputChoice=Vol,MAType=Sim,Period=21", "MA","D","-1","all",,,,"T"),"") -> 0.6194766762 | R21: =IVE!R4 -> https://finance.yahoo.com/quote/HPE
A22: =TRIM(IVE!O5) -> S.US.MRVL | B22: News | C22: =IFERROR(PROPER(RTD("cqg.rtd", ,"ContractData",A22, "LongDescription",, "T"))&" ("&RIGHT(A22,LEN(A22)-5)&")","") -> Marvell Tech Inc Cmn (MRVL) | H22: =IF(C22="","",IFERROR(RTD("cqg.rtd", ,"ContractData",A22, "LastTradeToday",, "T"),"")) -> 227.7 | I22: =IF(C22="","",IFERROR(RTD("cqg.rtd", ,"ContractData",A22, "NetLastTradeToday",, "T"),"")) -> 10.62 | J22: =IFERROR(RTD("cqg.rtd", ,"ContractData",A22, "PerCentNetLastTrade",, "T")/100,"") -> 0.04892205638 | K22: =IFERROR(I22/RTD("cqg.rtd",,"StudyData",A22, "ATR", "MaType=Sim,Period=10", "ATR","D","-1","ALL",,,"FALSE","T")/100,"") -> 0.006127747966 | L22: =IF(C22="","",IFERROR(RTD("cqg.rtd", ,"ContractData",A22, "OPen",, "T"),"")) -> 217.68 | M22: =IF(C22="","",IFERROR(RTD("cqg.rtd", ,"ContractData", A22, "HIgh",, "T"),"")) -> 228.98 | N22: =IF(C22="","",IFERROR(RTD("cqg.rtd", ,"ContractData",A22, "LOw",, "T"),"")) -> 217.18 | O22: =IF(C22="","",IFERROR(RTD("cqg.rtd", ,"ContractData",A22, "T_CVol",, "T"),"")) -> 4883783.601 | Q22: =IFERROR(O22/RTD("cqg.rtd",,"StudyData",A22, "MA", "InputChoice=Vol,MAType=Sim,Period=21", "MA","D","-1","all",,,,"T"),"") -> 0.2073064373 | R22: =IVE!R5 -> https://finance.yahoo.com/quote/MRVL
A23: =TRIM(IVE!O6) -> S.US.INTC | B23: News | C23: =IFERROR(PROPER(RTD("cqg.rtd", ,"ContractData",A23, "LongDescription",, "T"))&" ("&RIGHT(A23,LEN(A23)-5)&")","") -> Intel Corp (INTC) | H23: =IF(C23="","",IFERROR(RTD("cqg.rtd", ,"ContractData",A23, "LastTradeToday",, "T"),"")) -> 105.49 | I23: =IF(C23="","",IFERROR(RTD("cqg.rtd", ,"ContractData",A23, "NetLastTradeToday",, "T"),"")) -> 4.54 | J23: =IFERROR(RTD("cqg.rtd", ,"ContractData",A23, "PerCentNetLastTrade",, "T")/100,"") -> 0.04497275879 | K23: =IFERROR(I23/RTD("cqg.rtd",,"StudyData",A23, "ATR", "MaType=Sim,Period=10", "ATR","D","-1","ALL",,,"FALSE","T")/100,"") -> 0.006620005833 | L23: =IF(C23="","",IFERROR(RTD("cqg.rtd", ,"ContractData",A23, "OPen",, "T"),"")) -> 101.51 | M23: =IF(C23="","",IFERROR(RTD("cqg.rtd", ,"ContractData", A23, "HIgh",, "T"),"")) -> 106.17 | N23: =IF(C23="","",IFERROR(RTD("cqg.rtd", ,"ContractData",A23, "LOw",, "T"),"")) -> 100.33 | O23: =IF(C23="","",IFERROR(RTD("cqg.rtd", ,"ContractData",A23, "T_CVol",, "T"),"")) -> 33117661.43 | Q23: =IFERROR(O23/RTD("cqg.rtd",,"StudyData",A23, "MA", "InputChoice=Vol,MAType=Sim,Period=21", "MA","D","-1","all",,,,"T"),"") -> 0.2750060505 | R23: =IVE!R6 -> https://finance.yahoo.com/quote/INTC
A24: =TRIM(IVE!O7) -> S.US.KDP | B24: News | C24: =IFERROR(PROPER(RTD("cqg.rtd", ,"ContractData",A24, "LongDescription",, "T"))&" ("&RIGHT(A24,LEN(A24)-5)&")","") -> Keurig Dr Pepper Inc (KDP) | H24: =IF(C24="","",IFERROR(RTD("cqg.rtd", ,"ContractData",A24, "LastTradeToday",, "T"),"")) -> 30.86 | I24: =IF(C24="","",IFERROR(RTD("cqg.rtd", ,"ContractData",A24, "NetLastTradeToday",, "T"),"")) -> 1.3 | J24: =IFERROR(RTD("cqg.rtd", ,"ContractData",A24, "PerCentNetLastTrade",, "T")/100,"") -> 0.04397834912 | K24: =IFERROR(I24/RTD("cqg.rtd",,"StudyData",A24, "ATR", "MaType=Sim,Period=10", "ATR","D","-1","ALL",,,"FALSE","T")/100,"") -> 0.01240458015 | L24: =IF(C24="","",IFERROR(RTD("cqg.rtd", ,"ContractData",A24, "OPen",, "T"),"")) -> 30.06 | M24: =IF(C24="","",IFERROR(RTD("cqg.rtd", ,"ContractData", A24, "HIgh",, "T"),"")) -> 30.88 | N24: =IF(C24="","",IFERROR(RTD("cqg.rtd", ,"ContractData",A24, "LOw",, "T"),"")) -> 30.01 | O24: =IF(C24="","",IFERROR(RTD("cqg.rtd", ,"ContractData",A24, "T_CVol",, "T"),"")) -> 1869378.411 | Q24: =IFERROR(O24/RTD("cqg.rtd",,"StudyData",A24, "MA", "InputChoice=Vol,MAType=Sim,Period=21", "MA","D","-1","all",,,,"T"),"") -> 0.1462539371 | R24: =IVE!R7 -> https://finance.yahoo.com/quote/KDP
A25: =TRIM(IVE!O8) -> S.US.CSGP | B25: News | C25: =IFERROR(PROPER(RTD("cqg.rtd", ,"ContractData",A25, "LongDescription",, "T"))&" ("&RIGHT(A25,LEN(A25)-5)&")","") -> Costar Group Inc ## (CSGP) | H25: =IF(C25="","",IFERROR(RTD("cqg.rtd", ,"ContractData",A25, "LastTradeToday",, "T"),"")) -> 31.71 | I25: =IF(C25="","",IFERROR(RTD("cqg.rtd", ,"ContractData",A25, "NetLastTradeToday",, "T"),"")) -> 1.21 | J25: =IFERROR(RTD("cqg.rtd", ,"ContractData",A25, "PerCentNetLastTrade",, "T")/100,"") -> 0.03967213115 | K25: =IFERROR(I25/RTD("cqg.rtd",,"StudyData",A25, "ATR", "MaType=Sim,Period=10", "ATR","D","-1","ALL",,,"FALSE","T")/100,"") -> 0.009734513274 | L25: =IF(C25="","",IFERROR(RTD("cqg.rtd", ,"ContractData",A25, "OPen",, "T"),"")) -> 30.68 | M25: =IF(C25="","",IFERROR(RTD("cqg.rtd", ,"ContractData", A25, "HIgh",, "T"),"")) -> 31.78 | N25: =IF(C25="","",IFERROR(RTD("cqg.rtd", ,"ContractData",A25, "LOw",, "T"),"")) -> 30.68 | O25: =IF(C25="","",IFERROR(RTD("cqg.rtd", ,"ContractData",A25, "T_CVol",, "T"),"")) -> 819631.631 | Q25: =IFERROR(O25/RTD("cqg.rtd",,"StudyData",A25, "MA", "InputChoice=Vol,MAType=Sim,Period=21", "MA","D","-1","all",,,,"T"),"") -> 0.1087416677 | R25: =IVE!R8 -> https://finance.yahoo.com/quote/CSGP
A26: =TRIM(IVE!O9) -> S.US.ALB | B26: News | C26: =IFERROR(PROPER(RTD("cqg.rtd", ,"ContractData",A26, "LongDescription",, "T"))&" ("&RIGHT(A26,LEN(A26)-5)&")","") -> Albemarle Corporation (ALB) | H26: =IF(C26="","",IFERROR(RTD("cqg.rtd", ,"ContractData",A26, "LastTradeToday",, "T"),"")) -> 133.04 | I26: =IF(C26="","",IFERROR(RTD("cqg.rtd", ,"ContractData",A26, "NetLastTradeToday",, "T"),"")) -> 4.7 | J26: =IFERROR(RTD("cqg.rtd", ,"ContractData",A26, "PerCentNetLastTrade",, "T")/100,"") -> 0.03662147421 | K26: =IFERROR(I26/RTD("cqg.rtd",,"StudyData",A26, "ATR", "MaType=Sim,Period=10", "ATR","D","-1","ALL",,,"FALSE","T")/100,"") -> 0.009133307423 | L26: =IF(C26="","",IFERROR(RTD("cqg.rtd", ,"ContractData",A26, "OPen",, "T"),"")) -> 128 | M26: =IF(C26="","",IFERROR(RTD("cqg.rtd", ,"ContractData", A26, "HIgh",, "T"),"")) -> 133.67 | N26: =IF(C26="","",IFERROR(RTD("cqg.rtd", ,"ContractData",A26, "LOw",, "T"),"")) -> 127.12 | O26: =IF(C26="","",IFERROR(RTD("cqg.rtd", ,"ContractData",A26, "T_CVol",, "T"),"")) -> 392262.2332 | Q26: =IFERROR(O26/RTD("cqg.rtd",,"StudyData",A26, "MA", "InputChoice=Vol,MAType=Sim,Period=21", "MA","D","-1","all",,,,"T"),"") -> 0.1653408413 | R26: =IVE!R9 -> https://finance.yahoo.com/quote/ALB
A27: =TRIM(IVE!O10) -> S.US.HPQ | B27: News | C27: =IFERROR(PROPER(RTD("cqg.rtd", ,"ContractData",A27, "LongDescription",, "T"))&" ("&RIGHT(A27,LEN(A27)-5)&")","") -> Hewlett-Packard Company (HPQ) | H27: =IF(C27="","",IFERROR(RTD("cqg.rtd", ,"ContractData",A27, "LastTradeToday",, "T"),"")) -> 30.32 | I27: =IF(C27="","",IFERROR(RTD("cqg.rtd", ,"ContractData",A27, "NetLastTradeToday",, "T"),"")) -> 1.04 | J27: =IFERROR(RTD("cqg.rtd", ,"ContractData",A27, "PerCentNetLastTrade",, "T")/100,"") -> 0.03551912568 | K27: =IFERROR(I27/RTD("cqg.rtd",,"StudyData",A27, "ATR", "MaType=Sim,Period=10", "ATR","D","-1","ALL",,,"FALSE","T")/100,"") -> 0.007242339833 | L27: =IF(C27="","",IFERROR(RTD("cqg.rtd", ,"ContractData",A27, "OPen",, "T"),"")) -> 31.32 | M27: =IF(C27="","",IFERROR(RTD("cqg.rtd", ,"ContractData", A27, "HIgh",, "T"),"")) -> 32.19 | N27: =IF(C27="","",IFERROR(RTD("cqg.rtd", ,"ContractData",A27, "LOw",, "T"),"")) -> 29.49 | O27: =IF(C27="","",IFERROR(RTD("cqg.rtd", ,"ContractData",A27, "T_CVol",, "T"),"")) -> 8592955.555 | Q27: =IFERROR(O27/RTD("cqg.rtd",,"StudyData",A27, "MA", "InputChoice=Vol,MAType=Sim,Period=21", "MA","D","-1","all",,,,"T"),"") -> 0.5851658862 | R27: =IVE!R10 -> https://finance.yahoo.com/quote/HPQ | S27: Bottom 15 Negative Performing Companies
A28: =TRIM(IVE!O11) -> S.US.AKAM | B28: News | C28: =IFERROR(PROPER(RTD("cqg.rtd", ,"ContractData",A28, "LongDescription",, "T"))&" ("&RIGHT(A28,LEN(A28)-5)&")","") -> Akamai Technologies (AKAM) | H28: =IF(C28="","",IFERROR(RTD("cqg.rtd", ,"ContractData",A28, "LastTradeToday",, "T"),"")) -> 127 | I28: =IF(C28="","",IFERROR(RTD("cqg.rtd", ,"ContractData",A28, "NetLastTradeToday",, "T"),"")) -> 4.22 | J28: =IFERROR(RTD("cqg.rtd", ,"ContractData",A28, "PerCentNetLastTrade",, "T")/100,"") -> 0.03437041863 | K28: =IFERROR(I28/RTD("cqg.rtd",,"StudyData",A28, "ATR", "MaType=Sim,Period=10", "ATR","D","-1","ALL",,,"FALSE","T")/100,"") -> 0.006003698961 | L28: =IF(C28="","",IFERROR(RTD("cqg.rtd", ,"ContractData",A28, "OPen",, "T"),"")) -> 124.92 | M28: =IF(C28="","",IFERROR(RTD("cqg.rtd", ,"ContractData", A28, "HIgh",, "T"),"")) -> 127.03 | N28: =IF(C28="","",IFERROR(RTD("cqg.rtd", ,"ContractData",A28, "LOw",, "T"),"")) -> 123.31 | O28: =IF(C28="","",IFERROR(RTD("cqg.rtd", ,"ContractData",A28, "T_CVol",, "T"),"")) -> 494712.9879 | Q28: =IFERROR(O28/RTD("cqg.rtd",,"StudyData",A28, "MA", "InputChoice=Vol,MAType=Sim,Period=21", "MA","D","-1","all",,,,"T"),"") -> 0.1322176385 | R28: =IVE!R11 -> https://finance.yahoo.com/quote/AKAM
A29: =TRIM(IVE!O12) -> S.US.DELL | B29: News | C29: =IFERROR(PROPER(RTD("cqg.rtd", ,"ContractData",A29, "LongDescription",, "T"))&" ("&RIGHT(A29,LEN(A29)-5)&")","") -> Dell Technologies Inc. (DELL) | H29: =IF(C29="","",IFERROR(RTD("cqg.rtd", ,"ContractData",A29, "LastTradeToday",, "T"),"")) -> 501.07 | I29: =IF(C29="","",IFERROR(RTD("cqg.rtd", ,"ContractData",A29, "NetLastTradeToday",, "T"),"")) -> 16.57 | J29: =IFERROR(RTD("cqg.rtd", ,"ContractData",A29, "PerCentNetLastTrade",, "T")/100,"") -> 0.0342002064 | K29: =IFERROR(I29/RTD("cqg.rtd",,"StudyData",A29, "ATR", "MaType=Sim,Period=10", "ATR","D","-1","ALL",,,"FALSE","T")/100,"") -> 0.004582791714 | L29: =IF(C29="","",IFERROR(RTD("cqg.rtd", ,"ContractData",A29, "OPen",, "T"),"")) -> 499.68 | M29: =IF(C29="","",IFERROR(RTD("cqg.rtd", ,"ContractData", A29, "HIgh",, "T"),"")) -> 514 | N29: =IF(C29="","",IFERROR(RTD("cqg.rtd", ,"ContractData",A29, "LOw",, "T"),"")) -> 487.12 | O29: =IF(C29="","",IFERROR(RTD("cqg.rtd", ,"ContractData",A29, "T_CVol",, "T"),"")) -> 3442711.216 | Q29: =IFERROR(O29/RTD("cqg.rtd",,"StudyData",A29, "MA", "InputChoice=Vol,MAType=Sim,Period=21", "MA","D","-1","all",,,,"T"),"") -> 0.5469915217 | R29: =IVE!R12 -> https://finance.yahoo.com/quote/DELL
A30: =TRIM(IVE!O13) -> S.US.BLDR | B30: News | C30: =IFERROR(PROPER(RTD("cqg.rtd", ,"ContractData",A30, "LongDescription",, "T"))&" ("&RIGHT(A30,LEN(A30)-5)&")","") -> Builders Firstsource Inc (BLDR) | H30: =IF(C30="","",IFERROR(RTD("cqg.rtd", ,"ContractData",A30, "LastTradeToday",, "T"),"")) -> 74.86 | I30: =IF(C30="","",IFERROR(RTD("cqg.rtd", ,"ContractData",A30, "NetLastTradeToday",, "T"),"")) -> 2.45 | J30: =IFERROR(RTD("cqg.rtd", ,"ContractData",A30, "PerCentNetLastTrade",, "T")/100,"") -> 0.03383510565 | K30: =IFERROR(I30/RTD("cqg.rtd",,"StudyData",A30, "ATR", "MaType=Sim,Period=10", "ATR","D","-1","ALL",,,"FALSE","T")/100,"") -> 0.006491785904 | L30: =IF(C30="","",IFERROR(RTD("cqg.rtd", ,"ContractData",A30, "OPen",, "T"),"")) -> 73.44 | M30: =IF(C30="","",IFERROR(RTD("cqg.rtd", ,"ContractData", A30, "HIgh",, "T"),"")) -> 75.2 | N30: =IF(C30="","",IFERROR(RTD("cqg.rtd", ,"ContractData",A30, "LOw",, "T"),"")) -> 73 | O30: =IF(C30="","",IFERROR(RTD("cqg.rtd", ,"ContractData",A30, "T_CVol",, "T"),"")) -> 280874.342 | Q30: =IFERROR(O30/RTD("cqg.rtd",,"StudyData",A30, "MA", "InputChoice=Vol,MAType=Sim,Period=21", "MA","D","-1","all",,,,"T"),"") -> 0.1187085776 | R30: =IVE!R13 -> https://finance.yahoo.com/quote/BLDR
A31: =TRIM(IVE!O14) -> S.US.EQR | B31: News | C31: =IFERROR(PROPER(RTD("cqg.rtd", ,"ContractData",A31, "LongDescription",, "T"))&" ("&RIGHT(A31,LEN(A31)-5)&")","") -> Equity Residential Properties Trust (EQR) | H31: =IF(C31="","",IFERROR(RTD("cqg.rtd", ,"ContractData",A31, "LastTradeToday",, "T"),"")) -> 66.52 | I31: =IF(C31="","",IFERROR(RTD("cqg.rtd", ,"ContractData",A31, "NetLastTradeToday",, "T"),"")) -> 2.1 | J31: =IFERROR(RTD("cqg.rtd", ,"ContractData",A31, "PerCentNetLastTrade",, "T")/100,"") -> 0.03259857187 | K31: =IFERROR(I31/RTD("cqg.rtd",,"StudyData",A31, "ATR", "MaType=Sim,Period=10", "ATR","D","-1","ALL",,,"FALSE","T")/100,"") -> 0.01516245487 | L31: =IF(C31="","",IFERROR(RTD("cqg.rtd", ,"ContractData",A31, "OPen",, "T"),"")) -> 65.09 | M31: =IF(C31="","",IFERROR(RTD("cqg.rtd", ,"ContractData", A31, "HIgh",, "T"),"")) -> 66.52 | N31: =IF(C31="","",IFERROR(RTD("cqg.rtd", ,"ContractData",A31, "LOw",, "T"),"")) -> 64.75 | O31: =IF(C31="","",IFERROR(RTD("cqg.rtd", ,"ContractData",A31, "T_CVol",, "T"),"")) -> 785281.637 | Q31: =IFERROR(O31/RTD("cqg.rtd",,"StudyData",A31, "MA", "InputChoice=Vol,MAType=Sim,Period=21", "MA","D","-1","all",,,,"T"),"") -> 0.2555459871 | R31: =IVE!R14 -> https://finance.yahoo.com/quote/EQR
A32: =TRIM(IVE!O15) -> S.US.AVB | B32: News | C32: =IFERROR(PROPER(RTD("cqg.rtd", ,"ContractData",A32, "LongDescription",, "T"))&" ("&RIGHT(A32,LEN(A32)-5)&")","") -> Avalonbay Communities, Inc. (AVB) | H32: =IF(C32="","",IFERROR(RTD("cqg.rtd", ,"ContractData",A32, "LastTradeToday",, "T"),"")) -> 185.62 | I32: =IF(C32="","",IFERROR(RTD("cqg.rtd", ,"ContractData",A32, "NetLastTradeToday",, "T"),"")) -> 5.83 | J32: =IFERROR(RTD("cqg.rtd", ,"ContractData",A32, "PerCentNetLastTrade",, "T")/100,"") -> 0.03242672006 | K32: =IFERROR(I32/RTD("cqg.rtd",,"StudyData",A32, "ATR", "MaType=Sim,Period=10", "ATR","D","-1","ALL",,,"FALSE","T")/100,"") -> 0.01585100598 | L32: =IF(C32="","",IFERROR(RTD("cqg.rtd", ,"ContractData",A32, "OPen",, "T"),"")) -> 180.27 | M32: =IF(C32="","",IFERROR(RTD("cqg.rtd", ,"ContractData", A32, "HIgh",, "T"),"")) -> 185.62 | N32: =IF(C32="","",IFERROR(RTD("cqg.rtd", ,"ContractData",A32, "LOw",, "T"),"")) -> 180.27 | O32: =IF(C32="","",IFERROR(RTD("cqg.rtd", ,"ContractData",A32, "T_CVol",, "T"),"")) -> 249062.8042 | Q32: =IFERROR(O32/RTD("cqg.rtd",,"StudyData",A32, "MA", "InputChoice=Vol,MAType=Sim,Period=21", "MA","D","-1","all",,,,"T"),"") -> 0.2957880526 | R32: =IVE!R15 -> https://finance.yahoo.com/quote/AVB
C33: Bottom 15 Description | H33: Last | I33: NC | J33: %NC | K33: NC/ATR | L33: Open | M33: High | N33: Low | O33: Volume | Q33: Ratio
A34: =TRIM(IVE!AC1) -> S.US.CSCO | B34: News | C34: =IFERROR(PROPER(RTD("cqg.rtd", ,"ContractData",A34, "LongDescription",, "T"))&" ("&RIGHT(A34,LEN(A34)-5)&")","") -> Cisco Systems Inc. (CSCO) | H34: =IF(C34="","",IFERROR(RTD("cqg.rtd", ,"ContractData",A34, "LastTradeToday",, "T"),"")) -> 115.22 | I34: =IF(C34="","",IFERROR(RTD("cqg.rtd", ,"ContractData",A34, "NetLastTradeToday",, "T"),"")) -> -8.66 | J34: =IFERROR(RTD("cqg.rtd", ,"ContractData",A34, "PerCentNetLastTrade",, "T")/100,"") -> -0.06990636099 | K34: =IFERROR(I34/RTD("cqg.rtd",,"StudyData",A34, "ATR", "MaType=Sim,Period=10", "ATR","D","-1","ALL",,,"FALSE","T")/100,"") -> -0.02565165877 | L34: =IF(C34="","",IFERROR(RTD("cqg.rtd", ,"ContractData",A34, "OPen",, "T"),"")) -> 113.92 | M34: =IF(C34="","",IFERROR(RTD("cqg.rtd", ,"ContractData", A34, "HIgh",, "T"),"")) -> 115.94 | N34: =IF(C34="","",IFERROR(RTD("cqg.rtd", ,"ContractData",A34, "LOw",, "T"),"")) -> 111.48 | O34: =IF(C34="","",IFERROR(RTD("cqg.rtd", ,"ContractData",A34, "T_CVol",, "T"),"")) -> 22243084.28 | Q34: =IFERROR(O34/RTD("cqg.rtd",,"StudyData",A34, "MA", "InputChoice=Vol,MAType=Sim,Period=21", "MA","D","-1","all",,,,"T"),"") -> 1.071186697 | R34: =IVE!AH1 -> https://finance.yahoo.com/quote/CSCO
A35: =TRIM(IVE!AC2) -> S.US.DVN | B35: News | C35: =IFERROR(PROPER(RTD("cqg.rtd", ,"ContractData",A35, "LongDescription",, "T"))&" ("&RIGHT(A35,LEN(A35)-5)&")","") -> Devon Energy Corp (DVN) | H35: =IF(C35="","",IFERROR(RTD("cqg.rtd", ,"ContractData",A35, "LastTradeToday",, "T"),"")) -> 44.03 | I35: =IF(C35="","",IFERROR(RTD("cqg.rtd", ,"ContractData",A35, "NetLastTradeToday",, "T"),"")) -> -0.83 | J35: =IFERROR(RTD("cqg.rtd", ,"ContractData",A35, "PerCentNetLastTrade",, "T")/100,"") -> -0.01850200624 | K35: =IFERROR(I35/RTD("cqg.rtd",,"StudyData",A35, "ATR", "MaType=Sim,Period=10", "ATR","D","-1","ALL",,,"FALSE","T")/100,"") -> -0.00620328849 | L35: =IF(C35="","",IFERROR(RTD("cqg.rtd", ,"ContractData",A35, "OPen",, "T"),"")) -> 44.25 | M35: =IF(C35="","",IFERROR(RTD("cqg.rtd", ,"ContractData", A35, "HIgh",, "T"),"")) -> 44.43 | N35: =IF(C35="","",IFERROR(RTD("cqg.rtd", ,"ContractData",A35, "LOw",, "T"),"")) -> 43.65 | O35: =IF(C35="","",IFERROR(RTD("cqg.rtd", ,"ContractData",A35, "T_CVol",, "T"),"")) -> 1830667.778 | Q35: =IFERROR(O35/RTD("cqg.rtd",,"StudyData",A35, "MA", "InputChoice=Vol,MAType=Sim,Period=21", "MA","D","-1","all",,,,"T"),"") -> 0.1794282146 | R35: =IVE!AH2 -> https://finance.yahoo.com/quote/DVN
A36: =TRIM(IVE!AC3) -> S.US.EXE | B36: News | C36: =IFERROR(PROPER(RTD("cqg.rtd", ,"ContractData",A36, "LongDescription",, "T"))&" ("&RIGHT(A36,LEN(A36)-5)&")","") -> Expand Energy Cor Cs (EXE) | H36: =IF(C36="","",IFERROR(RTD("cqg.rtd", ,"ContractData",A36, "LastTradeToday",, "T"),"")) -> 94.56 | I36: =IF(C36="","",IFERROR(RTD("cqg.rtd", ,"ContractData",A36, "NetLastTradeToday",, "T"),"")) -> -1.72 | J36: =IFERROR(RTD("cqg.rtd", ,"ContractData",A36, "PerCentNetLastTrade",, "T")/100,"") -> -0.0178645617 | K36: =IFERROR(I36/RTD("cqg.rtd",,"StudyData",A36, "ATR", "MaType=Sim,Period=10", "ATR","D","-1","ALL",,,"FALSE","T")/100,"") -> -0.006439535754 | L36: =IF(C36="","",IFERROR(RTD("cqg.rtd", ,"ContractData",A36, "OPen",, "T"),"")) -> 94.69 | M36: =IF(C36="","",IFERROR(RTD("cqg.rtd", ,"ContractData", A36, "HIgh",, "T"),"")) -> 95.46 | N36: =IF(C36="","",IFERROR(RTD("cqg.rtd", ,"ContractData",A36, "LOw",, "T"),"")) -> 94.25 | O36: =IF(C36="","",IFERROR(RTD("cqg.rtd", ,"ContractData",A36, "T_CVol",, "T"),"")) -> 242022.3397 | Q36: =IFERROR(O36/RTD("cqg.rtd",,"StudyData",A36, "MA", "InputChoice=Vol,MAType=Sim,Period=21", "MA","D","-1","all",,,,"T"),"") -> 0.06841547442 | R36: =IVE!AH3 -> https://finance.yahoo.com/quote/EXE
A37: =TRIM(IVE!AC4) -> S.US.BKR | B37: News | C37: =IFERROR(PROPER(RTD("cqg.rtd", ,"ContractData",A37, "LongDescription",, "T"))&" ("&RIGHT(A37,LEN(A37)-5)&")","") -> Baker Hughes Co (BKR) | H37: =IF(C37="","",IFERROR(RTD("cqg.rtd", ,"ContractData",A37, "LastTradeToday",, "T"),"")) -> 63.15 | I37: =IF(C37="","",IFERROR(RTD("cqg.rtd", ,"ContractData",A37, "NetLastTradeToday",, "T"),"")) -> -1.13 | J37: =IFERROR(RTD("cqg.rtd", ,"ContractData",A37, "PerCentNetLastTrade",, "T")/100,"") -> -0.01757934039 | K37: =IFERROR(I37/RTD("cqg.rtd",,"StudyData",A37, "ATR", "MaType=Sim,Period=10", "ATR","D","-1","ALL",,,"FALSE","T")/100,"") -> -0.007523302264 | L37: =IF(C37="","",IFERROR(RTD("cqg.rtd", ,"ContractData",A37, "OPen",, "T"),"")) -> 63.96 | M37: =IF(C37="","",IFERROR(RTD("cqg.rtd", ,"ContractData", A37, "HIgh",, "T"),"")) -> 63.97 | N37: =IF(C37="","",IFERROR(RTD("cqg.rtd", ,"ContractData",A37, "LOw",, "T"),"")) -> 62.5 | O37: =IF(C37="","",IFERROR(RTD("cqg.rtd", ,"ContractData",A37, "T_CVol",, "T"),"")) -> 1025974.844 | Q37: =IFERROR(O37/RTD("cqg.rtd",,"StudyData",A37, "MA", "InputChoice=Vol,MAType=Sim,Period=21", "MA","D","-1","all",,,,"T"),"") -> 0.114801843 | R37: =IVE!AH4 -> https://finance.yahoo.com/quote/BKR
A38: =TRIM(IVE!AC5) -> S.US.CF | B38: News | C38: =IFERROR(PROPER(RTD("cqg.rtd", ,"ContractData",A38, "LongDescription",, "T"))&" ("&RIGHT(A38,LEN(A38)-5)&")","") -> Cf Industries Holdings, Inc (CF) | H38: =IF(C38="","",IFERROR(RTD("cqg.rtd", ,"ContractData",A38, "LastTradeToday",, "T"),"")) -> 118.07 | I38: =IF(C38="","",IFERROR(RTD("cqg.rtd", ,"ContractData",A38, "NetLastTradeToday",, "T"),"")) -> -1.94 | J38: =IFERROR(RTD("cqg.rtd", ,"ContractData",A38, "PerCentNetLastTrade",, "T")/100,"") -> -0.01616531956 | K38: =IFERROR(I38/RTD("cqg.rtd",,"StudyData",A38, "ATR", "MaType=Sim,Period=10", "ATR","D","-1","ALL",,,"FALSE","T")/100,"") -> -0.003833234539 | L38: =IF(C38="","",IFERROR(RTD("cqg.rtd", ,"ContractData",A38, "OPen",, "T"),"")) -> 117.66 | M38: =IF(C38="","",IFERROR(RTD("cqg.rtd", ,"ContractData", A38, "HIgh",, "T"),"")) -> 120.54 | N38: =IF(C38="","",IFERROR(RTD("cqg.rtd", ,"ContractData",A38, "LOw",, "T"),"")) -> 117.15 | O38: =IF(C38="","",IFERROR(RTD("cqg.rtd", ,"ContractData",A38, "T_CVol",, "T"),"")) -> 200986.1526 | Q38: =IFERROR(O38/RTD("cqg.rtd",,"StudyData",A38, "MA", "InputChoice=Vol,MAType=Sim,Period=21", "MA","D","-1","all",,,,"T"),"") -> 0.08530429608 | R38: =IVE!AH5 -> https://finance.yahoo.com/quote/CF
A39: =TRIM(IVE!AC6) -> S.US.FCX | B39: News | C39: =IFERROR(PROPER(RTD("cqg.rtd", ,"ContractData",A39, "LongDescription",, "T"))&" ("&RIGHT(A39,LEN(A39)-5)&")","") -> Freeport-Mcmoran Inc. (FCX) | H39: =IF(C39="","",IFERROR(RTD("cqg.rtd", ,"ContractData",A39, "LastTradeToday",, "T"),"")) -> 68.2 | I39: =IF(C39="","",IFERROR(RTD("cqg.rtd", ,"ContractData",A39, "NetLastTradeToday",, "T"),"")) -> -1.02 | J39: =IFERROR(RTD("cqg.rtd", ,"ContractData",A39, "PerCentNetLastTrade",, "T")/100,"") -> -0.01473562554 | K39: =IFERROR(I39/RTD("cqg.rtd",,"StudyData",A39, "ATR", "MaType=Sim,Period=10", "ATR","D","-1","ALL",,,"FALSE","T")/100,"") -> -0.003837471783 | L39: =IF(C39="","",IFERROR(RTD("cqg.rtd", ,"ContractData",A39, "OPen",, "T"),"")) -> 68.14 | M39: =IF(C39="","",IFERROR(RTD("cqg.rtd", ,"ContractData", A39, "HIgh",, "T"),"")) -> 68.35 | N39: =IF(C39="","",IFERROR(RTD("cqg.rtd", ,"ContractData",A39, "LOw",, "T"),"")) -> 67.35 | O39: =IF(C39="","",IFERROR(RTD("cqg.rtd", ,"ContractData",A39, "T_CVol",, "T"),"")) -> 1872363.601 | Q39: =IFERROR(O39/RTD("cqg.rtd",,"StudyData",A39, "MA", "InputChoice=Vol,MAType=Sim,Period=21", "MA","D","-1","all",,,,"T"),"") -> 0.1337651041 | R39: =IVE!AH6 -> https://finance.yahoo.com/quote/FCX
A40: =TRIM(IVE!AC7) -> S.US.COP | B40: News | C40: =IFERROR(PROPER(RTD("cqg.rtd", ,"ContractData",A40, "LongDescription",, "T"))&" ("&RIGHT(A40,LEN(A40)-5)&")","") -> Conocophillips (COP) | H40: =IF(C40="","",IFERROR(RTD("cqg.rtd", ,"ContractData",A40, "LastTradeToday",, "T"),"")) -> 125.47 | I40: =IF(C40="","",IFERROR(RTD("cqg.rtd", ,"ContractData",A40, "NetLastTradeToday",, "T"),"")) -> -1.83 | J40: =IFERROR(RTD("cqg.rtd", ,"ContractData",A40, "PerCentNetLastTrade",, "T")/100,"") -> -0.01437549097 | K40: =IFERROR(I40/RTD("cqg.rtd",,"StudyData",A40, "ATR", "MaType=Sim,Period=10", "ATR","D","-1","ALL",,,"FALSE","T")/100,"") -> -0.004933944459 | L40: =IF(C40="","",IFERROR(RTD("cqg.rtd", ,"ContractData",A40, "OPen",, "T"),"")) -> 125.72 | M40: =IF(C40="","",IFERROR(RTD("cqg.rtd", ,"ContractData", A40, "HIgh",, "T"),"")) -> 126.39 | N40: =IF(C40="","",IFERROR(RTD("cqg.rtd", ,"ContractData",A40, "LOw",, "T"),"")) -> 124.52 | O40: =IF(C40="","",IFERROR(RTD("cqg.rtd", ,"ContractData",A40, "T_CVol",, "T"),"")) -> 844732.0768 | Q40: =IFERROR(O40/RTD("cqg.rtd",,"StudyData",A40, "MA", "InputChoice=Vol,MAType=Sim,Period=21", "MA","D","-1","all",,,,"T"),"") -> 0.1311634758 | R40: =IVE!AH7 -> https://finance.yahoo.com/quote/COP
A41: =TRIM(IVE!AC8) -> S.US.EMR | B41: News | C41: =IFERROR(PROPER(RTD("cqg.rtd", ,"ContractData",A41, "LongDescription",, "T"))&" ("&RIGHT(A41,LEN(A41)-5)&")","") -> Emerson Electric Co (EMR) | H41: =IF(C41="","",IFERROR(RTD("cqg.rtd", ,"ContractData",A41, "LastTradeToday",, "T"),"")) -> 161.52 | I41: =IF(C41="","",IFERROR(RTD("cqg.rtd", ,"ContractData",A41, "NetLastTradeToday",, "T"),"")) -> -2.28 | J41: =IFERROR(RTD("cqg.rtd", ,"ContractData",A41, "PerCentNetLastTrade",, "T")/100,"") -> -0.01391941392 | K41: =IFERROR(I41/RTD("cqg.rtd",,"StudyData",A41, "ATR", "MaType=Sim,Period=10", "ATR","D","-1","ALL",,,"FALSE","T")/100,"") -> -0.004416892677 | L41: =IF(C41="","",IFERROR(RTD("cqg.rtd", ,"ContractData",A41, "OPen",, "T"),"")) -> 164.26 | M41: =IF(C41="","",IFERROR(RTD("cqg.rtd", ,"ContractData", A41, "HIgh",, "T"),"")) -> 164.26 | N41: =IF(C41="","",IFERROR(RTD("cqg.rtd", ,"ContractData",A41, "LOw",, "T"),"")) -> 160.64 | O41: =IF(C41="","",IFERROR(RTD("cqg.rtd", ,"ContractData",A41, "T_CVol",, "T"),"")) -> 372863.8976 | Q41: =IFERROR(O41/RTD("cqg.rtd",,"StudyData",A41, "MA", "InputChoice=Vol,MAType=Sim,Period=21", "MA","D","-1","all",,,,"T"),"") -> 0.1175178862 | R41: =IVE!AH8 -> https://finance.yahoo.com/quote/EMR
A42: =TRIM(IVE!AC9) -> S.US.SLB | B42: News | C42: =IFERROR(PROPER(RTD("cqg.rtd", ,"ContractData",A42, "LongDescription",, "T"))&" ("&RIGHT(A42,LEN(A42)-5)&")","") -> Slb (SLB) | H42: =IF(C42="","",IFERROR(RTD("cqg.rtd", ,"ContractData",A42, "LastTradeToday",, "T"),"")) -> 51.89 | I42: =IF(C42="","",IFERROR(RTD("cqg.rtd", ,"ContractData",A42, "NetLastTradeToday",, "T"),"")) -> -0.72 | J42: =IFERROR(RTD("cqg.rtd", ,"ContractData",A42, "PerCentNetLastTrade",, "T")/100,"") -> -0.0136856111 | K42: =IFERROR(I42/RTD("cqg.rtd",,"StudyData",A42, "ATR", "MaType=Sim,Period=10", "ATR","D","-1","ALL",,,"FALSE","T")/100,"") -> -0.004342581423 | L42: =IF(C42="","",IFERROR(RTD("cqg.rtd", ,"ContractData",A42, "OPen",, "T"),"")) -> 52 | M42: =IF(C42="","",IFERROR(RTD("cqg.rtd", ,"ContractData", A42, "HIgh",, "T"),"")) -> 52.4 | N42: =IF(C42="","",IFERROR(RTD("cqg.rtd", ,"ContractData",A42, "LOw",, "T"),"")) -> 51.6 | O42: =IF(C42="","",IFERROR(RTD("cqg.rtd", ,"ContractData",A42, "T_CVol",, "T"),"")) -> 1178064.964 | Q42: =IFERROR(O42/RTD("cqg.rtd",,"StudyData",A42, "MA", "InputChoice=Vol,MAType=Sim,Period=21", "MA","D","-1","all",,,,"T"),"") -> 0.0937910734 | R42: =IVE!AH9 -> https://finance.yahoo.com/quote/SLB
A43: =TRIM(IVE!AC10) -> S.US.OXY | B43: News | C43: =IFERROR(PROPER(RTD("cqg.rtd", ,"ContractData",A43, "LongDescription",, "T"))&" ("&RIGHT(A43,LEN(A43)-5)&")","") -> Occidental Petroleum (OXY) | H43: =IF(C43="","",IFERROR(RTD("cqg.rtd", ,"ContractData",A43, "LastTradeToday",, "T"),"")) -> 57.76 | I43: =IF(C43="","",IFERROR(RTD("cqg.rtd", ,"ContractData",A43, "NetLastTradeToday",, "T"),"")) -> -0.79 | J43: =IFERROR(RTD("cqg.rtd", ,"ContractData",A43, "PerCentNetLastTrade",, "T")/100,"") -> -0.01349274125 | K43: =IFERROR(I43/RTD("cqg.rtd",,"StudyData",A43, "ATR", "MaType=Sim,Period=10", "ATR","D","-1","ALL",,,"FALSE","T")/100,"") -> -0.004305177112 | L43: =IF(C43="","",IFERROR(RTD("cqg.rtd", ,"ContractData",A43, "OPen",, "T"),"")) -> 57.74 | M43: =IF(C43="","",IFERROR(RTD("cqg.rtd", ,"ContractData", A43, "HIgh",, "T"),"")) -> 57.99 | N43: =IF(C43="","",IFERROR(RTD("cqg.rtd", ,"ContractData",A43, "LOw",, "T"),"")) -> 57.17 | O43: =IF(C43="","",IFERROR(RTD("cqg.rtd", ,"ContractData",A43, "T_CVol",, "T"),"")) -> 1081101.55 | Q43: =IFERROR(O43/RTD("cqg.rtd",,"StudyData",A43, "MA", "InputChoice=Vol,MAType=Sim,Period=21", "MA","D","-1","all",,,,"T"),"") -> 0.1279716182 | R43: =IVE!AH10 -> https://finance.yahoo.com/quote/OXY
A44: =TRIM(IVE!AC11) -> S.US.FANG | B44: News | C44: =IFERROR(PROPER(RTD("cqg.rtd", ,"ContractData",A44, "LongDescription",, "T"))&" ("&RIGHT(A44,LEN(A44)-5)&")","") -> Diamondback Energy (FANG) | H44: =IF(C44="","",IFERROR(RTD("cqg.rtd", ,"ContractData",A44, "LastTradeToday",, "T"),"")) -> 198.18 | I44: =IF(C44="","",IFERROR(RTD("cqg.rtd", ,"ContractData",A44, "NetLastTradeToday",, "T"),"")) -> -2.66 | J44: =IFERROR(RTD("cqg.rtd", ,"ContractData",A44, "PerCentNetLastTrade",, "T")/100,"") -> -0.01324437363 | K44: =IFERROR(I44/RTD("cqg.rtd",,"StudyData",A44, "ATR", "MaType=Sim,Period=10", "ATR","D","-1","ALL",,,"FALSE","T")/100,"") -> -0.00411637264 | L44: =IF(C44="","",IFERROR(RTD("cqg.rtd", ,"ContractData",A44, "OPen",, "T"),"")) -> 198.01 | M44: =IF(C44="","",IFERROR(RTD("cqg.rtd", ,"ContractData", A44, "HIgh",, "T"),"")) -> 199.52 | N44: =IF(C44="","",IFERROR(RTD("cqg.rtd", ,"ContractData",A44, "LOw",, "T"),"")) -> 196.66 | O44: =IF(C44="","",IFERROR(RTD("cqg.rtd", ,"ContractData",A44, "T_CVol",, "T"),"")) -> 161354.8892 | Q44: =IFERROR(O44/RTD("cqg.rtd",,"StudyData",A44, "MA", "InputChoice=Vol,MAType=Sim,Period=21", "MA","D","-1","all",,,,"T"),"") -> 0.08632310826 | R44: =IVE!AH11 -> https://finance.yahoo.com/quote/FANG
A45: =TRIM(IVE!AC12) -> S.US.WST | B45: News | C45: =IFERROR(PROPER(RTD("cqg.rtd", ,"ContractData",A45, "LongDescription",, "T"))&" ("&RIGHT(A45,LEN(A45)-5)&")","") -> West Pharmaceuticals Svcs Inc (WST) | H45: =IF(C45="","",IFERROR(RTD("cqg.rtd", ,"ContractData",A45, "LastTradeToday",, "T"),"")) -> 347.68 | I45: =IF(C45="","",IFERROR(RTD("cqg.rtd", ,"ContractData",A45, "NetLastTradeToday",, "T"),"")) -> -4.61 | J45: =IFERROR(RTD("cqg.rtd", ,"ContractData",A45, "PerCentNetLastTrade",, "T")/100,"") -> -0.01308580999 | K45: =IFERROR(I45/RTD("cqg.rtd",,"StudyData",A45, "ATR", "MaType=Sim,Period=10", "ATR","D","-1","ALL",,,"FALSE","T")/100,"") -> -0.006552018192 | L45: =IF(C45="","",IFERROR(RTD("cqg.rtd", ,"ContractData",A45, "OPen",, "T"),"")) -> 353.55 | M45: =IF(C45="","",IFERROR(RTD("cqg.rtd", ,"ContractData", A45, "HIgh",, "T"),"")) -> 353.55 | N45: =IF(C45="","",IFERROR(RTD("cqg.rtd", ,"ContractData",A45, "LOw",, "T"),"")) -> 346.4 | O45: =IF(C45="","",IFERROR(RTD("cqg.rtd", ,"ContractData",A45, "T_CVol",, "T"),"")) -> 33585.69615 | Q45: =IFERROR(O45/RTD("cqg.rtd",,"StudyData",A45, "MA", "InputChoice=Vol,MAType=Sim,Period=21", "MA","D","-1","all",,,,"T"),"") -> 0.0431855065 | R45: =IVE!AH12 -> https://finance.yahoo.com/quote/WST
A46: =TRIM(IVE!AC13) -> S.US.MCK | B46: News | C46: =IFERROR(PROPER(RTD("cqg.rtd", ,"ContractData",A46, "LongDescription",, "T"))&" ("&RIGHT(A46,LEN(A46)-5)&")","") -> Mckesson Corporation (MCK) | H46: =IF(C46="","",IFERROR(RTD("cqg.rtd", ,"ContractData",A46, "LastTradeToday",, "T"),"")) -> 867.29 | I46: =IF(C46="","",IFERROR(RTD("cqg.rtd", ,"ContractData",A46, "NetLastTradeToday",, "T"),"")) -> -11.44 | J46: =IFERROR(RTD("cqg.rtd", ,"ContractData",A46, "PerCentNetLastTrade",, "T")/100,"") -> -0.01301878848 | K46: =IFERROR(I46/RTD("cqg.rtd",,"StudyData",A46, "ATR", "MaType=Sim,Period=10", "ATR","D","-1","ALL",,,"FALSE","T")/100,"") -> -0.003378518059 | L46: =IF(C46="","",IFERROR(RTD("cqg.rtd", ,"ContractData",A46, "OPen",, "T"),"")) -> 873.09 | M46: =IF(C46="","",IFERROR(RTD("cqg.rtd", ,"ContractData", A46, "HIgh",, "T"),"")) -> 875.46 | N46: =IF(C46="","",IFERROR(RTD("cqg.rtd", ,"ContractData",A46, "LOw",, "T"),"")) -> 860.09 | O46: =IF(C46="","",IFERROR(RTD("cqg.rtd", ,"ContractData",A46, "T_CVol",, "T"),"")) -> 137986.0687 | Q46: =IFERROR(O46/RTD("cqg.rtd",,"StudyData",A46, "MA", "InputChoice=Vol,MAType=Sim,Period=21", "MA","D","-1","all",,,,"T"),"") -> 0.1347508559 | R46: =IVE!AH13 -> https://finance.yahoo.com/quote/MCK
A47: =TRIM(IVE!AC14) -> S.US.APA | B47: News | C47: =IFERROR(PROPER(RTD("cqg.rtd", ,"ContractData",A47, "LongDescription",, "T"))&" ("&RIGHT(A47,LEN(A47)-5)&")","") -> Apa Corporation Cmn (APA) | H47: =IF(C47="","",IFERROR(RTD("cqg.rtd", ,"ContractData",A47, "LastTradeToday",, "T"),"")) -> 39.5 | I47: =IF(C47="","",IFERROR(RTD("cqg.rtd", ,"ContractData",A47, "NetLastTradeToday",, "T"),"")) -> -0.47 | J47: =IFERROR(RTD("cqg.rtd", ,"ContractData",A47, "PerCentNetLastTrade",, "T")/100,"") -> -0.01175881911 | K47: =IFERROR(I47/RTD("cqg.rtd",,"StudyData",A47, "ATR", "MaType=Sim,Period=10", "ATR","D","-1","ALL",,,"FALSE","T")/100,"") -> -0.002871105681 | L47: =IF(C47="","",IFERROR(RTD("cqg.rtd", ,"ContractData",A47, "OPen",, "T"),"")) -> 39.4 | M47: =IF(C47="","",IFERROR(RTD("cqg.rtd", ,"ContractData", A47, "HIgh",, "T"),"")) -> 39.78 | N47: =IF(C47="","",IFERROR(RTD("cqg.rtd", ,"ContractData",A47, "LOw",, "T"),"")) -> 39.08 | O47: =IF(C47="","",IFERROR(RTD("cqg.rtd", ,"ContractData",A47, "T_CVol",, "T"),"")) -> 552021.8181 | Q47: =IFERROR(O47/RTD("cqg.rtd",,"StudyData",A47, "MA", "InputChoice=Vol,MAType=Sim,Period=21", "MA","D","-1","all",,,,"T"),"") -> 0.0979025035 | R47: =IVE!AH14 -> https://finance.yahoo.com/quote/APA
A48: =TRIM(IVE!AC15) -> S.US.HAL | B48: News | C48: =IFERROR(PROPER(RTD("cqg.rtd", ,"ContractData",A48, "LongDescription",, "T"))&" ("&RIGHT(A48,LEN(A48)-5)&")","") -> Halliburton Company (HAL) | H48: =IF(C48="","",IFERROR(RTD("cqg.rtd", ,"ContractData",A48, "LastTradeToday",, "T"),"")) -> 32.93 | I48: =IF(C48="","",IFERROR(RTD("cqg.rtd", ,"ContractData",A48, "NetLastTradeToday",, "T"),"")) -> -0.36 | J48: =IFERROR(RTD("cqg.rtd", ,"ContractData",A48, "PerCentNetLastTrade",, "T")/100,"") -> -0.01081405828 | K48: =IFERROR(I48/RTD("cqg.rtd",,"StudyData",A48, "ATR", "MaType=Sim,Period=10", "ATR","D","-1","ALL",,,"FALSE","T")/100,"") -> -0.003977900552 | L48: =IF(C48="","",IFERROR(RTD("cqg.rtd", ,"ContractData",A48, "OPen",, "T"),"")) -> 32.89 | M48: =IF(C48="","",IFERROR(RTD("cqg.rtd", ,"ContractData", A48, "HIgh",, "T"),"")) -> 33.24 | N48: =IF(C48="","",IFERROR(RTD("cqg.rtd", ,"ContractData",A48, "LOw",, "T"),"")) -> 32.68 | O48: =IF(C48="","",IFERROR(RTD("cqg.rtd", ,"ContractData",A48, "T_CVol",, "T"),"")) -> 1126129.476 | Q48: =IFERROR(O48/RTD("cqg.rtd",,"StudyData",A48, "MA", "InputChoice=Vol,MAType=Sim,Period=21", "MA","D","-1","all",,,,"T"),"") -> 0.09085563331 | R48: =IVE!AH15 -> https://finance.yahoo.com/quote/HAL
B49: Designed by Thom Hartle | F49: From their website: "The fund provides targeted exposure to the U.S large-cap value stocks." | Z49: =Z52 -> 77% of the stocks in the ETF are higher today
Z51: =IVE!B449 -> 0.7729357798 | AA51: of the stocks in the ETF are higher today
Z52: =TEXT(Display!Z51,"0%")&" "&Display!AA51 -> 77% of the stocks in the ETF are higher today

Sheet IVE (hidden)
A1: =IF(Symbols!A1="","",Symbols!A1) -> S.US.A | B1: =IF(A1="","",IF(J1>0,1,0)) -> 1 | C1: =A1 -> S.US.A | D1: =IF(A1="","",RTD("cqg.rtd", ,"ContractData",C1, "LongDescription",, "T")) -> Agilent Technologies | F1: =("$J$"&"1"&":$J$"&A449) -> $J$1:$J$436 | H1: =IF(A1="","",RTD("cqg.rtd", ,"ContractData",C1, "LastTradeToday",, "T")) -> 149.19 | I1: =IF(A1="","",RTD("cqg.rtd", ,"ContractData",C1, "NetLastTradeToday",, "T")) -> 0.95 | J1: =IF(A1="","",IFERROR(RTD("cqg.rtd", ,"ContractData",C1, "PerCentNetLastTrade",, "T")/100,"")) -> 0.006408526713 | K1: =IF(A1="","",RTD("cqg.rtd", ,"ContractData", C1, "T_CVol",, "T")) -> 162979.6543 | L1: 1 | M1: =IFERROR(RANK($J1,INDIRECT(("$J$"&"1"&":$J$"&$A$449)))+COUNTIF($J$1:J1,J1)-1,"") -> 239 | N1: =C1 -> S.US.A | O1: =IFERROR(VLOOKUP($L1,$M$1:$N$437,2,FALSE),"") -> S.US.SMCI | P1: =IF(O1="","",RTD("cqg.rtd", ,"ContractData",O1, "LongDescription",, "T")) -> Super Micro Computer | Q1: =IFERROR(RTD("cqg.rtd", ,"ContractData",O1, "PerCentNetLastTrade",, "T")/100,"") -> 0.1060888062 | R1: =IFERROR("https://finance.yahoo.com/quote/"&RIGHT(O1,(LEN(O1)-5)),"") -> https://finance.yahoo.com/quote/SMCI | T1: =IF(Q1>=0,Q1,NA()) -> 0.1060888062 | U1: =IFERROR(IF(Q1>=0,NA(),-1*Q1),"") ->  | W1: =IF(Q1="","",IF(Q1<0,"",IFERROR(PROPER(RTD("cqg.rtd", ,"ContractData",O1, "LongDescription",, "T")),""))) -> Super Micro Computer | Z1: =IF(W1="","",IFERROR(T1,Q1)) -> 0.1060888062 | AA1: =MIN(J1:J350) -> -0.06990636099 | AB1: =IFERROR(VLOOKUP(AA1,J1:O437,4,FALSE),"") -> 436 | AC1: =IF(AB1="","",VLOOKUP($AB1,$M$1:$N$437,2,FALSE)) -> S.US.CSCO | AD1: =IF(RTD("cqg.rtd", ,"ContractData",AC1, "PerCentNetLastTrade",, "T")>0,"",IFERROR(RTD("cqg.rtd", ,"ContractData",AC1, "PerCentNetLastTrade",, "T")/100,"")) -> -0.06990636099 | AE1: =IF(AD1>0,"",IFERROR(PROPER(RTD("cqg.rtd", ,"ContractData",AC1, "LongDescription",, "T")),"")) -> Cisco Systems Inc. | AF1: ="" ->  | AG1: =IF(AD1>0,"",IFERROR(AD1*-1,"")) -> 0.06990636099 | AH1: =IFERROR("https://finance.yahoo.com/quote/"&RIGHT(AC1,(LEN(AC1)-5)),"") -> https://finance.yahoo.com/quote/CSCO
A2: =IF(Symbols!A2="","",Symbols!A2) -> S.US.AAPL | B2: =IF(A2="","",IF(J2>0,1,0)) -> 1 | C2: =A2 -> S.US.AAPL | D2: =IF(A2="","",RTD("cqg.rtd", ,"ContractData",C2, "LongDescription",, "T")) -> APPLE INC. | H2: =IF(A2="","",RTD("cqg.rtd", ,"ContractData",C2, "LastTradeToday",, "T")) -> 305.13 | I2: =IF(A2="","",RTD("cqg.rtd", ,"ContractData",C2, "NetLastTradeToday",, "T")) -> 2.85 | J2: =IF(A2="","",IFERROR(RTD("cqg.rtd", ,"ContractData",C2, "PerCentNetLastTrade",, "T")/100,"")) -> 0.009429280397 | K2: =IF(A2="","",RTD("cqg.rtd", ,"ContractData", C2, "T_CVol",, "T")) -> 11020627.69 | L2: =L1+1 -> 2 | M2: =IFERROR(RANK($J2,INDIRECT(("$J$"&"1"&":$J$"&$A$449)))+COUNTIF($J$1:J2,J2)-1,"") -> 177 | N2: =C2 -> S.US.AAPL | O2: =IFERROR(VLOOKUP($L2,$M$1:$N$437,2,FALSE),"") -> S.US.WDC | P2: =IF(O2="","",RTD("cqg.rtd", ,"ContractData",O2, "LongDescription",, "T")) -> WESTERN DIGITAL CP | Q2: =IFERROR(RTD("cqg.rtd", ,"ContractData",O2, "PerCentNetLastTrade",, "T")/100,"") -> 0.06417088747 | R2: =IFERROR("https://finance.yahoo.com/quote/"&RIGHT(O2,(LEN(O2)-5)),"") -> https://finance.yahoo.com/quote/WDC | T2: =IF(Q2>=0,Q2,NA()) -> 0.06417088747 | U2: =IFERROR(IF(Q2>=0,NA(),-1*Q2),"") ->  | W2: =IF(Q2="","",IF(Q2<0,"",IFERROR(PROPER(RTD("cqg.rtd", ,"ContractData",O2, "LongDescription",, "T")),""))) -> Western Digital Cp | Z2: =IF(W2="","",IFERROR(T2,Q2)) -> 0.06417088747 | AB2: =IFERROR(AB1-1,"") -> 435 | AC2: =IF(AB2="","",VLOOKUP($AB2,$M$1:$N$437,2,FALSE)) -> S.US.DVN | AD2: =IF(RTD("cqg.rtd", ,"ContractData",AC2, "PerCentNetLastTrade",, "T")>0,"",IFERROR(RTD("cqg.rtd", ,"ContractData",AC2, "PerCentNetLastTrade",, "T")/100,"")) -> -0.01850200624 | AE2: =IF(AD2>0,"",IFERROR(PROPER(RTD("cqg.rtd", ,"ContractData",AC2, "LongDescription",, "T")),"")) -> Devon Energy Corp | AF2: ="" ->  | AG2: =IF(AD2>0,"",IFERROR(AD2*-1,"")) -> 0.01850200624 | AH2: =IFERROR("https://finance.yahoo.com/quote/"&RIGHT(AC2,(LEN(AC2)-5)),"") -> https://finance.yahoo.com/quote/DVN
A3: =IF(Symbols!A3="","",Symbols!A3) -> S.US.ABBV | B3: 1 | C3: S.US.ABBV | D3: =IF(A3="","",RTD("cqg.rtd", ,"ContractData",C3, "LongDescription",, "T")) -> AbbVie Inc. | H3: =IF(A3="","",RTD("cqg.rtd", ,"ContractData",C3, "LastTradeToday",, "T")) -> 253.09 | I3: =IF(A3="","",RTD("cqg.rtd", ,"ContractData",C3, "NetLastTradeToday",, "T")) -> 4.33 | J3: =IF(A3="","",IFERROR(RTD("cqg.rtd", ,"ContractData",C3, "PerCentNetLastTrade",, "T")/100,"")) -> 0.01740633542 | K3: =IF(A3="","",RTD("cqg.rtd", ,"ContractData", C3, "T_CVol",, "T")) -> 827020.1488 | L3: =L2+1 -> 3 | M3: =IFERROR(RANK($J3,INDIRECT(("$J$"&"1"&":$J$"&$A$449)))+COUNTIF($J$1:J3,J3)-1,"") -> 79 | N3: S.US.ABBV | O3: S.US.PSKY | P3: =IF(O3="","",RTD("cqg.rtd", ,"ContractData",O3, "LongDescription",, "T")) -> PARAMOUNT SKYDN B | Q3: =IFERROR(RTD("cqg.rtd", ,"ContractData",O3, "PerCentNetLastTrade",, "T")/100,"") -> 0.05263157895 | R3: =IFERROR("https://finance.yahoo.com/quote/"&RIGHT(O3,(LEN(O3)-5)),"") -> https://finance.yahoo.com/quote/PSKY | T3: 0.05263157895 | W3: =IF(Q3="","",IF(Q3<0,"",IFERROR(PROPER(RTD("cqg.rtd", ,"ContractData",O3, "LongDescription",, "T")),""))) -> Paramount Skydn B | Z3: 0.05263157895 | AB3: =IFERROR(AB2-1,"") -> 434 | AC3: S.US.EXE | AD3: =IF(RTD("cqg.rtd", ,"ContractData",AC3, "PerCentNetLastTrade",, "T")>0,"",IFERROR(RTD("cqg.rtd", ,"ContractData",AC3, "PerCentNetLastTrade",, "T")/100,"")) -> -0.0178645617 | AE3: =IF(AD3>0,"",IFERROR(PROPER(RTD("cqg.rtd", ,"ContractData",AC3, "LongDescription",, "T")),"")) -> Expand Energy Cor Cs | AF3: ="" ->  | AG3: 0.0178645617 | AH3: https://finance.yahoo.com/quote/EXE
A4: =IF(Symbols!A4="","",Symbols!A4) -> S.US.ABNB | B4: 1 | C4: S.US.ABNB | D4: =IF(A4="","",RTD("cqg.rtd", ,"ContractData",C4, "LongDescription",, "T")) -> Airbnb, Inc. Class A | H4: =IF(A4="","",RTD("cqg.rtd", ,"ContractData",C4, "LastTradeToday",, "T")) -> 181.49 | I4: =IF(A4="","",RTD("cqg.rtd", ,"ContractData",C4, "NetLastTradeToday",, "T")) -> 1.4 | J4: =IF(A4="","",IFERROR(RTD("cqg.rtd", ,"ContractData",C4, "PerCentNetLastTrade",, "T")/100,"")) -> 0.007773890832 | K4: =IF(A4="","",RTD("cqg.rtd", ,"ContractData", C4, "T_CVol",, "T")) -> 788728.314 | L4: 4 | M4: =IFERROR(RANK($J4,INDIRECT(("$J$"&"1"&":$J$"&$A$449)))+COUNTIF($J$1:J4,J4)-1,"") -> 214 | N4: S.US.ABNB | O4: S.US.HPE | P4: =IF(O4="","",RTD("cqg.rtd", ,"ContractData",O4, "LongDescription",, "T")) -> Hewlett Packard Enterprise Company | Q4: =IFERROR(RTD("cqg.rtd", ,"ContractData",O4, "PerCentNetLastTrade",, "T")/100,"") -> 0.05068889267 | R4: https://finance.yahoo.com/quote/HPE | T4: 0.05068889267 | W4: =IF(Q4="","",IF(Q4<0,"",IFERROR(PROPER(RTD("cqg.rtd", ,"ContractData",O4, "LongDescription",, "T")),""))) -> Hewlett Packard Enterprise Company | Z4: 0.05068889267 | AB4: 433 | AC4: S.US.BKR | AD4: =IF(RTD("cqg.rtd", ,"ContractData",AC4, "PerCentNetLastTrade",, "T")>0,"",IFERROR(RTD("cqg.rtd", ,"ContractData",AC4, "PerCentNetLastTrade",, "T")/100,"")) -> -0.01757934039 | AE4: =IF(AD4>0,"",IFERROR(PROPER(RTD("cqg.rtd", ,"ContractData",AC4, "LongDescription",, "T")),"")) -> Baker Hughes Co | AF4: ="" ->  | AG4: 0.01757934039 | AH4: https://finance.yahoo.com/quote/BKR
A5: =IF(Symbols!A5="","",Symbols!A5) -> S.US.ABT | B5: 1 | C5: S.US.ABT | D5: =IF(A5="","",RTD("cqg.rtd", ,"ContractData",C5, "LongDescription",, "T")) -> Abbott Laboratories | H5: =IF(A5="","",RTD("cqg.rtd", ,"ContractData",C5, "LastTradeToday",, "T")) -> 112.22 | I5: =IF(A5="","",RTD("cqg.rtd", ,"ContractData",C5, "NetLastTradeToday",, "T")) -> 1.31 | J5: =IF(A5="","",IFERROR(RTD("cqg.rtd", ,"ContractData",C5, "PerCentNetLastTrade",, "T")/100,"")) -> 0.0118113786 | K5: =IF(A5="","",RTD("cqg.rtd", ,"ContractData", C5, "T_CVol",, "T")) -> 1208221.626 | L5: 5 | M5: =IFERROR(RANK($J5,INDIRECT(("$J$"&"1"&":$J$"&$A$449)))+COUNTIF($J$1:J5,J5)-1,"") -> 138 | N5: S.US.ABT | O5: S.US.MRVL | P5: =IF(O5="","",RTD("cqg.rtd", ,"ContractData",O5, "LongDescription",, "T")) -> MARVELL TECH INC CMN | Q5: =IFERROR(RTD("cqg.rtd", ,"ContractData",O5, "PerCentNetLastTrade",, "T")/100,"") -> 0.04892205638 | R5: =IFERROR("https://finance.yahoo.com/quote/"&RIGHT(O5,(LEN(O5)-5)),"") -> https://finance.yahoo.com/quote/MRVL | T5: 0.04892205638 | W5: =IF(Q5="","",IF(Q5<0,"",IFERROR(PROPER(RTD("cqg.rtd", ,"ContractData",O5, "LongDescription",, "T")),""))) -> Marvell Tech Inc Cmn | Z5: 0.04892205638 | AB5: 432 | AC5: S.US.CF | AD5: =IF(RTD("cqg.rtd", ,"ContractData",AC5, "PerCentNetLastTrade",, "T")>0,"",IFERROR(RTD("cqg.rtd", ,"ContractData",AC5, "PerCentNetLastTrade",, "T")/100,"")) -> -0.01616531956 | AE5: =IF(AD5>0,"",IFERROR(PROPER(RTD("cqg.rtd", ,"ContractData",AC5, "LongDescription",, "T")),"")) -> Cf Industries Holdings, Inc | AF5: ="" ->  | AG5: 0.01616531956 | AH5: https://finance.yahoo.com/quote/CF
A6: =IF(Symbols!A6="","",Symbols!A6) -> S.US.ACGL | B6: 1 | C6: S.US.ACGL | D6: =IF(A6="","",RTD("cqg.rtd", ,"ContractData",C6, "LongDescription",, "T")) -> Arch Capital Grp Ltd | H6: =IF(A6="","",RTD("cqg.rtd", ,"ContractData",C6, "LastTradeToday",, "T")) -> 97.87 | I6: =IF(A6="","",RTD("cqg.rtd", ,"ContractData",C6, "NetLastTradeToday",, "T")) -> 0.58 | J6: =IF(A6="","",IFERROR(RTD("cqg.rtd", ,"ContractData",C6, "PerCentNetLastTrade",, "T")/100,"")) -> 0.005961558228 | K6: =IF(A6="","",RTD("cqg.rtd", ,"ContractData", C6, "T_CVol",, "T")) -> 130262.3261 | L6: 6 | M6: =IFERROR(RANK($J6,INDIRECT(("$J$"&"1"&":$J$"&$A$449)))+COUNTIF($J$1:J6,J6)-1,"") -> 252 | N6: S.US.ACGL | O6: S.US.INTC | P6: =IF(O6="","",RTD("cqg.rtd", ,"ContractData",O6, "LongDescription",, "T")) -> INTEL CORP | Q6: =IFERROR(RTD("cqg.rtd", ,"ContractData",O6, "PerCentNetLastTrade",, "T")/100,"") -> 0.04497275879 | R6: =IFERROR("https://finance.yahoo.com/quote/"&RIGHT(O6,(LEN(O6)-5)),"") -> https://finance.yahoo.com/quote/INTC | T6: 0.04497275879 | W6: =IF(Q6="","",IF(Q6<0,"",IFERROR(PROPER(RTD("cqg.rtd", ,"ContractData",O6, "LongDescription",, "T")),""))) -> Intel Corp | Z6: 0.04497275879 | AB6: 431 | AC6: S.US.FCX | AD6: =IF(RTD("cqg.rtd", ,"ContractData",AC6, "PerCentNetLastTrade",, "T")>0,"",IFERROR(RTD("cqg.rtd", ,"ContractData",AC6, "PerCentNetLastTrade",, "T")/100,"")) -> -0.01473562554 | AE6: =IF(AD6>0,"",IFERROR(PROPER(RTD("cqg.rtd", ,"ContractData",AC6, "LongDescription",, "T")),"")) -> Freeport-Mcmoran Inc. | AF6: ="" ->  | AG6: 0.01473562554 | AH6: https://finance.yahoo.com/quote/FCX
A7: =IF(Symbols!A7="","",Symbols!A7) -> S.US.ACN | B7: 1 | C7: S.US.ACN | D7: =IF(A7="","",RTD("cqg.rtd", ,"ContractData",C7, "LongDescription",, "T")) -> Accenture PLC Ireland | H7: =IF(A7="","",RTD("cqg.rtd", ,"ContractData",C7, "LastTradeToday",, "T")) -> 183.58 | I7: =IF(A7="","",RTD("cqg.rtd", ,"ContractData",C7, "NetLastTradeToday",, "T")) -> 3.44 | J7: =IF(A7="","",IFERROR(RTD("cqg.rtd", ,"ContractData",C7, "PerCentNetLastTrade",, "T")/100,"")) -> 0.01909625847 | K7: =IF(A7="","",RTD("cqg.rtd", ,"ContractData", C7, "T_CVol",, "T")) -> 961645.1489 | L7: 7 | M7: =IFERROR(RANK($J7,INDIRECT(("$J$"&"1"&":$J$"&$A$449)))+COUNTIF($J$1:J7,J7)-1,"") -> 63 | N7: S.US.ACN | O7: S.US.KDP | P7: =IF(O7="","",RTD("cqg.rtd", ,"ContractData",O7, "LongDescription",, "T")) -> KEURIG DR PEPPER INC | Q7: =IFERROR(RTD("cqg.rtd", ,"ContractData",O7, "PerCentNetLastTrade",, "T")/100,"") -> 0.04397834912 | R7: https://finance.yahoo.com/quote/KDP | T7: 0.04397834912 | W7: =IF(Q7="","",IF(Q7<0,"",IFERROR(PROPER(RTD("cqg.rtd", ,"ContractData",O7, "LongDescription",, "T")),""))) -> Keurig Dr Pepper Inc | Z7: 0.04397834912 | AB7: 430 | AC7: S.US.COP | AD7: =IF(RTD("cqg.rtd", ,"ContractData",AC7, "PerCentNetLastTrade",, "T")>0,"",IFERROR(RTD("cqg.rtd", ,"ContractData",AC7, "PerCentNetLastTrade",, "T")/100,"")) -> -0.01437549097 | AE7: =IF(AD7>0,"",IFERROR(PROPER(RTD("cqg.rtd", ,"ContractData",AC7, "LongDescription",, "T")),"")) -> Conocophillips | AF7: ="" ->  | AG7: 0.01437549097 | AH7: https://finance.yahoo.com/quote/COP
A8: =IF(Symbols!A8="","",Symbols!A8) -> S.US.ADBE | B8: 1 | C8: S.US.ADBE | D8: =IF(A8="","",RTD("cqg.rtd", ,"ContractData",C8, "LongDescription",, "T")) -> Adobe Inc. | H8: =IF(A8="","",RTD("cqg.rtd", ,"ContractData",C8, "LastTradeToday",, "T")) -> 261.72 | I8: =IF(A8="","",RTD("cqg.rtd", ,"ContractData",C8, "NetLastTradeToday",, "T")) -> 2.97 | J8: =IF(A8="","",IFERROR(RTD("cqg.rtd", ,"ContractData",C8, "PerCentNetLastTrade",, "T")/100,"")) -> 0.01147826087 | K8: =IF(A8="","",RTD("cqg.rtd", ,"ContractData", C8, "T_CVol",, "T")) -> 524141.6445 | L8: 8 | M8: =IFERROR(RANK($J8,INDIRECT(("$J$"&"1"&":$J$"&$A$449)))+COUNTIF($J$1:J8,J8)-1,"") -> 147 | N8: S.US.ADBE | O8: S.US.CSGP | P8: =IF(O8="","",RTD("cqg.rtd", ,"ContractData",O8, "LongDescription",, "T")) -> COSTAR GROUP INC ## | Q8: =IFERROR(RTD("cqg.rtd", ,"ContractData",O8, "PerCentNetLastTrade",, "T")/100,"") -> 0.03967213115 | R8: https://finance.yahoo.com/quote/CSGP | T8: 0.03967213115 | W8: =IF(Q8="","",IF(Q8<0,"",IFERROR(PROPER(RTD("cqg.rtd", ,"ContractData",O8, "LongDescription",, "T")),""))) -> Costar Group Inc ## | Z8: 0.03967213115 | AB8: 429 | AC8: S.US.EMR | AD8: =IF(RTD("cqg.rtd", ,"ContractData",AC8, "PerCentNetLastTrade",, "T")>0,"",IFERROR(RTD("cqg.rtd", ,"ContractData",AC8, "PerCentNetLastTrade",, "T")/100,"")) -> -0.01391941392 | AE8: =IF(AD8>0,"",IFERROR(PROPER(RTD("cqg.rtd", ,"ContractData",AC8, "LongDescription",, "T")),"")) -> Emerson Electric Co | AF8: ="" ->  | AG8: 0.01391941392 | AH8: https://finance.yahoo.com/quote/EMR
A9: =IF(Symbols!A9="","",Symbols!A9) -> S.US.ADI | B9: 1 | C9: S.US.ADI | D9: =IF(A9="","",RTD("cqg.rtd", ,"ContractData",C9, "LongDescription",, "T")) -> Analog Devices Inc | H9: =IF(A9="","",RTD("cqg.rtd", ,"ContractData",C9, "LastTradeToday",, "T")) -> 387.45 | I9: =IF(A9="","",RTD("cqg.rtd", ,"ContractData",C9, "NetLastTradeToday",, "T")) -> 3.02 | J9: =IF(A9="","",IFERROR(RTD("cqg.rtd", ,"ContractData",C9, "PerCentNetLastTrade",, "T")/100,"")) -> 0.007855786489 | K9: =IF(A9="","",RTD("cqg.rtd", ,"ContractData", C9, "T_CVol",, "T")) -> 289174.7218 | L9: 9 | M9: =IFERROR(RANK($J9,INDIRECT(("$J$"&"1"&":$J$"&$A$449)))+COUNTIF($J$1:J9,J9)-1,"") -> 211 | N9: S.US.ADI | O9: S.US.ALB | P9: =IF(O9="","",RTD("cqg.rtd", ,"ContractData",O9, "LongDescription",, "T")) -> Albemarle Corporation | Q9: =IFERROR(RTD("cqg.rtd", ,"ContractData",O9, "PerCentNetLastTrade",, "T")/100,"") -> 0.03662147421 | R9: https://finance.yahoo.com/quote/ALB | T9: 0.03662147421 | W9: =IF(Q9="","",IF(Q9<0,"",IFERROR(PROPER(RTD("cqg.rtd", ,"ContractData",O9, "LongDescription",, "T")),""))) -> Albemarle Corporation | Z9: 0.03662147421 | AB9: 428 | AC9: S.US.SLB | AD9: =IF(RTD("cqg.rtd", ,"ContractData",AC9, "PerCentNetLastTrade",, "T")>0,"",IFERROR(RTD("cqg.rtd", ,"ContractData",AC9, "PerCentNetLastTrade",, "T")/100,"")) -> -0.0136856111 | AE9: =IF(AD9>0,"",IFERROR(PROPER(RTD("cqg.rtd", ,"ContractData",AC9, "LongDescription",, "T")),"")) -> Slb | AF9: ="" ->  | AG9: 0.0136856111 | AH9: https://finance.yahoo.com/quote/SLB
A10: =IF(Symbols!A10="","",Symbols!A10) -> S.US.ADM | B10: 1 | C10: S.US.ADM | D10: =IF(A10="","",RTD("cqg.rtd", ,"ContractData",C10, "LongDescription",, "T")) -> Archer-Daniels-Midland | H10: =IF(A10="","",RTD("cqg.rtd", ,"ContractData",C10, "LastTradeToday",, "T")) -> 80.32 | I10: =IF(A10="","",RTD("cqg.rtd", ,"ContractData",C10, "NetLastTradeToday",, "T")) -> 0.59 | J10: =IF(A10="","",IFERROR(RTD("cqg.rtd", ,"ContractData",C10, "PerCentNetLastTrade",, "T")/100,"")) -> 0.007399974915 | K10: =IF(A10="","",RTD("cqg.rtd", ,"ContractData", C10, "T_CVol",, "T")) -> 338864.13 | L10: 10 | M10: =IFERROR(RANK($J10,INDIRECT(("$J$"&"1"&":$J$"&$A$449)))+COUNTIF($J$1:J10,J10)-1,"") -> 222 | N10: S.US.ADM | O10: S.US.HPQ | P10: =IF(O10="","",RTD("cqg.rtd", ,"ContractData",O10, "LongDescription",, "T")) -> Hewlett-Packard Company | Q10: =IFERROR(RTD("cqg.rtd", ,"ContractData",O10, "PerCentNetLastTrade",, "T")/100,"") -> 0.03551912568 | R10: =IFERROR("https://finance.yahoo.com/quote/"&RIGHT(O10,(LEN(O10)-5)),"") -> https://finance.yahoo.com/quote/HPQ | T10: 0.03551912568 | W10: =IF(Q10="","",IF(Q10<0,"",IFERROR(PROPER(RTD("cqg.rtd", ,"ContractData",O10, "LongDescription",, "T")),""))) -> Hewlett-Packard Company | Z10: 0.03551912568 | AB10: 427 | AC10: S.US.OXY | AD10: =IF(RTD("cqg.rtd", ,"ContractData",AC10, "PerCentNetLastTrade",, "T")>0,"",IFERROR(RTD("cqg.rtd", ,"ContractData",AC10, "PerCentNetLastTrade",, "T")/100,"")) -> -0.01349274125 | AE10: =IF(AD10>0,"",IFERROR(PROPER(RTD("cqg.rtd", ,"ContractData",AC10, "LongDescription",, "T")),"")) -> Occidental Petroleum | AF10: ="" ->  | AG10: 0.01349274125 | AH10: https://finance.yahoo.com/quote/OXY
A11: =IF(Symbols!A11="","",Symbols!A11) -> S.US.ADP | B11: 1 | C11: S.US.ADP | D11: =IF(A11="","",RTD("cqg.rtd", ,"ContractData",C11, "LongDescription",, "T")) -> AUTOMATIC DATA PROCS | H11: =IF(A11="","",RTD("cqg.rtd", ,"ContractData",C11, "LastTradeToday",, "T")) -> 271.41 | I11: =IF(A11="","",RTD("cqg.rtd", ,"ContractData",C11, "NetLastTradeToday",, "T")) -> 2.08 | J11: =IF(A11="","",IFERROR(RTD("cqg.rtd", ,"ContractData",C11, "PerCentNetLastTrade",, "T")/100,"")) -> 0.007722867857 | K11: =IF(A11="","",RTD("cqg.rtd", ,"ContractData", C11, "T_CVol",, "T")) -> 190896.2629 | L11: 11 | M11: =IFERROR(RANK($J11,INDIRECT(("$J$"&"1"&":$J$"&$A$449)))+COUNTIF($J$1:J11,J11)-1,"") -> 217 | N11: S.US.ADP | O11: S.US.AKAM | P11: =IF(O11="","",RTD("cqg.rtd", ,"ContractData",O11, "LongDescription",, "T")) -> AKAMAI TECHNOLOGIES | Q11: =IFERROR(RTD("cqg.rtd", ,"ContractData",O11, "PerCentNetLastTrade",, "T")/100,"") -> 0.03437041863 | R11: https://finance.yahoo.com/quote/AKAM | T11: 0.03437041863 | W11: =IF(Q11="","",IF(Q11<0,"",IFERROR(PROPER(RTD("cqg.rtd", ,"ContractData",O11, "LongDescription",, "T")),""))) -> Akamai Technologies | Z11: 0.03437041863 | AB11: 426 | AC11: S.US.FANG | AD11: =IF(RTD("cqg.rtd", ,"ContractData",AC11, "PerCentNetLastTrade",, "T")>0,"",IFERROR(RTD("cqg.rtd", ,"ContractData",AC11, "PerCentNetLastTrade",, "T")/100,"")) -> -0.01324437363 | AE11: =IF(AD11>0,"",IFERROR(PROPER(RTD("cqg.rtd", ,"ContractData",AC11, "LongDescription",, "T")),"")) -> Diamondback Energy | AF11: ="" ->  | AG11: 0.01324437363 | AH11: https://finance.yahoo.com/quote/FANG
A12: =IF(Symbols!A12="","",Symbols!A12) -> S.US.ADSK | B12: 0 | C12: S.US.ADSK | D12: =IF(A12="","",RTD("cqg.rtd", ,"ContractData",C12, "LongDescription",, "T")) -> Autodesk Inc | H12: =IF(A12="","",RTD("cqg.rtd", ,"ContractData",C12, "LastTradeToday",, "T")) -> 249.11 | I12: =IF(A12="","",RTD("cqg.rtd", ,"ContractData",C12, "NetLastTradeToday",, "T")) -> -0.4 | J12: =IF(A12="","",IFERROR(RTD("cqg.rtd", ,"ContractData",C12, "PerCentNetLastTrade",, "T")/100,"")) -> -0.001603142159 | K12: =IF(A12="","",RTD("cqg.rtd", ,"ContractData", C12, "T_CVol",, "T")) -> 214305.7099 | L12: 12 | M12: =IFERROR(RANK($J12,INDIRECT(("$J$"&"1"&":$J$"&$A$449)))+COUNTIF($J$1:J12,J12)-1,"") -> 359 | N12: S.US.ADSK | O12: S.US.DELL | P12: =IF(O12="","",RTD("cqg.rtd", ,"ContractData",O12, "LongDescription",, "T")) -> Dell Technologies Inc. | Q12: =IFERROR(RTD("cqg.rtd", ,"ContractData",O12, "PerCentNetLastTrade",, "T")/100,"") -> 0.0342002064 | R12: https://finance.yahoo.com/quote/DELL | T12: 0.0342002064 | W12: =IF(Q12="","",IF(Q12<0,"",IFERROR(PROPER(RTD("cqg.rtd", ,"ContractData",O12, "LongDescription",, "T")),""))) -> Dell Technologies Inc. | Z12: 0.0342002064 | AB12: 425 | AC12: S.US.WST | AD12: =IF(RTD("cqg.rtd", ,"ContractData",AC12, "PerCentNetLastTrade",, "T")>0,"",IFERROR(RTD("cqg.rtd", ,"ContractData",AC12, "PerCentNetLastTrade",, "T")/100,"")) -> -0.01308580999 | AE12: =IF(AD12>0,"",IFERROR(PROPER(RTD("cqg.rtd", ,"ContractData",AC12, "LongDescription",, "T")),"")) -> West Pharmaceuticals Svcs Inc | AF12: ="" ->  | AG12: 0.01308580999 | AH12: https://finance.yahoo.com/quote/WST
A13: =IF(Symbols!A13="","",Symbols!A13) -> S.US.AEE | B13: 1 | C13: S.US.AEE | D13: =IF(A13="","",RTD("cqg.rtd", ,"ContractData",C13, "LongDescription",, "T")) -> Ameren Corp | H13: =IF(A13="","",RTD("cqg.rtd", ,"ContractData",C13, "LastTradeToday",, "T")) -> 109.47 | I13: =IF(A13="","",RTD("cqg.rtd", ,"ContractData",C13, "NetLastTradeToday",, "T")) -> 0.65 | J13: =IF(A13="","",IFERROR(RTD("cqg.rtd", ,"ContractData",C13, "PerCentNetLastTrade",, "T")/100,"")) -> 0.005973166697 | K13: =IF(A13="","",RTD("cqg.rtd", ,"ContractData", C13, "T_CVol",, "T")) -> 131402.9063 | L13: 13 | M13: =IFERROR(RANK($J13,INDIRECT(("$J$"&"1"&":$J$"&$A$449)))+COUNTIF($J$1:J13,J13)-1,"") -> 251 | N13: S.US.AEE | O13: S.US.BLDR | P13: =IF(O13="","",RTD("cqg.rtd", ,"ContractData",O13, "LongDescription",, "T")) -> Builders FirstSource Inc | Q13: =IFERROR(RTD("cqg.rtd", ,"ContractData",O13, "PerCentNetLastTrade",, "T")/100,"") -> 0.03383510565 | R13: https://finance.yahoo.com/quote/BLDR | T13: 0.03383510565 | W13: =IF(Q13="","",IF(Q13<0,"",IFERROR(PROPER(RTD("cqg.rtd", ,"ContractData",O13, "LongDescription",, "T")),""))) -> Builders Firstsource Inc | Z13: 0.03383510565 | AB13: 424 | AC13: S.US.MCK | AD13: =IF(RTD("cqg.rtd", ,"ContractData",AC13, "PerCentNetLastTrade",, "T")>0,"",IFERROR(RTD("cqg.rtd", ,"ContractData",AC13, "PerCentNetLastTrade",, "T")/100,"")) -> -0.01301878848 | AE13: =IF(AD13>0,"",IFERROR(PROPER(RTD("cqg.rtd", ,"ContractData",AC13, "LongDescription",, "T")),"")) -> Mckesson Corporation | AF13: ="" ->  | AG13: 0.01301878848 | AH13: https://finance.yahoo.com/quote/MCK
A14: =IF(Symbols!A14="","",Symbols!A14) -> S.US.AEP | B14: 1 | C14: S.US.AEP | D14: =IF(A14="","",RTD("cqg.rtd", ,"ContractData",C14, "LongDescription",, "T")) -> AMER ELC PWR CO CMN | H14: =IF(A14="","",RTD("cqg.rtd", ,"ContractData",C14, "LastTradeToday",, "T")) -> 125.49 | I14: =IF(A14="","",RTD("cqg.rtd", ,"ContractData",C14, "NetLastTradeToday",, "T")) -> 0.84 | J14: =IF(A14="","",IFERROR(RTD("cqg.rtd", ,"ContractData",C14, "PerCentNetLastTrade",, "T")/100,"")) -> 0.006738868833 | K14: =IF(A14="","",RTD("cqg.rtd", ,"ContractData", C14, "T_CVol",, "T")) -> 376970.55 | L14: 14 | M14: =IFERROR(RANK($J14,INDIRECT(("$J$"&"1"&":$J$"&$A$449)))+COUNTIF($J$1:J14,J14)-1,"") -> 232 | N14: S.US.AEP | O14: S.US.EQR | P14: =IF(O14="","",RTD("cqg.rtd", ,"ContractData",O14, "LongDescription",, "T")) -> Equity Residential Properties Trust | Q14: =IFERROR(RTD("cqg.rtd", ,"ContractData",O14, "PerCentNetLastTrade",, "T")/100,"") -> 0.03259857187 | R14: https://finance.yahoo.com/quote/EQR | T14: 0.03259857187 | W14: =IF(Q14="","",IF(Q14<0,"",IFERROR(PROPER(RTD("cqg.rtd", ,"ContractData",O14, "LongDescription",, "T")),""))) -> Equity Residential Properties Trust | Z14: 0.03259857187 | AB14: 423 | AC14: S.US.APA | AD14: =IF(RTD("cqg.rtd", ,"ContractData",AC14, "PerCentNetLastTrade",, "T")>0,"",IFERROR(RTD("cqg.rtd", ,"ContractData",AC14, "PerCentNetLastTrade",, "T")/100,"")) -> -0.01175881911 | AE14: =IF(AD14>0,"",IFERROR(PROPER(RTD("cqg.rtd", ,"ContractData",AC14, "LongDescription",, "T")),"")) -> Apa Corporation Cmn | AF14: ="" ->  | AG14: 0.01175881911 | AH14: https://finance.yahoo.com/quote/APA
A15: =IF(Symbols!A15="","",Symbols!A15) -> S.US.AES | B15: 0 | C15: S.US.AES | D15: =IF(A15="","",RTD("cqg.rtd", ,"ContractData",C15, "LongDescription",, "T")) -> AES Corp | H15: =IF(A15="","",RTD("cqg.rtd", ,"ContractData",C15, "LastTradeToday",, "T")) -> 14.71 | I15: =IF(A15="","",RTD("cqg.rtd", ,"ContractData",C15, "NetLastTradeToday",, "T")) -> 0 | J15: =IF(A15="","",IFERROR(RTD("cqg.rtd", ,"ContractData",C15, "PerCentNetLastTrade",, "T")/100,"")) -> 0 | K15: =IF(A15="","",RTD("cqg.rtd", ,"ContractData", C15, "T_CVol",, "T")) -> 445127.0582 | L15: 15 | M15: =IFERROR(RANK($J15,INDIRECT(("$J$"&"1"&":$J$"&$A$449)))+COUNTIF($J$1:J15,J15)-1,"") -> 337 | N15: S.US.AES | O15: S.US.AVB | P15: =IF(O15="","",RTD("cqg.rtd", ,"ContractData",O15, "LongDescription",, "T")) -> AvalonBay Communities, Inc. | Q15: =IFERROR(RTD("cqg.rtd", ,"ContractData",O15, "PerCentNetLastTrade",, "T")/100,"") -> 0.03242672006 | R15: https://finance.yahoo.com/quote/AVB | T15: 0.03242672006 | W15: =IF(Q15="","",IF(Q15<0,"",IFERROR(PROPER(RTD("cqg.rtd", ,"ContractData",O15, "LongDescription",, "T")),""))) -> Avalonbay Communities, Inc. | Z15: 0.03242672006 | AB15: 422 | AC15: S.US.HAL | AD15: =IF(RTD("cqg.rtd", ,"ContractData",AC15, "PerCentNetLastTrade",, "T")>0,"",IFERROR(RTD("cqg.rtd", ,"ContractData",AC15, "PerCentNetLastTrade",, "T")/100,"")) -> -0.01081405828 | AE15: =IF(AD15>0,"",IFERROR(PROPER(RTD("cqg.rtd", ,"ContractData",AC15, "LongDescription",, "T")),"")) -> Halliburton Company | AF15: ="" ->  | AG15: 0.01081405828 | AH15: https://finance.yahoo.com/quote/HAL
A16: =IF(Symbols!A16="","",Symbols!A16) -> S.US.AFL | B16: 1 | C16: S.US.AFL | D16: =IF(A16="","",RTD("cqg.rtd", ,"ContractData",C16, "LongDescription",, "T")) -> AFLAC Inc | H16: =IF(A16="","",RTD("cqg.rtd", ,"ContractData",C16, "LastTradeToday",, "T")) -> 121.52 | I16: =IF(A16="","",RTD("cqg.rtd", ,"ContractData",C16, "NetLastTradeToday",, "T")) -> 0.79 | J16: =IF(A16="","",IFERROR(RTD("cqg.rtd", ,"ContractData",C16, "PerCentNetLastTrade",, "T")/100,"")) -> 0.006543526878 | K16: =IF(A16="","",RTD("cqg.rtd", ,"ContractData", C16, "T_CVol",, "T")) -> 159561.1118 | L16: 16 | M16: =IFERROR(RANK($J16,INDIRECT(("$J$"&"1"&":$J$"&$A$449)))+COUNTIF($J$1:J16,J16)-1,"") -> 237 | N16: S.US.AFL | O16: S.US.KKR
A17: =IF(Symbols!A17="","",Symbols!A17) -> S.US.AIG | B17: 1 | C17: S.US.AIG | D17: =IF(A17="","",RTD("cqg.rtd", ,"ContractData",C17, "LongDescription",, "T")) -> American Intl Group Inc | H17: =IF(A17="","",RTD("cqg.rtd", ,"ContractData",C17, "LastTradeToday",, "T")) -> 76.64 | I17: =IF(A17="","",RTD("cqg.rtd", ,"ContractData",C17, "NetLastTradeToday",, "T")) -> 0.5 | J17: =IF(A17="","",IFERROR(RTD("cqg.rtd", ,"ContractData",C17, "PerCentNetLastTrade",, "T")/100,"")) -> 0.006566850538 | K17: =IF(A17="","",RTD("cqg.rtd", ,"ContractData", C17, "T_CVol",, "T")) -> 132818.9928 | L17: 17 | M17: =IFERROR(RANK($J17,INDIRECT(("$J$"&"1"&":$J$"&$A$449)))+COUNTIF($J$1:J17,J17)-1,"") -> 235 | N17: S.US.AIG | O17: S.US.CHTR
A18: =IF(Symbols!A18="","",Symbols!A18) -> S.US.AIZ | B18: 1 | C18: S.US.AIZ | D18: =IF(A18="","",RTD("cqg.rtd", ,"ContractData",C18, "LongDescription",, "T")) -> Assurant Inc | H18: =IF(A18="","",RTD("cqg.rtd", ,"ContractData",C18, "LastTradeToday",, "T")) -> 283.83 | I18: =IF(A18="","",RTD("cqg.rtd", ,"ContractData",C18, "NetLastTradeToday",, "T")) -> 2.71 | J18: =IF(A18="","",IFERROR(RTD("cqg.rtd", ,"ContractData",C18, "PerCentNetLastTrade",, "T")/100,"")) -> 0.009640011383 | K18: =IF(A18="","",RTD("cqg.rtd", ,"ContractData", C18, "T_CVol",, "T")) -> 26492.55444 | L18: 18 | M18: =IFERROR(RANK($J18,INDIRECT(("$J$"&"1"&":$J$"&$A$449)))+COUNTIF($J$1:J18,J18)-1,"") -> 172 | N18: S.US.AIZ | O18: S.US.FICO
A19: =IF(Symbols!A19="","",Symbols!A19) -> S.US.AJG | B19: 0 | C19: S.US.AJG | D19: =IF(A19="","",RTD("cqg.rtd", ,"ContractData",C19, "LongDescription",, "T")) -> Arthur J Gallagher Co | H19: =IF(A19="","",RTD("cqg.rtd", ,"ContractData",C19, "LastTradeToday",, "T")) -> 254.92 | I19: =IF(A19="","",RTD("cqg.rtd", ,"ContractData",C19, "NetLastTradeToday",, "T")) -> -0.54 | J19: =IF(A19="","",IFERROR(RTD("cqg.rtd", ,"ContractData",C19, "PerCentNetLastTrade",, "T")/100,"")) -> -0.002113833868 | K19: =IF(A19="","",RTD("cqg.rtd", ,"ContractData", C19, "T_CVol",, "T")) -> 99038.36434 | L19: 19 | M19: =IFERROR(RANK($J19,INDIRECT(("$J$"&"1"&":$J$"&$A$449)))+COUNTIF($J$1:J19,J19)-1,"") -> 364 | N19: S.US.AJG | O19: S.US.FISV
A20: =IF(Symbols!A20="","",Symbols!A20) -> S.US.AKAM | B20: 1 | C20: S.US.AKAM | D20: =IF(A20="","",RTD("cqg.rtd", ,"ContractData",C20, "LongDescription",, "T")) -> AKAMAI TECHNOLOGIES | H20: =IF(A20="","",RTD("cqg.rtd", ,"ContractData",C20, "LastTradeToday",, "T")) -> 127 | I20: =IF(A20="","",RTD("cqg.rtd", ,"ContractData",C20, "NetLastTradeToday",, "T")) -> 4.22 | J20: =IF(A20="","",IFERROR(RTD("cqg.rtd", ,"ContractData",C20, "PerCentNetLastTrade",, "T")/100,"")) -> 0.03437041863 | K20: =IF(A20="","",RTD("cqg.rtd", ,"ContractData", C20, "T_CVol",, "T")) -> 494712.9879 | L20: 20 | M20: =IFERROR(RANK($J20,INDIRECT(("$J$"&"1"&":$J$"&$A$449)))+COUNTIF($J$1:J20,J20)-1,"") -> 11 | N20: S.US.AKAM | O20: S.US.INTU
A21: =IF(Symbols!A21="","",Symbols!A21) -> S.US.ALB | B21: 1 | C21: S.US.ALB | D21: =IF(A21="","",RTD("cqg.rtd", ,"ContractData",C21, "LongDescription",, "T")) -> Albemarle Corporation | H21: =IF(A21="","",RTD("cqg.rtd", ,"ContractData",C21, "LastTradeToday",, "T")) -> 133.04 | I21: =IF(A21="","",RTD("cqg.rtd", ,"ContractData",C21, "NetLastTradeToday",, "T")) -> 4.7 | J21: =IF(A21="","",IFERROR(RTD("cqg.rtd", ,"ContractData",C21, "PerCentNetLastTrade",, "T")/100,"")) -> 0.03662147421 | K21: =IF(A21="","",RTD("cqg.rtd", ,"ContractData", C21, "T_CVol",, "T")) -> 392262.2332 | L21: 21 | M21: =IFERROR(RANK($J21,INDIRECT(("$J$"&"1"&":$J$"&$A$449)))+COUNTIF($J$1:J21,J21)-1,"") -> 9 | N21: S.US.ALB | O21: S.US.TTD
A22: =IF(Symbols!A22="","",Symbols!A22) -> S.US.ALGN | B22: 1 | C22: S.US.ALGN | D22: =IF(A22="","",RTD("cqg.rtd", ,"ContractData",C22, "LongDescription",, "T")) -> Align Technology Inc | H22: =IF(A22="","",RTD("cqg.rtd", ,"ContractData",C22, "LastTradeToday",, "T")) -> 175.76 | I22: =IF(A22="","",RTD("cqg.rtd", ,"ContractData",C22, "NetLastTradeToday",, "T")) -> 1.75 | J22: =IF(A22="","",IFERROR(RTD("cqg.rtd", ,"ContractData",C22, "PerCentNetLastTrade",, "T")/100,"")) -> 0.01005689328 | K22: =IF(A22="","",RTD("cqg.rtd", ,"ContractData", C22, "T_CVol",, "T")) -> 46647.38809 | L22: 22 | M22: =IFERROR(RANK($J22,INDIRECT(("$J$"&"1"&":$J$"&$A$449)))+COUNTIF($J$1:J22,J22)-1,"") -> 162 | N22: S.US.ALGN | O22: S.US.MKC
A23: =IF(Symbols!A23="","",Symbols!A23) -> S.US.ALL | B23: 1 | C23: S.US.ALL | D23: =IF(A23="","",RTD("cqg.rtd", ,"ContractData",C23, "LongDescription",, "T")) -> Allstate Corporation | H23: =IF(A23="","",RTD("cqg.rtd", ,"ContractData",C23, "LastTradeToday",, "T")) -> 258.01 | I23: =IF(A23="","",RTD("cqg.rtd", ,"ContractData",C23, "NetLastTradeToday",, "T")) -> 2.17 | J23: =IF(A23="","",IFERROR(RTD("cqg.rtd", ,"ContractData",C23, "PerCentNetLastTrade",, "T")/100,"")) -> 0.008481863665 | K23: =IF(A23="","",RTD("cqg.rtd", ,"ContractData", C23, "T_CVol",, "T")) -> 191666.1446 | L23: 23 | M23: =IFERROR(RANK($J23,INDIRECT(("$J$"&"1"&":$J$"&$A$449)))+COUNTIF($J$1:J23,J23)-1,"") -> 196 | N23: S.US.ALL | O23: S.US.ORCL
A24: =IF(Symbols!A24="","",Symbols!A24) -> S.US.ALLE | B24: 0 | C24: S.US.ALLE | D24: =IF(A24="","",RTD("cqg.rtd", ,"ContractData",C24, "LongDescription",, "T")) -> Allegion plc | H24: =IF(A24="","",RTD("cqg.rtd", ,"ContractData",C24, "LastTradeToday",, "T")) -> 164.77 | I24: =IF(A24="","",RTD("cqg.rtd", ,"ContractData",C24, "NetLastTradeToday",, "T")) -> -1.34 | J24: =IF(A24="","",IFERROR(RTD("cqg.rtd", ,"ContractData",C24, "PerCentNetLastTrade",, "T")/100,"")) -> -0.008066943592 | K24: =IF(A24="","",RTD("cqg.rtd", ,"ContractData", C24, "T_CVol",, "T")) -> 80139.45704 | L24: 24 | M24: =IFERROR(RANK($J24,INDIRECT(("$J$"&"1"&":$J$"&$A$449)))+COUNTIF($J$1:J24,J24)-1,"") -> 406 | N24: S.US.ALLE | O24: S.US.KHC
A25: =IF(Symbols!A25="","",Symbols!A25) -> S.US.AMCR | B25: 0 | C25: S.US.AMCR | D25: =IF(A25="","",RTD("cqg.rtd", ,"ContractData",C25, "LongDescription",, "T")) -> Amcor PLC | H25: =IF(A25="","",RTD("cqg.rtd", ,"ContractData",C25, "LastTradeToday",, "T")) -> 46.08 | I25: =IF(A25="","",RTD("cqg.rtd", ,"ContractData",C25, "NetLastTradeToday",, "T")) -> -0.48 | J25: =IF(A25="","",IFERROR(RTD("cqg.rtd", ,"ContractData",C25, "PerCentNetLastTrade",, "T")/100,"")) -> -0.01030927835 | K25: =IF(A25="","",RTD("cqg.rtd", ,"ContractData", C25, "T_CVol",, "T")) -> 565481.1215 | L25: 25 | M25: =IFERROR(RANK($J25,INDIRECT(("$J$"&"1"&":$J$"&$A$449)))+COUNTIF($J$1:J25,J25)-1,"") -> 418 | N25: S.US.AMCR | O25: S.US.GPN
A26: =IF(Symbols!A26="","",Symbols!A26) -> S.US.AME | B26: 0 | C26: S.US.AME | D26: =IF(A26="","",RTD("cqg.rtd", ,"ContractData",C26, "LongDescription",, "T")) -> Ametek Inc New | H26: =IF(A26="","",RTD("cqg.rtd", ,"ContractData",C26, "LastTradeToday",, "T")) -> 257.55 | I26: =IF(A26="","",RTD("cqg.rtd", ,"ContractData",C26, "NetLastTradeToday",, "T")) -> -0.97 | J26: =IF(A26="","",IFERROR(RTD("cqg.rtd", ,"ContractData",C26, "PerCentNetLastTrade",, "T")/100,"")) -> -0.003752127495 | K26: =IF(A26="","",RTD("cqg.rtd", ,"ContractData", C26, "T_CVol",, "T")) -> 84201.3248 | L26: 26 | M26: =IFERROR(RANK($J26,INDIRECT(("$J$"&"1"&":$J$"&$A$449)))+COUNTIF($J$1:J26,J26)-1,"") -> 380 | N26: S.US.AME | O26: S.US.LEN
A27: =IF(Symbols!A27="","",Symbols!A27) -> S.US.AMGN | B27: 1 | C27: S.US.AMGN | D27: =IF(A27="","",RTD("cqg.rtd", ,"ContractData",C27, "LongDescription",, "T")) -> AMGEN | H27: =IF(A27="","",RTD("cqg.rtd", ,"ContractData",C27, "LastTradeToday",, "T")) -> 418.79 | I27: =IF(A27="","",RTD("cqg.rtd", ,"ContractData",C27, "NetLastTradeToday",, "T")) -> 2.61 | J27: =IF(A27="","",IFERROR(RTD("cqg.rtd", ,"ContractData",C27, "PerCentNetLastTrade",, "T")/100,"")) -> 0.006271324907 | K27: =IF(A27="","",RTD("cqg.rtd", ,"ContractData", C27, "T_CVol",, "T")) -> 170536.984 | L27: 27 | M27: =IFERROR(RANK($J27,INDIRECT(("$J$"&"1"&":$J$"&$A$449)))+COUNTIF($J$1:J27,J27)-1,"") -> 244 | N27: S.US.AMGN | O27: S.US.YUM
A28: =IF(Symbols!A28="","",Symbols!A28) -> S.US.AMP | B28: 1 | C28: S.US.AMP | D28: =IF(A28="","",RTD("cqg.rtd", ,"ContractData",C28, "LongDescription",, "T")) -> Ameriprise Financial Inc | H28: =IF(A28="","",RTD("cqg.rtd", ,"ContractData",C28, "LastTradeToday",, "T")) -> 566.71 | I28: =IF(A28="","",RTD("cqg.rtd", ,"ContractData",C28, "NetLastTradeToday",, "T")) -> 1.64 | J28: =IF(A28="","",IFERROR(RTD("cqg.rtd", ,"ContractData",C28, "PerCentNetLastTrade",, "T")/100,"")) -> 0.002902295291 | K28: =IF(A28="","",RTD("cqg.rtd", ,"ContractData", C28, "T_CVol",, "T")) -> 26510.6137 | L28: 28 | M28: =IFERROR(RANK($J28,INDIRECT(("$J$"&"1"&":$J$"&$A$449)))+COUNTIF($J$1:J28,J28)-1,"") -> 303 | N28: =C28 -> S.US.AMP | O28: S.US.ARES
A29: =IF(Symbols!A29="","",Symbols!A29) -> S.US.AMT | B29: 1 | C29: S.US.AMT | D29: =IF(A29="","",RTD("cqg.rtd", ,"ContractData",C29, "LongDescription",, "T")) -> American Tower Corp ClA | H29: =IF(A29="","",RTD("cqg.rtd", ,"ContractData",C29, "LastTradeToday",, "T")) -> 173.64 | I29: =IF(A29="","",RTD("cqg.rtd", ,"ContractData",C29, "NetLastTradeToday",, "T")) -> 3.21 | J29: =IF(A29="","",IFERROR(RTD("cqg.rtd", ,"ContractData",C29, "PerCentNetLastTrade",, "T")/100,"")) -> 0.0188347122 | K29: =IF(A29="","",RTD("cqg.rtd", ,"ContractData", C29, "T_CVol",, "T")) -> 212169.27 | L29: 29 | M29: =IFERROR(RANK($J29,INDIRECT(("$J$"&"1"&":$J$"&$A$449)))+COUNTIF($J$1:J29,J29)-1,"") -> 64 | N29: S.US.AMT | O29: S.US.ESS
A30: =IF(Symbols!A30="","",Symbols!A30) -> S.US.AMZN | B30: 1 | C30: S.US.AMZN | D30: =IF(A30="","",RTD("cqg.rtd", ,"ContractData",C30, "LongDescription",, "T")) -> Amazon.com Inc | H30: =IF(A30="","",RTD("cqg.rtd", ,"ContractData",C30, "LastTradeToday",, "T")) -> 268 | I30: =IF(A30="","",RTD("cqg.rtd", ,"ContractData",C30, "NetLastTradeToday",, "T")) -> 0.72 | J30: =IF(A30="","",IFERROR(RTD("cqg.rtd", ,"ContractData",C30, "PerCentNetLastTrade",, "T")/100,"")) -> 0.00269380425 | K30: =IF(A30="","",RTD("cqg.rtd", ,"ContractData", C30, "T_CVol",, "T")) -> 6906857.162 | L30: 30 | M30: =IFERROR(RANK($J30,INDIRECT(("$J$"&"1"&":$J$"&$A$449)))+COUNTIF($J$1:J30,J30)-1,"") -> 306 | N30: S.US.AMZN | O30: S.US.XYZ
A31: =IF(Symbols!A31="","",Symbols!A31) -> S.US.AON | B31: 1 | C31: S.US.AON | D31: =IF(A31="","",RTD("cqg.rtd", ,"ContractData",C31, "LongDescription",, "T")) -> AON Corporation | H31: =IF(A31="","",RTD("cqg.rtd", ,"ContractData",C31, "LastTradeToday",, "T")) -> 354.69 | I31: =IF(A31="","",RTD("cqg.rtd", ,"ContractData",C31, "NetLastTradeToday",, "T")) -> 2.33 | J31: =IF(A31="","",IFERROR(RTD("cqg.rtd", ,"ContractData",C31, "PerCentNetLastTrade",, "T")/100,"")) -> 0.006612555341 | K31: =IF(A31="","",RTD("cqg.rtd", ,"ContractData", C31, "T_CVol",, "T")) -> 45751.43238 | L31: 31 | M31: =IFERROR(RANK($J31,INDIRECT(("$J$"&"1"&":$J$"&$A$449)))+COUNTIF($J$1:J31,J31)-1,"") -> 234 | N31: S.US.AON | O31: S.US.CVNA
A32: =IF(Symbols!A32="","",Symbols!A32) -> S.US.AOS | B32: 1 | C32: S.US.AOS | D32: =IF(A32="","",RTD("cqg.rtd", ,"ContractData",C32, "LongDescription",, "T")) -> AO Smith Corp | H32: =IF(A32="","",RTD("cqg.rtd", ,"ContractData",C32, "LastTradeToday",, "T")) -> 62.74 | I32: =IF(A32="","",RTD("cqg.rtd", ,"ContractData",C32, "NetLastTradeToday",, "T")) -> 0.15 | J32: =IF(A32="","",IFERROR(RTD("cqg.rtd", ,"ContractData",C32, "PerCentNetLastTrade",, "T")/100,"")) -> 0.002396548969 | K32: =IF(A32="","",RTD("cqg.rtd", ,"ContractData", C32, "T_CVol",, "T")) -> 75881.19079 | L32: 32 | M32: =IFERROR(RANK($J32,INDIRECT(("$J$"&"1"&":$J$"&$A$449)))+COUNTIF($J$1:J32,J32)-1,"") -> 307 | N32: S.US.AOS | O32: S.US.NTAP
A33: =IF(Symbols!A33="","",Symbols!A33) -> S.US.APA | B33: 0 | C33: S.US.APA | D33: =IF(A33="","",RTD("cqg.rtd", ,"ContractData",C33, "LongDescription",, "T")) -> APA CORPORATION CMN | H33: =IF(A33="","",RTD("cqg.rtd", ,"ContractData",C33, "LastTradeToday",, "T")) -> 39.5 | I33: =IF(A33="","",RTD("cqg.rtd", ,"ContractData",C33, "NetLastTradeToday",, "T")) -> -0.47 | J33: =IF(A33="","",IFERROR(RTD("cqg.rtd", ,"ContractData",C33, "PerCentNetLastTrade",, "T")/100,"")) -> -0.01175881911 | K33: =IF(A33="","",RTD("cqg.rtd", ,"ContractData", C33, "T_CVol",, "T")) -> 552021.8181 | L33: 33 | M33: =IFERROR(RANK($J33,INDIRECT(("$J$"&"1"&":$J$"&$A$449)))+COUNTIF($J$1:J33,J33)-1,"") -> 423 | N33: S.US.APA | O33: S.US.FOX
A34: =IF(Symbols!A34="","",Symbols!A34) -> S.US.APD | B34: 1 | C34: S.US.APD | D34: =IF(A34="","",RTD("cqg.rtd", ,"ContractData",C34, "LongDescription",, "T")) -> Air Products & Chems Inc | H34: =IF(A34="","",RTD("cqg.rtd", ,"ContractData",C34, "LastTradeToday",, "T")) -> 305.94 | I34: =IF(A34="","",RTD("cqg.rtd", ,"ContractData",C34, "NetLastTradeToday",, "T")) -> 1.87 | J34: =IF(A34="","",IFERROR(RTD("cqg.rtd", ,"ContractData",C34, "PerCentNetLastTrade",, "T")/100,"")) -> 0.006149899694 | K34: =IF(A34="","",RTD("cqg.rtd", ,"ContractData", C34, "T_CVol",, "T")) -> 84265.77153 | L34: 34 | M34: =IFERROR(RANK($J34,INDIRECT(("$J$"&"1"&":$J$"&$A$449)))+COUNTIF($J$1:J34,J34)-1,"") -> 246 | N34: S.US.APD | O34: S.US.TMUS
A35: =IF(Symbols!A35="","",Symbols!A35) -> S.US.APO | B35: 1 | C35: S.US.APO | D35: =IF(A35="","",RTD("cqg.rtd", ,"ContractData",C35, "LongDescription",, "T")) -> Apollo Global Management, LLC | H35: =IF(A35="","",RTD("cqg.rtd", ,"ContractData",C35, "LastTradeToday",, "T")) -> 140.79 | I35: =IF(A35="","",RTD("cqg.rtd", ,"ContractData",C35, "NetLastTradeToday",, "T")) -> 2.18 | J35: =IF(A35="","",IFERROR(RTD("cqg.rtd", ,"ContractData",C35, "PerCentNetLastTrade",, "T")/100,"")) -> 0.01572758098 | K35: =IF(A35="","",RTD("cqg.rtd", ,"ContractData", C35, "T_CVol",, "T")) -> 223869.5851 | L35: 35 | M35: =IFERROR(RANK($J35,INDIRECT(("$J$"&"1"&":$J$"&$A$449)))+COUNTIF($J$1:J35,J35)-1,"") -> 87 | N35: S.US.APO | O35: S.US.CPT
A36: =IF(Symbols!A36="","",Symbols!A36) -> S.US.APTV | B36: 1 | C36: S.US.APTV | D36: =IF(A36="","",RTD("cqg.rtd", ,"ContractData",C36, "LongDescription",, "T")) -> Aptiv PLC | H36: =IF(A36="","",RTD("cqg.rtd", ,"ContractData",C36, "LastTradeToday",, "T")) -> 48.64 | I36: =IF(A36="","",RTD("cqg.rtd", ,"ContractData",C36, "NetLastTradeToday",, "T")) -> 0.16 | J36: =IF(A36="","",IFERROR(RTD("cqg.rtd", ,"ContractData",C36, "PerCentNetLastTrade",, "T")/100,"")) -> 0.003300330033 | K36: =IF(A36="","",RTD("cqg.rtd", ,"ContractData", C36, "T_CVol",, "T")) -> 623500.9741 | L36: 36 | M36: =IFERROR(RANK($J36,INDIRECT(("$J$"&"1"&":$J$"&$A$449)))+COUNTIF($J$1:J36,J36)-1,"") -> 295 | N36: S.US.APTV | O36: S.US.DG
A37: =IF(Symbols!A37="","",Symbols!A37) -> S.US.ARE | B37: 1 | C37: S.US.ARE | D37: =IF(A37="","",RTD("cqg.rtd", ,"ContractData",C37, "LongDescription",, "T")) -> Alexandria Real Estate Equities Inc | H37: =IF(A37="","",RTD("cqg.rtd", ,"ContractData",C37, "LastTradeToday",, "T")) -> 48.74 | I37: =IF(A37="","",RTD("cqg.rtd", ,"ContractData",C37, "NetLastTradeToday",, "T")) -> 0.68 | J37: =IF(A37="","",IFERROR(RTD("cqg.rtd", ,"ContractData",C37, "PerCentNetLastTrade",, "T")/100,"")) -> 0.01414898044 | K37: =IF(A37="","",RTD("cqg.rtd", ,"ContractData", C37, "T_CVol",, "T")) -> 200152.3374 | L37: 37 | M37: =IFERROR(RANK($J37,INDIRECT(("$J$"&"1"&":$J$"&$A$449)))+COUNTIF($J$1:J37,J37)-1,"") -> 101 | N37: S.US.ARE | O37: S.US.PM
A38: =IF(Symbols!A38="","",Symbols!A38) -> S.US.ARES | B38: 1 | C38: S.US.ARES | D38: =IF(A38="","",RTD("cqg.rtd", ,"ContractData",C38, "LongDescription",, "T")) -> Ares Management, L.P. | H38: =IF(A38="","",RTD("cqg.rtd", ,"ContractData",C38, "LastTradeToday",, "T")) -> 146.17 | I38: =IF(A38="","",RTD("cqg.rtd", ,"ContractData",C38, "NetLastTradeToday",, "T")) -> 3.82 | J38: =IF(A38="","",IFERROR(RTD("cqg.rtd", ,"ContractData",C38, "PerCentNetLastTrade",, "T")/100,"")) -> 0.02683526519 | K38: =IF(A38="","",RTD("cqg.rtd", ,"ContractData", C38, "T_CVol",, "T")) -> 144766.5744 | L38: 38 | M38: =IFERROR(RANK($J38,INDIRECT(("$J$"&"1"&":$J$"&$A$449)))+COUNTIF($J$1:J38,J38)-1,"") -> 28 | N38: S.US.ARES | O38: S.US.FOXA
A39: =IF(Symbols!A39="","",Symbols!A39) -> S.US.ATO | B39: 1 | C39: S.US.ATO | D39: =IF(A39="","",RTD("cqg.rtd", ,"ContractData",C39, "LongDescription",, "T")) -> Atmos Energy Corp | H39: =IF(A39="","",RTD("cqg.rtd", ,"ContractData",C39, "LastTradeToday",, "T")) -> 170.78 | I39: =IF(A39="","",RTD("cqg.rtd", ,"ContractData",C39, "NetLastTradeToday",, "T")) -> 1.19 | J39: =IF(A39="","",IFERROR(RTD("cqg.rtd", ,"ContractData",C39, "PerCentNetLastTrade",, "T")/100,"")) -> 0.007016923168 | K39: =IF(A39="","",RTD("cqg.rtd", ,"ContractData", C39, "T_CVol",, "T")) -> 87183.71246 | L39: 39 | M39: =IFERROR(RANK($J39,INDIRECT(("$J$"&"1"&":$J$"&$A$449)))+COUNTIF($J$1:J39,J39)-1,"") -> 228 | N39: S.US.ATO | O39: S.US.FIS
A40: =IF(Symbols!A40="","",Symbols!A40) -> S.US.AVB | B40: 1 | C40: S.US.AVB | D40: =IF(A40="","",RTD("cqg.rtd", ,"ContractData",C40, "LongDescription",, "T")) -> AvalonBay Communities, Inc. | H40: =IF(A40="","",RTD("cqg.rtd", ,"ContractData",C40, "LastTradeToday",, "T")) -> 185.62 | I40: =IF(A40="","",RTD("cqg.rtd", ,"ContractData",C40, "NetLastTradeToday",, "T")) -> 5.83 | J40: =IF(A40="","",IFERROR(RTD("cqg.rtd", ,"ContractData",C40, "PerCentNetLastTrade",, "T")/100,"")) -> 0.03242672006 | K40: =IF(A40="","",RTD("cqg.rtd", ,"ContractData", C40, "T_CVol",, "T")) -> 249062.8042 | L40: 40 | M40: =IFERROR(RANK($J40,INDIRECT(("$J$"&"1"&":$J$"&$A$449)))+COUNTIF($J$1:J40,J40)-1,"") -> 15 | N40: S.US.AVB | O40: S.US.PANW
A41: =IF(Symbols!A41="","",Symbols!A41) -> S.US.AVY | B41: 0 | C41: S.US.AVY | D41: =IF(A41="","",RTD("cqg.rtd", ,"ContractData",C41, "LongDescription",, "T")) -> Avery Dennison Corp | H41: =IF(A41="","",RTD("cqg.rtd", ,"ContractData",C41, "LastTradeToday",, "T")) -> 180.35 | I41: =IF(A41="","",RTD("cqg.rtd", ,"ContractData",C41, "NetLastTradeToday",, "T")) -> -0.68 | J41: =IF(A41="","",IFERROR(RTD("cqg.rtd", ,"ContractData",C41, "PerCentNetLastTrade",, "T")/100,"")) -> -0.003756283489 | K41: =IF(A41="","",RTD("cqg.rtd", ,"ContractData", C41, "T_CVol",, "T")) -> 78002.78228 | L41: 41 | M41: =IFERROR(RANK($J41,INDIRECT(("$J$"&"1"&":$J$"&$A$449)))+COUNTIF($J$1:J41,J41)-1,"") -> 381 | N41: S.US.AVY | O41: S.US.MAA
A42: =IF(Symbols!A42="","",Symbols!A42) -> S.US.AWK | B42: 1 | C42: S.US.AWK | D42: =IF(A42="","",RTD("cqg.rtd", ,"ContractData",C42, "LongDescription",, "T")) -> American Water Works | H42: =IF(A42="","",RTD("cqg.rtd", ,"ContractData",C42, "LastTradeToday",, "T")) -> 136.61 | I42: =IF(A42="","",RTD("cqg.rtd", ,"ContractData",C42, "NetLastTradeToday",, "T")) -> 1.69 | J42: =IF(A42="","",IFERROR(RTD("cqg.rtd", ,"ContractData",C42, "PerCentNetLastTrade",, "T")/100,"")) -> 0.0125259413 | K42: =IF(A42="","",RTD("cqg.rtd", ,"ContractData", C42, "T_CVol",, "T")) -> 229616.8302 | L42: 42 | M42: =IFERROR(RANK($J42,INDIRECT(("$J$"&"1"&":$J$"&$A$449)))+COUNTIF($J$1:J42,J42)-1,"") -> 123 | N42: S.US.AWK | O42: S.US.FDXF
A43: =IF(Symbols!A43="","",Symbols!A43) -> S.US.AXON | B43: 1 | C43: S.US.AXON | D43: =IF(A43="","",RTD("cqg.rtd", ,"ContractData",C43, "LongDescription",, "T")) -> AXON ENTERPRISE, INC | H43: =IF(A43="","",RTD("cqg.rtd", ,"ContractData",C43, "LastTradeToday",, "T")) -> 610.97 | I43: =IF(A43="","",RTD("cqg.rtd", ,"ContractData",C43, "NetLastTradeToday",, "T")) -> 11.19 | J43: =IF(A43="","",IFERROR(RTD("cqg.rtd", ,"ContractData",C43, "PerCentNetLastTrade",, "T")/100,"")) -> 0.01865684084 | K43: =IF(A43="","",RTD("cqg.rtd", ,"ContractData", C43, "T_CVol",, "T")) -> 136074.3207 | L43: 43 | M43: =IFERROR(RANK($J43,INDIRECT(("$J$"&"1"&":$J$"&$A$449)))+COUNTIF($J$1:J43,J43)-1,"") -> 68 | N43: S.US.AXON | O43: S.US.MO
A44: =IF(Symbols!A44="","",Symbols!A44) -> S.US.AXP | B44: 0 | C44: S.US.AXP | D44: =IF(A44="","",RTD("cqg.rtd", ,"ContractData",C44, "LongDescription",, "T")) -> American Express Co | H44: =IF(A44="","",RTD("cqg.rtd", ,"ContractData",C44, "LastTradeToday",, "T")) -> 343.56 | I44: =IF(A44="","",RTD("cqg.rtd", ,"ContractData",C44, "NetLastTradeToday",, "T")) -> -0.52 | J44: =IF(A44="","",IFERROR(RTD("cqg.rtd", ,"ContractData",C44, "PerCentNetLastTrade",, "T")/100,"")) -> -0.001511276447 | K44: =IF(A44="","",RTD("cqg.rtd", ,"ContractData", C44, "T_CVol",, "T")) -> 217445.5243 | L44: 44 | M44: =IFERROR(RANK($J44,INDIRECT(("$J$"&"1"&":$J$"&$A$449)))+COUNTIF($J$1:J44,J44)-1,"") -> 358 | N44: S.US.AXP | O44: S.US.DAL
A45: =IF(Symbols!A45="","",Symbols!A45) -> S.US.AZO | B45: 1 | C45: S.US.AZO | D45: =IF(A45="","",RTD("cqg.rtd", ,"ContractData",C45, "LongDescription",, "T")) -> Autozone Inc | H45: =IF(A45="","",RTD("cqg.rtd", ,"ContractData",C45, "LastTradeToday",, "T")) -> 3082.28 | I45: =IF(A45="","",RTD("cqg.rtd", ,"ContractData",C45, "NetLastTradeToday",, "T")) -> 36.41 | J45: =IF(A45="","",IFERROR(RTD("cqg.rtd", ,"ContractData",C45, "PerCentNetLastTrade",, "T")/100,"")) -> 0.01195389166 | K45: =IF(A45="","",RTD("cqg.rtd", ,"ContractData", C45, "T_CVol",, "T")) -> 33237.53848 | L45: 45 | M45: =IFERROR(RANK($J45,INDIRECT(("$J$"&"1"&":$J$"&$A$449)))+COUNTIF($J$1:J45,J45)-1,"") -> 135 | N45: S.US.AZO | O45: S.US.NCLH
A46: =IF(Symbols!A46="","",Symbols!A46) -> S.US.BA | B46: 0 | C46: S.US.BA | D46: =IF(A46="","",RTD("cqg.rtd", ,"ContractData",C46, "LongDescription",, "T")) -> Boeing Company | H46: =IF(A46="","",RTD("cqg.rtd", ,"ContractData",C46, "LastTradeToday",, "T")) -> 231.19 | I46: =IF(A46="","",RTD("cqg.rtd", ,"ContractData",C46, "NetLastTradeToday",, "T")) -> -0.01 | J46: =IF(A46="","",IFERROR(RTD("cqg.rtd", ,"ContractData",C46, "PerCentNetLastTrade",, "T")/100,"")) -> -4.325259516e-05 | K46: =IF(A46="","",RTD("cqg.rtd", ,"ContractData", C46, "T_CVol",, "T")) -> 371599.6795 | L46: 46 | M46: =IFERROR(RANK($J46,INDIRECT(("$J$"&"1"&":$J$"&$A$449)))+COUNTIF($J$1:J46,J46)-1,"") -> 338 | N46: S.US.BA | O46: S.US.GIS
A47: =IF(Symbols!A47="","",Symbols!A47) -> S.US.BAC | B47: 1 | C47: S.US.BAC | D47: =IF(A47="","",RTD("cqg.rtd", ,"ContractData",C47, "LongDescription",, "T")) -> Bank of America Corp | H47: =IF(A47="","",RTD("cqg.rtd", ,"ContractData",C47, "LastTradeToday",, "T")) -> 64.92 | I47: =IF(A47="","",RTD("cqg.rtd", ,"ContractData",C47, "NetLastTradeToday",, "T")) -> 0.11 | J47: =IF(A47="","",IFERROR(RTD("cqg.rtd", ,"ContractData",C47, "PerCentNetLastTrade",, "T")/100,"")) -> 0.00169726894 | K47: =IF(A47="","",RTD("cqg.rtd", ,"ContractData", C47, "T_CVol",, "T")) -> 5575814.832 | L47: 47 | M47: =IFERROR(RANK($J47,INDIRECT(("$J$"&"1"&":$J$"&$A$449)))+COUNTIF($J$1:J47,J47)-1,"") -> 316 | N47: S.US.BAC | O47: S.US.DLTR
A48: =IF(Symbols!A48="","",Symbols!A48) -> S.US.BALL | B48: 1 | C48: S.US.BALL | D48: =IF(A48="","",RTD("cqg.rtd", ,"ContractData",C48, "LongDescription",, "T")) -> Ball Corp | H48: =IF(A48="","",RTD("cqg.rtd", ,"ContractData",C48, "LastTradeToday",, "T")) -> 62.2 | I48: =IF(A48="","",RTD("cqg.rtd", ,"ContractData",C48, "NetLastTradeToday",, "T")) -> 0.06 | J48: =IF(A48="","",IFERROR(RTD("cqg.rtd", ,"ContractData",C48, "PerCentNetLastTrade",, "T")/100,"")) -> 0.000965561635 | K48: =IF(A48="","",RTD("cqg.rtd", ,"ContractData", C48, "T_CVol",, "T")) -> 137736.3556 | L48: 48 | M48: =IFERROR(RANK($J48,INDIRECT(("$J$"&"1"&":$J$"&$A$449)))+COUNTIF($J$1:J48,J48)-1,"") -> 323 | N48: S.US.BALL | O48: S.US.UDR
A49: =IF(Symbols!A49="","",Symbols!A49) -> S.US.BAX | B49: 1 | C49: S.US.BAX | D49: =IF(A49="","",RTD("cqg.rtd", ,"ContractData",C49, "LongDescription",, "T")) -> Baxter International Inc | H49: =IF(A49="","",RTD("cqg.rtd", ,"ContractData",C49, "LastTradeToday",, "T")) -> 27.33 | I49: =IF(A49="","",RTD("cqg.rtd", ,"ContractData",C49, "NetLastTradeToday",, "T")) -> 0.38 | J49: =IF(A49="","",IFERROR(RTD("cqg.rtd", ,"ContractData",C49, "PerCentNetLastTrade",, "T")/100,"")) -> 0.01410018553 | K49: =IF(A49="","",RTD("cqg.rtd", ,"ContractData", C49, "T_CVol",, "T")) -> 793949.5793 | L49: 49 | M49: =IFERROR(RANK($J49,INDIRECT(("$J$"&"1"&":$J$"&$A$449)))+COUNTIF($J$1:J49,J49)-1,"") -> 102 | N49: S.US.BAX | O49: S.US.CMCSA
A50: =IF(Symbols!A50="","",Symbols!A50) -> S.US.BBY | B50: 1 | C50: S.US.BBY | D50: =IF(A50="","",RTD("cqg.rtd", ,"ContractData",C50, "LongDescription",, "T")) -> Best Buy Co Inc | H50: =IF(A50="","",RTD("cqg.rtd", ,"ContractData",C50, "LastTradeToday",, "T")) -> 84.67 | I50: =IF(A50="","",RTD("cqg.rtd", ,"ContractData",C50, "NetLastTradeToday",, "T")) -> 1.67 | J50: =IF(A50="","",IFERROR(RTD("cqg.rtd", ,"ContractData",C50, "PerCentNetLastTrade",, "T")/100,"")) -> 0.02012048193 | K50: =IF(A50="","",RTD("cqg.rtd", ,"ContractData", C50, "T_CVol",, "T")) -> 391737.29 | L50: 50 | M50: =IFERROR(RANK($J50,INDIRECT(("$J$"&"1"&":$J$"&$A$449)))+COUNTIF($J$1:J50,J50)-1,"") -> 58 | N50: S.US.BBY | O50: S.US.EBAY
A51: =IF(Symbols!A51="","",Symbols!A51) -> S.US.BDX | B51: 1 | C51: S.US.BDX | D51: =IF(A51="","",RTD("cqg.rtd", ,"ContractData",C51, "LongDescription",, "T")) -> Becton Dickinson & Co | H51: =IF(A51="","",RTD("cqg.rtd", ,"ContractData",C51, "LastTradeToday",, "T")) -> 185 | I51: =IF(A51="","",RTD("cqg.rtd", ,"ContractData",C51, "NetLastTradeToday",, "T")) -> 1.42 | J51: =IF(A51="","",IFERROR(RTD("cqg.rtd", ,"ContractData",C51, "PerCentNetLastTrade",, "T")/100,"")) -> 0.007735047391 | K51: =IF(A51="","",RTD("cqg.rtd", ,"ContractData", C51, "T_CVol",, "T")) -> 219737.101 | L51: 51 | M51: =IFERROR(RANK($J51,INDIRECT(("$J$"&"1"&":$J$"&$A$449)))+COUNTIF($J$1:J51,J51)-1,"") -> 216 | N51: S.US.BDX | O51: S.US.ODFL
A52: =IF(Symbols!A52="","",Symbols!A52) -> S.US.BEN | B52: 1 | C52: S.US.BEN | D52: =IF(A52="","",RTD("cqg.rtd", ,"ContractData",C52, "LongDescription",, "T")) -> Franklin Resources Inc | H52: =IF(A52="","",RTD("cqg.rtd", ,"ContractData",C52, "LastTradeToday",, "T")) -> 34.01 | I52: =IF(A52="","",RTD("cqg.rtd", ,"ContractData",C52, "NetLastTradeToday",, "T")) -> 0.42 | J52: =IF(A52="","",IFERROR(RTD("cqg.rtd", ,"ContractData",C52, "PerCentNetLastTrade",, "T")/100,"")) -> 0.01250372135 | K52: =IF(A52="","",RTD("cqg.rtd", ,"ContractData", C52, "T_CVol",, "T")) -> 295859.6571 | L52: 52 | M52: =IFERROR(RANK($J52,INDIRECT(("$J$"&"1"&":$J$"&$A$449)))+COUNTIF($J$1:J52,J52)-1,"") -> 125 | N52: S.US.BEN | O52: S.US.GEHC
A53: =IF(Symbols!A53="","",Symbols!A53) -> S.US.BFB | B53: 1 | C53: S.US.BFB | D53: =IF(A53="","",RTD("cqg.rtd", ,"ContractData",C53, "LongDescription",, "T")) -> Brown-Forman Corporation ClsB | H53: =IF(A53="","",RTD("cqg.rtd", ,"ContractData",C53, "LastTradeToday",, "T")) -> 28.28 | I53: =IF(A53="","",RTD("cqg.rtd", ,"ContractData",C53, "NetLastTradeToday",, "T")) -> 0.36 | J53: =IF(A53="","",IFERROR(RTD("cqg.rtd", ,"ContractData",C53, "PerCentNetLastTrade",, "T")/100,"")) -> 0.01289398281 | K53: =IF(A53="","",RTD("cqg.rtd", ,"ContractData", C53, "T_CVol",, "T")) -> 157105.5247 | L53: 53 | M53: =IFERROR(RANK($J53,INDIRECT(("$J$"&"1"&":$J$"&$A$449)))+COUNTIF($J$1:J53,J53)-1,"") -> 118 | N53: S.US.BFB | O53: S.US.JBHT
A54: =IF(Symbols!A54="","",Symbols!A54) -> S.US.BG | B54: 1 | C54: S.US.BG | D54: =IF(A54="","",RTD("cqg.rtd", ,"ContractData",C54, "LongDescription",, "T")) -> Bunge Limited | H54: =IF(A54="","",RTD("cqg.rtd", ,"ContractData",C54, "LastTradeToday",, "T")) -> 113.13 | I54: =IF(A54="","",RTD("cqg.rtd", ,"ContractData",C54, "NetLastTradeToday",, "T")) -> 1.38 | J54: =IF(A54="","",IFERROR(RTD("cqg.rtd", ,"ContractData",C54, "PerCentNetLastTrade",, "T")/100,"")) -> 0.01234899329 | K54: =IF(A54="","",RTD("cqg.rtd", ,"ContractData", C54, "T_CVol",, "T")) -> 99178.67012 | L54: 54 | M54: =IFERROR(RANK($J54,INDIRECT(("$J$"&"1"&":$J$"&$A$449)))+COUNTIF($J$1:J54,J54)-1,"") -> 126 | N54: S.US.BG | O54: S.US.IVZ
A55: =IF(Symbols!A55="","",Symbols!A55) -> S.US.BIIB | B55: 1 | C55: S.US.BIIB | D55: =IF(A55="","",RTD("cqg.rtd", ,"ContractData",C55, "LongDescription",, "T")) -> BIOGEN INC CMN | H55: =IF(A55="","",RTD("cqg.rtd", ,"ContractData",C55, "LastTradeToday",, "T")) -> 209.98 | I55: =IF(A55="","",RTD("cqg.rtd", ,"ContractData",C55, "NetLastTradeToday",, "T")) -> 1.11 | J55: =IF(A55="","",IFERROR(RTD("cqg.rtd", ,"ContractData",C55, "PerCentNetLastTrade",, "T")/100,"")) -> 0.005314310337 | K55: =IF(A55="","",RTD("cqg.rtd", ,"ContractData", C55, "T_CVol",, "T")) -> 203840.2167 | L55: 55 | M55: =IFERROR(RANK($J55,INDIRECT(("$J$"&"1"&":$J$"&$A$449)))+COUNTIF($J$1:J55,J55)-1,"") -> 271 | N55: S.US.BIIB | O55: S.US.DHI
A56: =IF(Symbols!A56="","",Symbols!A56) -> S.US.BKR | B56: 0 | C56: S.US.BKR | D56: =IF(A56="","",RTD("cqg.rtd", ,"ContractData",C56, "LongDescription",, "T")) -> BAKER HUGHES CO | H56: =IF(A56="","",RTD("cqg.rtd", ,"ContractData",C56, "LastTradeToday",, "T")) -> 63.15 | I56: =IF(A56="","",RTD("cqg.rtd", ,"ContractData",C56, "NetLastTradeToday",, "T")) -> -1.13 | J56: =IF(A56="","",IFERROR(RTD("cqg.rtd", ,"ContractData",C56, "PerCentNetLastTrade",, "T")/100,"")) -> -0.01757934039 | K56: =IF(A56="","",RTD("cqg.rtd", ,"ContractData", C56, "T_CVol",, "T")) -> 1025974.844 | L56: 56 | M56: =IFERROR(RANK($J56,INDIRECT(("$J$"&"1"&":$J$"&$A$449)))+COUNTIF($J$1:J56,J56)-1,"") -> 433 | N56: S.US.BKR | O56: S.US.UAL
A57: =IF(Symbols!A57="","",Symbols!A57) -> S.US.BLDR | B57: 1 | C57: S.US.BLDR | D57: =IF(A57="","",RTD("cqg.rtd", ,"ContractData",C57, "LongDescription",, "T")) -> Builders FirstSource Inc | H57: =IF(A57="","",RTD("cqg.rtd", ,"ContractData",C57, "LastTradeToday",, "T")) -> 74.86 | I57: =IF(A57="","",RTD("cqg.rtd", ,"ContractData",C57, "NetLastTradeToday",, "T")) -> 2.45 | J57: =IF(A57="","",IFERROR(RTD("cqg.rtd", ,"ContractData",C57, "PerCentNetLastTrade",, "T")/100,"")) -> 0.03383510565 | K57: =IF(A57="","",RTD("cqg.rtd", ,"ContractData", C57, "T_CVol",, "T")) -> 280874.342 | L57: 57 | M57: =IFERROR(RANK($J57,INDIRECT(("$J$"&"1"&":$J$"&$A$449)))+COUNTIF($J$1:J57,J57)-1,"") -> 13 | N57: S.US.BLDR | O57: S.US.STZ
A58: =IF(Symbols!A58="","",Symbols!A58) -> S.US.BLK | B58: 1 | C58: S.US.BLK | D58: =IF(A58="","",RTD("cqg.rtd", ,"ContractData",C58, "LongDescription",, "T")) -> BlackRock, Inc. | H58: =IF(A58="","",RTD("cqg.rtd", ,"ContractData",C58, "LastTradeToday",, "T")) -> 1180.22 | I58: =IF(A58="","",RTD("cqg.rtd", ,"ContractData",C58, "NetLastTradeToday",, "T")) -> 19.31 | J58: =IF(A58="","",IFERROR(RTD("cqg.rtd", ,"ContractData",C58, "PerCentNetLastTrade",, "T")/100,"")) -> 0.01663350303 | K58: =IF(A58="","",RTD("cqg.rtd", ,"ContractData", C58, "T_CVol",, "T")) -> 51182.17622 | L58: 58 | M58: =IFERROR(RANK($J58,INDIRECT(("$J$"&"1"&":$J$"&$A$449)))+COUNTIF($J$1:J58,J58)-1,"") -> 82 | N58: S.US.BLK | O58: S.US.BBY
A59: =IF(Symbols!A59="","",Symbols!A59) -> S.US.BMY | B59: 1 | C59: S.US.BMY | D59: =IF(A59="","",RTD("cqg.rtd", ,"ContractData",C59, "LongDescription",, "T")) -> Bristol-Myers Squibb Co | H59: =IF(A59="","",RTD("cqg.rtd", ,"ContractData",C59, "LastTradeToday",, "T")) -> 64.47 | I59: =IF(A59="","",RTD("cqg.rtd", ,"ContractData",C59, "NetLastTradeToday",, "T")) -> 0.77 | J59: =IF(A59="","",IFERROR(RTD("cqg.rtd", ,"ContractData",C59, "PerCentNetLastTrade",, "T")/100,"")) -> 0.01208791209 | K59: =IF(A59="","",RTD("cqg.rtd", ,"ContractData", C59, "T_CVol",, "T")) -> 1363934.217 | L59: 59 | M59: =IFERROR(RANK($J59,INDIRECT(("$J$"&"1"&":$J$"&$A$449)))+COUNTIF($J$1:J59,J59)-1,"") -> 133 | N59: S.US.BMY | O59: S.US.EIX
A60: =IF(Symbols!A60="","",Symbols!A60) -> S.US.BNY | B60: 0 | C60: S.US.BNY | D60: =IF(A60="","",RTD("cqg.rtd", ,"ContractData",C60, "LongDescription",, "T")) -> Bank of New York Co Inc | H60: =IF(A60="","",RTD("cqg.rtd", ,"ContractData",C60, "LastTradeToday",, "T")) -> 162.87 | I60: =IF(A60="","",RTD("cqg.rtd", ,"ContractData",C60, "NetLastTradeToday",, "T")) -> -0.06 | J60: =IF(A60="","",IFERROR(RTD("cqg.rtd", ,"ContractData",C60, "PerCentNetLastTrade",, "T")/100,"")) -> -0.0003682563064 | K60: =IF(A60="","",RTD("cqg.rtd", ,"ContractData", C60, "T_CVol",, "T")) -> 326166.1902 | L60: 60 | M60: =IFERROR(RANK($J60,INDIRECT(("$J$"&"1"&":$J$"&$A$449)))+COUNTIF($J$1:J60,J60)-1,"") -> 344 | N60: S.US.BNY | O60: S.US.BXP
A61: =IF(Symbols!A61="","",Symbols!A61) -> S.US.BR | B61: =IF(A61="","",IF(J61>0,1,0)) -> 1 | C61: =A61 -> S.US.BR | D61: =IF(A61="","",RTD("cqg.rtd", ,"ContractData",C61, "LongDescription",, "T")) -> Broadridge Financial Solutions | H61: =IF(A61="","",RTD("cqg.rtd", ,"ContractData",C61, "LastTradeToday",, "T")) -> 169.59 | I61: =IF(A61="","",RTD("cqg.rtd", ,"ContractData",C61, "NetLastTradeToday",, "T")) -> 0.32 | J61: =IF(A61="","",IFERROR(RTD("cqg.rtd", ,"ContractData",C61, "PerCentNetLastTrade",, "T")/100,"")) -> 0.001890470845 | K61: =IF(A61="","",RTD("cqg.rtd", ,"ContractData", C61, "T_CVol",, "T")) -> 162574.9294 | L61: 61 | M61: =IFERROR(RANK($J61,INDIRECT(("$J$"&"1"&":$J$"&$A$449)))+COUNTIF($J$1:J61,J61)-1,"") -> 314 | N61: S.US.BR | O61: S.US.MS
A62: =IF(Symbols!A62="","",Symbols!A62) -> S.US.BRO | B62: 1 | C62: S.US.BRO | D62: =IF(A62="","",RTD("cqg.rtd", ,"ContractData",C62, "LongDescription",, "T")) -> BROWN AND BROWN INC | H62: =IF(A62="","",RTD("cqg.rtd", ,"ContractData",C62, "LastTradeToday",, "T")) -> 71.44 | I62: =IF(A62="","",RTD("cqg.rtd", ,"ContractData",C62, "NetLastTradeToday",, "T")) -> 0.38 | J62: =IF(A62="","",IFERROR(RTD("cqg.rtd", ,"ContractData",C62, "PerCentNetLastTrade",, "T")/100,"")) -> 0.005347593583 | K62: =IF(A62="","",RTD("cqg.rtd", ,"ContractData", C62, "T_CVol",, "T")) -> 288518.6699 | L62: 62 | M62: =IFERROR(RANK($J62,INDIRECT(("$J$"&"1"&":$J$"&$A$449)))+COUNTIF($J$1:J62,J62)-1,"") -> 268 | N62: S.US.BRO | O62: S.US.GS
A63: =IF(Symbols!A63="","",Symbols!A63) -> S.US.BSX | B63: 1 | C63: S.US.BSX | D63: =IF(A63="","",RTD("cqg.rtd", ,"ContractData",C63, "LongDescription",, "T")) -> Boston Scientific Corp | H63: =IF(A63="","",RTD("cqg.rtd", ,"ContractData",C63, "LastTradeToday",, "T")) -> 52.14 | I63: =IF(A63="","",RTD("cqg.rtd", ,"ContractData",C63, "NetLastTradeToday",, "T")) -> 0.72 | J63: =IF(A63="","",IFERROR(RTD("cqg.rtd", ,"ContractData",C63, "PerCentNetLastTrade",, "T")/100,"")) -> 0.01400233372 | K63: =IF(A63="","",RTD("cqg.rtd", ,"ContractData", C63, "T_CVol",, "T")) -> 2653604.381 | L63: 63 | M63: =IFERROR(RANK($J63,INDIRECT(("$J$"&"1"&":$J$"&$A$449)))+COUNTIF($J$1:J63,J63)-1,"") -> 107 | N63: S.US.BSX | O63: S.US.ACN
A64: =IF(Symbols!A64="","",Symbols!A64) -> S.US.BX | B64: 1 | C64: S.US.BX | D64: =IF(A64="","",RTD("cqg.rtd", ,"ContractData",C64, "LongDescription",, "T")) -> Blackstone Inc. | H64: =IF(A64="","",RTD("cqg.rtd", ,"ContractData",C64, "LastTradeToday",, "T")) -> 149 | I64: =IF(A64="","",RTD("cqg.rtd", ,"ContractData",C64, "NetLastTradeToday",, "T")) -> 2.59 | J64: =IF(A64="","",IFERROR(RTD("cqg.rtd", ,"ContractData",C64, "PerCentNetLastTrade",, "T")/100,"")) -> 0.01769004849 | K64: =IF(A64="","",RTD("cqg.rtd", ,"ContractData", C64, "T_CVol",, "T")) -> 580140.0425 | L64: 64 | M64: =IFERROR(RANK($J64,INDIRECT(("$J$"&"1"&":$J$"&$A$449)))+COUNTIF($J$1:J64,J64)-1,"") -> 75 | N64: S.US.BX | O64: S.US.AMT
A65: =IF(Symbols!A65="","",Symbols!A65) -> S.US.BXP | B65: 1 | C65: S.US.BXP | D65: =IF(A65="","",RTD("cqg.rtd", ,"ContractData",C65, "LongDescription",, "T")) -> BXP, Inc. | H65: =IF(A65="","",RTD("cqg.rtd", ,"ContractData",C65, "LastTradeToday",, "T")) -> 69.29 | I65: =IF(A65="","",RTD("cqg.rtd", ,"ContractData",C65, "NetLastTradeToday",, "T")) -> 1.34 | J65: =IF(A65="","",IFERROR(RTD("cqg.rtd", ,"ContractData",C65, "PerCentNetLastTrade",, "T")/100,"")) -> 0.01972038263 | K65: =IF(A65="","",RTD("cqg.rtd", ,"ContractData", C65, "T_CVol",, "T")) -> 103649.1866 | L65: 65 | M65: =IFERROR(RANK($J65,INDIRECT(("$J$"&"1"&":$J$"&$A$449)))+COUNTIF($J$1:J65,J65)-1,"") -> 60 | N65: S.US.BXP | O65: S.US.INVH
A66: =IF(Symbols!A66="","",Symbols!A66) -> S.US.C | B66: 1 | C66: S.US.C | D66: =IF(A66="","",RTD("cqg.rtd", ,"ContractData",C66, "LongDescription",, "T")) -> Citigroup Inc | H66: =IF(A66="","",RTD("cqg.rtd", ,"ContractData",C66, "LastTradeToday",, "T")) -> 138.91 | I66: =IF(A66="","",RTD("cqg.rtd", ,"ContractData",C66, "NetLastTradeToday",, "T")) -> 1.33 | J66: =IF(A66="","",IFERROR(RTD("cqg.rtd", ,"ContractData",C66, "PerCentNetLastTrade",, "T")/100,"")) -> 0.009667102777 | K66: =IF(A66="","",RTD("cqg.rtd", ,"ContractData", C66, "T_CVol",, "T")) -> 1364887.927 | L66: 66 | M66: =IFERROR(RANK($J66,INDIRECT(("$J$"&"1"&":$J$"&$A$449)))+COUNTIF($J$1:J66,J66)-1,"") -> 171 | N66: =C66 -> S.US.C | O66: =IFERROR(VLOOKUP($L66,$M$1:$N$437,2,FALSE),"") -> S.US.ZBH
A67: =IF(Symbols!A67="","",Symbols!A67) -> S.US.CAH | B67: 0 | C67: S.US.CAH | D67: =IF(A67="","",RTD("cqg.rtd", ,"ContractData",C67, "LongDescription",, "T")) -> Cardinal Health Inc | H67: =IF(A67="","",RTD("cqg.rtd", ,"ContractData",C67, "LastTradeToday",, "T")) -> 233.37 | I67: =IF(A67="","",RTD("cqg.rtd", ,"ContractData",C67, "NetLastTradeToday",, "T")) -> -0.79 | J67: =IF(A67="","",IFERROR(RTD("cqg.rtd", ,"ContractData",C67, "PerCentNetLastTrade",, "T")/100,"")) -> -0.003373761531 | K67: =IF(A67="","",RTD("cqg.rtd", ,"ContractData", C67, "T_CVol",, "T")) -> 294154.5279 | L67: =L66+1 -> 67 | M67: =IFERROR(RANK($J67,INDIRECT(("$J$"&"1"&":$J$"&$A$449)))+COUNTIF($J$1:J67,J67)-1,"") -> 376 | N67: S.US.CAH | O67: S.US.EXR
A68: =IF(Symbols!A68="","",Symbols!A68) -> S.US.CARR | B68: 1 | C68: S.US.CARR | D68: =IF(A68="","",RTD("cqg.rtd", ,"ContractData",C68, "LongDescription",, "T")) -> Carrier Global Corporation | H68: =IF(A68="","",RTD("cqg.rtd", ,"ContractData",C68, "LastTradeToday",, "T")) -> 63.23 | I68: =IF(A68="","",RTD("cqg.rtd", ,"ContractData",C68, "NetLastTradeToday",, "T")) -> 0.15 | J68: =IF(A68="","",IFERROR(RTD("cqg.rtd", ,"ContractData",C68, "PerCentNetLastTrade",, "T")/100,"")) -> 0.002377932784 | K68: =IF(A68="","",RTD("cqg.rtd", ,"ContractData", C68, "T_CVol",, "T")) -> 343509.6928 | L68: 68 | M68: =IFERROR(RANK($J68,INDIRECT(("$J$"&"1"&":$J$"&$A$449)))+COUNTIF($J$1:J68,J68)-1,"") -> 308 | N68: S.US.CARR | O68: S.US.AXON
A69: =IF(Symbols!A69="","",Symbols!A69) -> S.US.CB | B69: 1 | C69: S.US.CB | D69: =IF(A69="","",RTD("cqg.rtd", ,"ContractData",C69, "LongDescription",, "T")) -> Chubb Limited | H69: =IF(A69="","",RTD("cqg.rtd", ,"ContractData",C69, "LastTradeToday",, "T")) -> 345.29 | I69: =IF(A69="","",RTD("cqg.rtd", ,"ContractData",C69, "NetLastTradeToday",, "T")) -> 1.96 | J69: =IF(A69="","",IFERROR(RTD("cqg.rtd", ,"ContractData",C69, "PerCentNetLastTrade",, "T")/100,"")) -> 0.005708793289 | K69: =IF(A69="","",RTD("cqg.rtd", ,"ContractData", C69, "T_CVol",, "T")) -> 167894.0461 | L69: 69 | M69: =IFERROR(RANK($J69,INDIRECT(("$J$"&"1"&":$J$"&$A$449)))+COUNTIF($J$1:J69,J69)-1,"") -> 263 | N69: S.US.CB | O69: S.US.MDLZ
A70: =IF(Symbols!A70="","",Symbols!A70) -> S.US.CBOE | B70: 1 | C70: S.US.CBOE | D70: =IF(A70="","",RTD("cqg.rtd", ,"ContractData",C70, "LongDescription",, "T")) -> Cboe Global Markets, Inc. | H70: =IF(A70="","",RTD("cqg.rtd", ,"ContractData",C70, "LastTradeToday",, "T")) -> 293.47 | I70: =IF(A70="","",RTD("cqg.rtd", ,"ContractData",C70, "NetLastTradeToday",, "T")) -> 2.49 | J70: =IF(A70="","",IFERROR(RTD("cqg.rtd", ,"ContractData",C70, "PerCentNetLastTrade",, "T")/100,"")) -> 0.008557289161 | K70: =IF(A70="","",RTD("cqg.rtd", ,"ContractData", C70, "T_CVol",, "T")) -> 98378.75106 | L70: 70 | M70: =IFERROR(RANK($J70,INDIRECT(("$J$"&"1"&":$J$"&$A$449)))+COUNTIF($J$1:J70,J70)-1,"") -> 195 | N70: S.US.CBOE | O70: S.US.MAS
A71: =IF(Symbols!A71="","",Symbols!A71) -> S.US.CBRE | B71: 1 | C71: S.US.CBRE | D71: =IF(A71="","",RTD("cqg.rtd", ,"ContractData",C71, "LongDescription",, "T")) -> CBRE Group, Inc. | H71: =IF(A71="","",RTD("cqg.rtd", ,"ContractData",C71, "LastTradeToday",, "T")) -> 150.07 | I71: =IF(A71="","",RTD("cqg.rtd", ,"ContractData",C71, "NetLastTradeToday",, "T")) -> 2.67 | J71: =IF(A71="","",IFERROR(RTD("cqg.rtd", ,"ContractData",C71, "PerCentNetLastTrade",, "T")/100,"")) -> 0.01811397558 | K71: =IF(A71="","",RTD("cqg.rtd", ,"ContractData", C71, "T_CVol",, "T")) -> 135351.3845 | L71: 71 | M71: =IFERROR(RANK($J71,INDIRECT(("$J$"&"1"&":$J$"&$A$449)))+COUNTIF($J$1:J71,J71)-1,"") -> 74 | N71: S.US.CBRE | O71: S.US.KMB
A72: =IF(Symbols!A72="","",Symbols!A72) -> S.US.CCI | B72: 1 | C72: S.US.CCI | D72: =IF(A72="","",RTD("cqg.rtd", ,"ContractData",C72, "LongDescription",, "T")) -> Crown Castle Intl | H72: =IF(A72="","",RTD("cqg.rtd", ,"ContractData",C72, "LastTradeToday",, "T")) -> 75.06 | I72: =IF(A72="","",RTD("cqg.rtd", ,"ContractData",C72, "NetLastTradeToday",, "T")) -> 1.09 | J72: =IF(A72="","",IFERROR(RTD("cqg.rtd", ,"ContractData",C72, "PerCentNetLastTrade",, "T")/100,"")) -> 0.01473570366 | K72: =IF(A72="","",RTD("cqg.rtd", ,"ContractData", C72, "T_CVol",, "T")) -> 330451.806 | L72: 72 | M72: =IFERROR(RANK($J72,INDIRECT(("$J$"&"1"&":$J$"&$A$449)))+COUNTIF($J$1:J72,J72)-1,"") -> 95 | N72: S.US.CCI | O72: S.US.STX
A73: =IF(Symbols!A73="","",Symbols!A73) -> S.US.CDNS | B73: 1 | C73: S.US.CDNS | D73: =IF(A73="","",RTD("cqg.rtd", ,"ContractData",C73, "LongDescription",, "T")) -> CADENCE DESIGN SYS | H73: =IF(A73="","",RTD("cqg.rtd", ,"ContractData",C73, "LastTradeToday",, "T")) -> 325.78 | I73: =IF(A73="","",RTD("cqg.rtd", ,"ContractData",C73, "NetLastTradeToday",, "T")) -> 2.65 | J73: =IF(A73="","",IFERROR(RTD("cqg.rtd", ,"ContractData",C73, "PerCentNetLastTrade",, "T")/100,"")) -> 0.00820103364 | K73: =IF(A73="","",RTD("cqg.rtd", ,"ContractData", C73, "T_CVol",, "T")) -> 347287.5414 | L73: 73 | M73: =IFERROR(RANK($J73,INDIRECT(("$J$"&"1"&":$J$"&$A$449)))+COUNTIF($J$1:J73,J73)-1,"") -> 204 | N73: S.US.CDNS | O73: S.US.CMG
A74: =IF(Symbols!A74="","",Symbols!A74) -> S.US.CDW | B74: 1 | C74: S.US.CDW | D74: =IF(A74="","",RTD("cqg.rtd", ,"ContractData",C74, "LongDescription",, "T")) -> CDW Corporation | H74: =IF(A74="","",RTD("cqg.rtd", ,"ContractData",C74, "LastTradeToday",, "T")) -> 138.38 | I74: =IF(A74="","",RTD("cqg.rtd", ,"ContractData",C74, "NetLastTradeToday",, "T")) -> 1.71 | J74: =IF(A74="","",IFERROR(RTD("cqg.rtd", ,"ContractData",C74, "PerCentNetLastTrade",, "T")/100,"")) -> 0.01251188995 | K74: =IF(A74="","",RTD("cqg.rtd", ,"ContractData", C74, "T_CVol",, "T")) -> 165252.9587 | L74: 74 | M74: =IFERROR(RANK($J74,INDIRECT(("$J$"&"1"&":$J$"&$A$449)))+COUNTIF($J$1:J74,J74)-1,"") -> 124 | N74: S.US.CDW | O74: S.US.CBRE
A75: =IF(Symbols!A75="","",Symbols!A75) -> S.US.CEG | B75: 1 | C75: S.US.CEG | D75: =IF(A75="","",RTD("cqg.rtd", ,"ContractData",C75, "LongDescription",, "T")) -> CONSTELLATION EN CM | H75: =IF(A75="","",RTD("cqg.rtd", ,"ContractData",C75, "LastTradeToday",, "T")) -> 280.17 | I75: =IF(A75="","",RTD("cqg.rtd", ,"ContractData",C75, "NetLastTradeToday",, "T")) -> 1.49 | J75: =IF(A75="","",IFERROR(RTD("cqg.rtd", ,"ContractData",C75, "PerCentNetLastTrade",, "T")/100,"")) -> 0.005346634132 | K75: =IF(A75="","",RTD("cqg.rtd", ,"ContractData", C75, "T_CVol",, "T")) -> 420275.0528 | L75: 75 | M75: =IFERROR(RANK($J75,INDIRECT(("$J$"&"1"&":$J$"&$A$449)))+COUNTIF($J$1:J75,J75)-1,"") -> 269 | N75: S.US.CEG | O75: S.US.BX
A76: =IF(Symbols!A76="","",Symbols!A76) -> S.US.CF | B76: 0 | C76: S.US.CF | D76: =IF(A76="","",RTD("cqg.rtd", ,"ContractData",C76, "LongDescription",, "T")) -> CF Industries Holdings, Inc | H76: =IF(A76="","",RTD("cqg.rtd", ,"ContractData",C76, "LastTradeToday",, "T")) -> 118.07 | I76: =IF(A76="","",RTD("cqg.rtd", ,"ContractData",C76, "NetLastTradeToday",, "T")) -> -1.94 | J76: =IF(A76="","",IFERROR(RTD("cqg.rtd", ,"ContractData",C76, "PerCentNetLastTrade",, "T")/100,"")) -> -0.01616531956 | K76: =IF(A76="","",RTD("cqg.rtd", ,"ContractData", C76, "T_CVol",, "T")) -> 200986.1526 | L76: 76 | M76: =IFERROR(RANK($J76,INDIRECT(("$J$"&"1"&":$J$"&$A$449)))+COUNTIF($J$1:J76,J76)-1,"") -> 432 | N76: S.US.CF | O76: S.US.EFX
A77: =IF(Symbols!A77="","",Symbols!A77) -> S.US.CFG | B77: 1 | C77: S.US.CFG | D77: =IF(A77="","",RTD("cqg.rtd", ,"ContractData",C77, "LongDescription",, "T")) -> Citizens Financial Group, Inc. | H77: =IF(A77="","",RTD("cqg.rtd", ,"ContractData",C77, "LastTradeToday",, "T")) -> 74.57 | I77: =IF(A77="","",RTD("cqg.rtd", ,"ContractData",C77, "NetLastTradeToday",, "T")) -> 0.66 | J77: =IF(A77="","",IFERROR(RTD("cqg.rtd", ,"ContractData",C77, "PerCentNetLastTrade",, "T")/100,"")) -> 0.008929779462 | K77: =IF(A77="","",RTD("cqg.rtd", ,"ContractData", C77, "T_CVol",, "T")) -> 480401.9525 | L77: 77 | M77: =IFERROR(RANK($J77,INDIRECT(("$J$"&"1"&":$J$"&$A$449)))+COUNTIF($J$1:J77,J77)-1,"") -> 185 | N77: S.US.CFG | O77: S.US.SPGI
A78: =IF(Symbols!A78="","",Symbols!A78) -> S.US.CHD | B78: 1 | C78: S.US.CHD | D78: =IF(A78="","",RTD("cqg.rtd", ,"ContractData",C78, "LongDescription",, "T")) -> Church/Dwight Co Inc | H78: =IF(A78="","",RTD("cqg.rtd", ,"ContractData",C78, "LastTradeToday",, "T")) -> 102.15 | I78: =IF(A78="","",RTD("cqg.rtd", ,"ContractData",C78, "NetLastTradeToday",, "T")) -> 0.91 | J78: =IF(A78="","",IFERROR(RTD("cqg.rtd", ,"ContractData",C78, "PerCentNetLastTrade",, "T")/100,"")) -> 0.008988542078 | K78: =IF(A78="","",RTD("cqg.rtd", ,"ContractData", C78, "T_CVol",, "T")) -> 95391.74996 | L78: 78 | M78: =IFERROR(RANK($J78,INDIRECT(("$J$"&"1"&":$J$"&$A$449)))+COUNTIF($J$1:J78,J78)-1,"") -> 184 | N78: S.US.CHD | O78: S.US.GL
A79: =IF(Symbols!A79="","",Symbols!A79) -> S.US.CHRW | B79: 1 | C79: S.US.CHRW | D79: =IF(A79="","",RTD("cqg.rtd", ,"ContractData",C79, "LongDescription",, "T")) -> C.H. ROBINSON WW | H79: =IF(A79="","",RTD("cqg.rtd", ,"ContractData",C79, "LastTradeToday",, "T")) -> 149 | I79: =IF(A79="","",RTD("cqg.rtd", ,"ContractData",C79, "NetLastTradeToday",, "T")) -> 2.3 | J79: =IF(A79="","",IFERROR(RTD("cqg.rtd", ,"ContractData",C79, "PerCentNetLastTrade",, "T")/100,"")) -> 0.01567825494 | K79: =IF(A79="","",RTD("cqg.rtd", ,"ContractData", C79, "T_CVol",, "T")) -> 192673.9164 | L79: 79 | M79: =IFERROR(RANK($J79,INDIRECT(("$J$"&"1"&":$J$"&$A$449)))+COUNTIF($J$1:J79,J79)-1,"") -> 88 | N79: S.US.CHRW | O79: S.US.ABBV
A80: =IF(Symbols!A80="","",Symbols!A80) -> S.US.CHTR | B80: 1 | C80: S.US.CHTR | D80: =IF(A80="","",RTD("cqg.rtd", ,"ContractData",C80, "LongDescription",, "T")) -> CHARTER COMMUNICATIO | H80: =IF(A80="","",RTD("cqg.rtd", ,"ContractData",C80, "LastTradeToday",, "T")) -> 154.96 | I80: =IF(A80="","",RTD("cqg.rtd", ,"ContractData",C80, "NetLastTradeToday",, "T")) -> 4.74 | J80: =IF(A80="","",IFERROR(RTD("cqg.rtd", ,"ContractData",C80, "PerCentNetLastTrade",, "T")/100,"")) -> 0.03155372121 | K80: =IF(A80="","",RTD("cqg.rtd", ,"ContractData", C80, "T_CVol",, "T")) -> 145491.663 | L80: 80 | M80: =IFERROR(RANK($J80,INDIRECT(("$J$"&"1"&":$J$"&$A$449)))+COUNTIF($J$1:J80,J80)-1,"") -> 17 | N80: S.US.CHTR | O80: S.US.QCOM
A81: =IF(Symbols!A81="","",Symbols!A81) -> S.US.CI | B81: 1 | C81: S.US.CI | D81: =IF(A81="","",RTD("cqg.rtd", ,"ContractData",C81, "LongDescription",, "T")) -> The Cigna Group | H81: =IF(A81="","",RTD("cqg.rtd", ,"ContractData",C81, "LastTradeToday",, "T")) -> 279.63 | I81: =IF(A81="","",RTD("cqg.rtd", ,"ContractData",C81, "NetLastTradeToday",, "T")) -> 2.22 | J81: =IF(A81="","",IFERROR(RTD("cqg.rtd", ,"ContractData",C81, "PerCentNetLastTrade",, "T")/100,"")) -> 0.008002595436 | K81: =IF(A81="","",RTD("cqg.rtd", ,"ContractData", C81, "T_CVol",, "T")) -> 122519.4226 | L81: 81 | M81: =IFERROR(RANK($J81,INDIRECT(("$J$"&"1"&":$J$"&$A$449)))+COUNTIF($J$1:J81,J81)-1,"") -> 208 | N81: S.US.CI | O81: S.US.FTNT
A82: =IF(Symbols!A82="","",Symbols!A82) -> S.US.CINF | B82: 1 | C82: S.US.CINF | D82: =IF(A82="","",RTD("cqg.rtd", ,"ContractData",C82, "LongDescription",, "T")) -> CINCINNATI FINANCIAL | H82: =IF(A82="","",RTD("cqg.rtd", ,"ContractData",C82, "LastTradeToday",, "T")) -> 173.6 | I82: =IF(A82="","",RTD("cqg.rtd", ,"ContractData",C82, "NetLastTradeToday",, "T")) -> 1.13 | J82: =IF(A82="","",IFERROR(RTD("cqg.rtd", ,"ContractData",C82, "PerCentNetLastTrade",, "T")/100,"")) -> 0.006551864092 | K82: =IF(A82="","",RTD("cqg.rtd", ,"ContractData", C82, "T_CVol",, "T")) -> 23797.62669 | L82: 82 | M82: =IFERROR(RANK($J82,INDIRECT(("$J$"&"1"&":$J$"&$A$449)))+COUNTIF($J$1:J82,J82)-1,"") -> 236 | N82: S.US.CINF | O82: S.US.BLK
A83: =IF(Symbols!A83="","",Symbols!A83) -> S.US.CL | B83: 1 | C83: S.US.CL | D83: =IF(A83="","",RTD("cqg.rtd", ,"ContractData",C83, "LongDescription",, "T")) -> Colgate-Palmolive Co | H83: =IF(A83="","",RTD("cqg.rtd", ,"ContractData",C83, "LastTradeToday",, "T")) -> 93.38 | I83: =IF(A83="","",RTD("cqg.rtd", ,"ContractData",C83, "NetLastTradeToday",, "T")) -> 1.06 | J83: =IF(A83="","",IFERROR(RTD("cqg.rtd", ,"ContractData",C83, "PerCentNetLastTrade",, "T")/100,"")) -> 0.01148180243 | K83: =IF(A83="","",RTD("cqg.rtd", ,"ContractData", C83, "T_CVol",, "T")) -> 280725.5434 | L83: 83 | M83: =IFERROR(RANK($J83,INDIRECT(("$J$"&"1"&":$J$"&$A$449)))+COUNTIF($J$1:J83,J83)-1,"") -> 146 | N83: S.US.CL | O83: S.US.VTR
A84: =IF(Symbols!A84="","",Symbols!A84) -> S.US.CLX | B84: 1 | C84: S.US.CLX | D84: =IF(A84="","",RTD("cqg.rtd", ,"ContractData",C84, "LongDescription",, "T")) -> Clorox Company | H84: =IF(A84="","",RTD("cqg.rtd", ,"ContractData",C84, "LastTradeToday",, "T")) -> 105.83 | I84: =IF(A84="","",RTD("cqg.rtd", ,"ContractData",C84, "NetLastTradeToday",, "T")) -> 0.07 | J84: =IF(A84="","",IFERROR(RTD("cqg.rtd", ,"ContractData",C84, "PerCentNetLastTrade",, "T")/100,"")) -> 0.0006618759455 | K84: =IF(A84="","",RTD("cqg.rtd", ,"ContractData", C84, "T_CVol",, "T")) -> 687284.4203 | L84: 84 | M84: =IFERROR(RANK($J84,INDIRECT(("$J$"&"1"&":$J$"&$A$449)))+COUNTIF($J$1:J84,J84)-1,"") -> 331 | N84: S.US.CLX | O84: S.US.PSA
A85: =IF(Symbols!A85="","",Symbols!A85) -> S.US.CMCSA | B85: 1 | C85: S.US.CMCSA | D85: =IF(A85="","",RTD("cqg.rtd", ,"ContractData",C85, "LongDescription",, "T")) -> COMCAST CORP A | H85: =IF(A85="","",RTD("cqg.rtd", ,"ContractData",C85, "LastTradeToday",, "T")) -> 26.01 | I85: =IF(A85="","",RTD("cqg.rtd", ,"ContractData",C85, "NetLastTradeToday",, "T")) -> 0.54 | J85: =IF(A85="","",IFERROR(RTD("cqg.rtd", ,"ContractData",C85, "PerCentNetLastTrade",, "T")/100,"")) -> 0.02120141343 | K85: =IF(A85="","",RTD("cqg.rtd", ,"ContractData", C85, "T_CVol",, "T")) -> 3010152.75 | L85: 85 | M85: =IFERROR(RANK($J85,INDIRECT(("$J$"&"1"&":$J$"&$A$449)))+COUNTIF($J$1:J85,J85)-1,"") -> 49 | N85: S.US.CMCSA | O85: S.US.WDAY
A86: =IF(Symbols!A86="","",Symbols!A86) -> S.US.CME | B86: 1 | C86: S.US.CME | D86: =IF(A86="","",RTD("cqg.rtd", ,"ContractData",C86, "LongDescription",, "T")) -> CME GROUP INC | H86: =IF(A86="","",RTD("cqg.rtd", ,"ContractData",C86, "LastTradeToday",, "T")) -> 264.93 | I86: =IF(A86="","",RTD("cqg.rtd", ,"ContractData",C86, "NetLastTradeToday",, "T")) -> 2.76 | J86: =IF(A86="","",IFERROR(RTD("cqg.rtd", ,"ContractData",C86, "PerCentNetLastTrade",, "T")/100,"")) -> 0.01052752031 | K86: =IF(A86="","",RTD("cqg.rtd", ,"ContractData", C86, "T_CVol",, "T")) -> 244534.9373 | L86: 86 | M86: =IFERROR(RANK($J86,INDIRECT(("$J$"&"1"&":$J$"&$A$449)))+COUNTIF($J$1:J86,J86)-1,"") -> 156 | N86: S.US.CME | O86: S.US.SBUX
A87: =IF(Symbols!A87="","",Symbols!A87) -> S.US.CMG | B87: 1 | C87: S.US.CMG | D87: =IF(A87="","",RTD("cqg.rtd", ,"ContractData",C87, "LongDescription",, "T")) -> Chipotle Mexican Grill | H87: =IF(A87="","",RTD("cqg.rtd", ,"ContractData",C87, "LastTradeToday",, "T")) -> 33.24 | I87: =IF(A87="","",RTD("cqg.rtd", ,"ContractData",C87, "NetLastTradeToday",, "T")) -> 0.6 | J87: =IF(A87="","",IFERROR(RTD("cqg.rtd", ,"ContractData",C87, "PerCentNetLastTrade",, "T")/100,"")) -> 0.01838235294 | K87: =IF(A87="","",RTD("cqg.rtd", ,"ContractData", C87, "T_CVol",, "T")) -> 5640318.511 | L87: 87 | M87: =IFERROR(RANK($J87,INDIRECT(("$J$"&"1"&":$J$"&$A$449)))+COUNTIF($J$1:J87,J87)-1,"") -> 73 | N87: S.US.CMG | O87: S.US.APO
A88: =IF(Symbols!A88="","",Symbols!A88) -> S.US.CMI | B88: 0 | C88: S.US.CMI | D88: =IF(A88="","",RTD("cqg.rtd", ,"ContractData",C88, "LongDescription",, "T")) -> Cummins Inc | H88: =IF(A88="","",RTD("cqg.rtd", ,"ContractData",C88, "LastTradeToday",, "T")) -> 634.94 | I88: =IF(A88="","",RTD("cqg.rtd", ,"ContractData",C88, "NetLastTradeToday",, "T")) -> -2.91 | J88: =IF(A88="","",IFERROR(RTD("cqg.rtd", ,"ContractData",C88, "PerCentNetLastTrade",, "T")/100,"")) -> -0.004562201144 | K88: =IF(A88="","",RTD("cqg.rtd", ,"ContractData", C88, "T_CVol",, "T")) -> 44904.01712 | L88: 88 | M88: =IFERROR(RANK($J88,INDIRECT(("$J$"&"1"&":$J$"&$A$449)))+COUNTIF($J$1:J88,J88)-1,"") -> 386 | N88: S.US.CMI | O88: S.US.CHRW
A89: =IF(Symbols!A89="","",Symbols!A89) -> S.US.CMS | B89: 1 | C89: S.US.CMS | D89: =IF(A89="","",RTD("cqg.rtd", ,"ContractData",C89, "LongDescription",, "T")) -> CMS Energy Corporation | H89: =IF(A89="","",RTD("cqg.rtd", ,"ContractData",C89, "LastTradeToday",, "T")) -> 70.58 | I89: =IF(A89="","",RTD("cqg.rtd", ,"ContractData",C89, "NetLastTradeToday",, "T")) -> 0.56 | J89: =IF(A89="","",IFERROR(RTD("cqg.rtd", ,"ContractData",C89, "PerCentNetLastTrade",, "T")/100,"")) -> 0.007997714939 | K89: =IF(A89="","",RTD("cqg.rtd", ,"ContractData", C89, "T_CVol",, "T")) -> 364600.8523 | L89: 89 | M89: =IFERROR(RANK($J89,INDIRECT(("$J$"&"1"&":$J$"&$A$449)))+COUNTIF($J$1:J89,J89)-1,"") -> 209 | N89: S.US.CMS | O89: S.US.PFE
A90: =IF(Symbols!A90="","",Symbols!A90) -> S.US.CNC | B90: 0 | C90: S.US.CNC | D90: =IF(A90="","",RTD("cqg.rtd", ,"ContractData",C90, "LongDescription",, "T")) -> Cenetene Corporation | H90: =IF(A90="","",RTD("cqg.rtd", ,"ContractData",C90, "LastTradeToday",, "T")) -> 66.85 | I90: =IF(A90="","",RTD("cqg.rtd", ,"ContractData",C90, "NetLastTradeToday",, "T")) -> -0.22 | J90: =IF(A90="","",IFERROR(RTD("cqg.rtd", ,"ContractData",C90, "PerCentNetLastTrade",, "T")/100,"")) -> -0.003280155062 | K90: =IF(A90="","",RTD("cqg.rtd", ,"ContractData", C90, "T_CVol",, "T")) -> 362224.9666 | L90: 90 | M90: =IFERROR(RANK($J90,INDIRECT(("$J$"&"1"&":$J$"&$A$449)))+COUNTIF($J$1:J90,J90)-1,"") -> 374 | N90: S.US.CNC | O90: S.US.PCG
A91: =IF(Symbols!A91="","",Symbols!A91) -> S.US.CNP | B91: 1 | C91: S.US.CNP | D91: =IF(A91="","",RTD("cqg.rtd", ,"ContractData",C91, "LongDescription",, "T")) -> Centerpoint Energy Holding Co. | H91: =IF(A91="","",RTD("cqg.rtd", ,"ContractData",C91, "LastTradeToday",, "T")) -> 40.77 | I91: =IF(A91="","",RTD("cqg.rtd", ,"ContractData",C91, "NetLastTradeToday",, "T")) -> 0.24 | J91: =IF(A91="","",IFERROR(RTD("cqg.rtd", ,"ContractData",C91, "PerCentNetLastTrade",, "T")/100,"")) -> 0.0059215396 | K91: =IF(A91="","",RTD("cqg.rtd", ,"ContractData", C91, "T_CVol",, "T")) -> 457020.5946 | L91: 91 | M91: =IFERROR(RANK($J91,INDIRECT(("$J$"&"1"&":$J$"&$A$449)))+COUNTIF($J$1:J91,J91)-1,"") -> 253 | N91: S.US.CNP | O91: S.US.TSLA
A92: =IF(Symbols!A92="","",Symbols!A92) -> S.US.COF | B92: 1 | C92: S.US.COF | D92: =IF(A92="","",RTD("cqg.rtd", ,"ContractData",C92, "LongDescription",, "T")) -> Capital One Financl Corp | H92: =IF(A92="","",RTD("cqg.rtd", ,"ContractData",C92, "LastTradeToday",, "T")) -> 223.7 | I92: =IF(A92="","",RTD("cqg.rtd", ,"ContractData",C92, "NetLastTradeToday",, "T")) -> 1.26 | J92: =IF(A92="","",IFERROR(RTD("cqg.rtd", ,"ContractData",C92, "PerCentNetLastTrade",, "T")/100,"")) -> 0.00566444884 | K92: =IF(A92="","",RTD("cqg.rtd", ,"ContractData", C92, "T_CVol",, "T")) -> 321362.5381 | L92: 92 | M92: =IFERROR(RANK($J92,INDIRECT(("$J$"&"1"&":$J$"&$A$449)))+COUNTIF($J$1:J92,J92)-1,"") -> 265 | N92: S.US.COF | O92: S.US.TAP
A93: =IF(Symbols!A93="","",Symbols!A93) -> S.US.COIN | B93: 1 | C93: S.US.COIN | D93: =IF(A93="","",RTD("cqg.rtd", ,"ContractData",C93, "LongDescription",, "T")) -> COINBASE GLB CL A CM | H93: =IF(A93="","",RTD("cqg.rtd", ,"ContractData",C93, "LastTradeToday",, "T")) -> 150.62 | I93: =IF(A93="","",RTD("cqg.rtd", ,"ContractData",C93, "NetLastTradeToday",, "T")) -> 1.58 | J93: =IF(A93="","",IFERROR(RTD("cqg.rtd", ,"ContractData",C93, "PerCentNetLastTrade",, "T")/100,"")) -> 0.01060118089 | K93: =IF(A93="","",RTD("cqg.rtd", ,"ContractData", C93, "T_CVol",, "T")) -> 1467124.193 | L93: 93 | M93: =IFERROR(RANK($J93,INDIRECT(("$J$"&"1"&":$J$"&$A$449)))+COUNTIF($J$1:J93,J93)-1,"") -> 154 | N93: S.US.COIN | O93: S.US.KR
A94: =IF(Symbols!A94="","",Symbols!A94) -> S.US.COO | B94: 1 | C94: S.US.COO | D94: =IF(A94="","",RTD("cqg.rtd", ,"ContractData",C94, "LongDescription",, "T")) -> THE COOPER CO INC CM | H94: =IF(A94="","",RTD("cqg.rtd", ,"ContractData",C94, "LastTradeToday",, "T")) -> 77.49 | I94: =IF(A94="","",RTD("cqg.rtd", ,"ContractData",C94, "NetLastTradeToday",, "T")) -> 0.76 | J94: =IF(A94="","",IFERROR(RTD("cqg.rtd", ,"ContractData",C94, "PerCentNetLastTrade",, "T")/100,"")) -> 0.009904861202 | K94: =IF(A94="","",RTD("cqg.rtd", ,"ContractData", C94, "T_CVol",, "T")) -> 168480.2603 | L94: 94 | M94: =IFERROR(RANK($J94,INDIRECT(("$J$"&"1"&":$J$"&$A$449)))+COUNTIF($J$1:J94,J94)-1,"") -> 164 | N94: S.US.COO | O94: S.US.KVUE
A95: =IF(Symbols!A95="","",Symbols!A95) -> S.US.COP | B95: 0 | C95: S.US.COP | D95: =IF(A95="","",RTD("cqg.rtd", ,"ContractData",C95, "LongDescription",, "T")) -> ConocoPhillips | H95: =IF(A95="","",RTD("cqg.rtd", ,"ContractData",C95, "LastTradeToday",, "T")) -> 125.47 | I95: =IF(A95="","",RTD("cqg.rtd", ,"ContractData",C95, "NetLastTradeToday",, "T")) -> -1.83 | J95: =IF(A95="","",IFERROR(RTD("cqg.rtd", ,"ContractData",C95, "PerCentNetLastTrade",, "T")/100,"")) -> -0.01437549097 | K95: =IF(A95="","",RTD("cqg.rtd", ,"ContractData", C95, "T_CVol",, "T")) -> 844732.0768 | L95: 95 | M95: =IFERROR(RANK($J95,INDIRECT(("$J$"&"1"&":$J$"&$A$449)))+COUNTIF($J$1:J95,J95)-1,"") -> 430 | N95: S.US.COP | O95: S.US.CCI
A96: =IF(Symbols!A96="","",Symbols!A96) -> S.US.COR | B96: 0 | C96: S.US.COR | D96: =IF(A96="","",RTD("cqg.rtd", ,"ContractData",C96, "LongDescription",, "T")) -> Cencora Inc. | H96: =IF(A96="","",RTD("cqg.rtd", ,"ContractData",C96, "LastTradeToday",, "T")) -> 313.47 | I96: =IF(A96="","",RTD("cqg.rtd", ,"ContractData",C96, "NetLastTradeToday",, "T")) -> -0.7 | J96: =IF(A96="","",IFERROR(RTD("cqg.rtd", ,"ContractData",C96, "PerCentNetLastTrade",, "T")/100,"")) -> -0.002228093071 | K96: =IF(A96="","",RTD("cqg.rtd", ,"ContractData", C96, "T_CVol",, "T")) -> 305726.3547 | L96: 96 | M96: =IFERROR(RANK($J96,INDIRECT(("$J$"&"1"&":$J$"&$A$449)))+COUNTIF($J$1:J96,J96)-1,"") -> 368 | N96: S.US.COR | O96: S.US.GEN
A97: =IF(Symbols!A97="","",Symbols!A97) -> S.US.COST | B97: 1 | C97: S.US.COST | D97: =IF(A97="","",RTD("cqg.rtd", ,"ContractData",C97, "LongDescription",, "T")) -> COSTCO WHOLESALE | H97: =IF(A97="","",RTD("cqg.rtd", ,"ContractData",C97, "LastTradeToday",, "T")) -> 954.26 | I97: =IF(A97="","",RTD("cqg.rtd", ,"ContractData",C97, "NetLastTradeToday",, "T")) -> 4.69 | J97: =IF(A97="","",IFERROR(RTD("cqg.rtd", ,"ContractData",C97, "PerCentNetLastTrade",, "T")/100,"")) -> 0.004939077688 | K97: =IF(A97="","",RTD("cqg.rtd", ,"ContractData", C97, "T_CVol",, "T")) -> 228374.9955 | L97: 97 | M97: =IFERROR(RANK($J97,INDIRECT(("$J$"&"1"&":$J$"&$A$449)))+COUNTIF($J$1:J97,J97)-1,"") -> 274 | N97: S.US.COST | O97: S.US.IRM
A98: =IF(Symbols!A98="","",Symbols!A98) -> S.US.CPAY | B98: 1 | C98: S.US.CPAY | D98: =IF(A98="","",RTD("cqg.rtd", ,"ContractData",C98, "LongDescription",, "T")) -> Corpay, Inc. | H98: =IF(A98="","",RTD("cqg.rtd", ,"ContractData",C98, "LastTradeToday",, "T")) -> 414.2 | I98: =IF(A98="","",RTD("cqg.rtd", ,"ContractData",C98, "NetLastTradeToday",, "T")) -> 4.52 | J98: =IF(A98="","",IFERROR(RTD("cqg.rtd", ,"ContractData",C98, "PerCentNetLastTrade",, "T")/100,"")) -> 0.01103300137 | K98: =IF(A98="","",RTD("cqg.rtd", ,"ContractData", C98, "T_CVol",, "T")) -> 63264.99737 | L98: 98 | M98: =IFERROR(RANK($J98,INDIRECT(("$J$"&"1"&":$J$"&$A$449)))+COUNTIF($J$1:J98,J98)-1,"") -> 150 | N98: S.US.CPAY | O98: S.US.TSN
A99: =IF(Symbols!A99="","",Symbols!A99) -> S.US.CPRT | B99: 1 | C99: S.US.CPRT | D99: =IF(A99="","",RTD("cqg.rtd", ,"ContractData",C99, "LongDescription",, "T")) -> COPART, INC. | H99: =IF(A99="","",RTD("cqg.rtd", ,"ContractData",C99, "LastTradeToday",, "T")) -> 29.36 | I99: =IF(A99="","",RTD("cqg.rtd", ,"ContractData",C99, "NetLastTradeToday",, "T")) -> 0.37 | J99: =IF(A99="","",IFERROR(RTD("cqg.rtd", ,"ContractData",C99, "PerCentNetLastTrade",, "T")/100,"")) -> 0.01276302173 | K99: =IF(A99="","",RTD("cqg.rtd", ,"ContractData", C99, "T_CVol",, "T")) -> 1313922.408 | L99: 99 | M99: =IFERROR(RANK($J99,INDIRECT(("$J$"&"1"&":$J$"&$A$449)))+COUNTIF($J$1:J99,J99)-1,"") -> 119 | N99: S.US.CPRT | O99: S.US.CVS
A100: =IF(Symbols!A100="","",Symbols!A100) -> S.US.CPT | B100: 1 | C100: S.US.CPT | D100: =IF(A100="","",RTD("cqg.rtd", ,"ContractData",C100, "LongDescription",, "T")) -> Camden Property Trust | H100: =IF(A100="","",RTD("cqg.rtd", ,"ContractData",C100, "LastTradeToday",, "T")) -> 110.98 | I100: =IF(A100="","",RTD("cqg.rtd", ,"ContractData",C100, "NetLastTradeToday",, "T")) -> 2.6 | J100: =IF(A100="","",IFERROR(RTD("cqg.rtd", ,"ContractData",C100, "PerCentNetLastTrade",, "T")/100,"")) -> 0.02398966599 | K100: =IF(A100="","",RTD("cqg.rtd", ,"ContractData", C100, "T_CVol",, "T")) -> 58336.28734 | L100: 100 | M100: =IFERROR(RANK($J100,INDIRECT(("$J$"&"1"&":$J$"&$A$449)))+COUNTIF($J$1:J100,J100)-1,"") -> 35 | N100: S.US.CPT | O100: S.US.DIS
A101: =IF(Symbols!A101="","",Symbols!A101) -> S.US.CRH | B101: 1 | C101: S.US.CRH | D101: =IF(A101="","",RTD("cqg.rtd", ,"ContractData",C101, "LongDescription",, "T")) -> CRH Public Limited Company | H101: =IF(A101="","",RTD("cqg.rtd", ,"ContractData",C101, "LastTradeToday",, "T")) -> 98.56 | I101: =IF(A101="","",RTD("cqg.rtd", ,"ContractData",C101, "NetLastTradeToday",, "T")) -> 0.57 | J101: =IF(A101="","",IFERROR(RTD("cqg.rtd", ,"ContractData",C101, "PerCentNetLastTrade",, "T")/100,"")) -> 0.005816920094 | K101: =IF(A101="","",RTD("cqg.rtd", ,"ContractData", C101, "T_CVol",, "T")) -> 681361.3809 | L101: 101 | M101: =IFERROR(RANK($J101,INDIRECT(("$J$"&"1"&":$J$"&$A$449)))+COUNTIF($J$1:J101,J101)-1,"") -> 256 | N101: S.US.CRH | O101: S.US.ARE
A102: =IF(Symbols!A102="","",Symbols!A102) -> S.US.CRL | B102: 1 | C102: S.US.CRL | D102: =IF(A102="","",RTD("cqg.rtd", ,"ContractData",C102, "LongDescription",, "T")) -> Charles River Labs Hldgs Inc | H102: =IF(A102="","",RTD("cqg.rtd", ,"ContractData",C102, "LastTradeToday",, "T")) -> 285.04 | I102: =IF(A102="","",RTD("cqg.rtd", ,"ContractData",C102, "NetLastTradeToday",, "T")) -> 0.67 | J102: =IF(A102="","",IFERROR(RTD("cqg.rtd", ,"ContractData",C102, "PerCentNetLastTrade",, "T")/100,"")) -> 0.002356085382 | K102: =IF(A102="","",RTD("cqg.rtd", ,"ContractData", C102, "T_CVol",, "T")) -> 72172.84803 | L102: 102 | M102: =IFERROR(RANK($J102,INDIRECT(("$J$"&"1"&":$J$"&$A$449)))+COUNTIF($J$1:J102,J102)-1,"") -> 309 | N102: S.US.CRL | O102: S.US.BAX
A103: =IF(Symbols!A103="","",Symbols!A103) -> S.US.CRM | B103: 1 | C103: S.US.CRM | D103: =IF(A103="","",RTD("cqg.rtd", ,"ContractData",C103, "LongDescription",, "T")) -> Salesforce, Inc. | H103: =IF(A103="","",RTD("cqg.rtd", ,"ContractData",C103, "LastTradeToday",, "T")) -> 195.21 | I103: =IF(A103="","",RTD("cqg.rtd", ,"ContractData",C103, "NetLastTradeToday",, "T")) -> 1.89 | J103: =IF(A103="","",IFERROR(RTD("cqg.rtd", ,"ContractData",C103, "PerCentNetLastTrade",, "T")/100,"")) -> 0.009776536313 | K103: =IF(A103="","",RTD("cqg.rtd", ,"ContractData", C103, "T_CVol",, "T")) -> 2007965.391 | L103: 103 | M103: =IFERROR(RANK($J103,INDIRECT(("$J$"&"1"&":$J$"&$A$449)))+COUNTIF($J$1:J103,J103)-1,"") -> 168 | N103: S.US.CRM | O103: S.US.JBL
A104: =IF(Symbols!A104="","",Symbols!A104) -> S.US.CSCO | B104: 0 | C104: S.US.CSCO | D104: =IF(A104="","",RTD("cqg.rtd", ,"ContractData",C104, "LongDescription",, "T")) -> CISCO SYSTEMS INC. | H104: =IF(A104="","",RTD("cqg.rtd", ,"ContractData",C104, "LastTradeToday",, "T")) -> 115.22 | I104: =IF(A104="","",RTD("cqg.rtd", ,"ContractData",C104, "NetLastTradeToday",, "T")) -> -8.66 | J104: =IF(A104="","",IFERROR(RTD("cqg.rtd", ,"ContractData",C104, "PerCentNetLastTrade",, "T")/100,"")) -> -0.06990636099 | K104: =IF(A104="","",RTD("cqg.rtd", ,"ContractData", C104, "T_CVol",, "T")) -> 22243084.28 | L104: 104 | M104: =IFERROR(RANK($J104,INDIRECT(("$J$"&"1"&":$J$"&$A$449)))+COUNTIF($J$1:J104,J104)-1,"") -> 436 | N104: S.US.CSCO | O104: S.US.FRT
A105: =IF(Symbols!A105="","",Symbols!A105) -> S.US.CSGP | B105: 1 | C105: S.US.CSGP | D105: =IF(A105="","",RTD("cqg.rtd", ,"ContractData",C105, "LongDescription",, "T")) -> COSTAR GROUP INC ## | H105: =IF(A105="","",RTD("cqg.rtd", ,"ContractData",C105, "LastTradeToday",, "T")) -> 31.71 | I105: =IF(A105="","",RTD("cqg.rtd", ,"ContractData",C105, "NetLastTradeToday",, "T")) -> 1.21 | J105: =IF(A105="","",IFERROR(RTD("cqg.rtd", ,"ContractData",C105, "PerCentNetLastTrade",, "T")/100,"")) -> 0.03967213115 | K105: =IF(A105="","",RTD("cqg.rtd", ,"ContractData", C105, "T_CVol",, "T")) -> 819631.631 | L105: 105 | M105: =IFERROR(RANK($J105,INDIRECT(("$J$"&"1"&":$J$"&$A$449)))+COUNTIF($J$1:J105,J105)-1,"") -> 8 | N105: S.US.CSGP | O105: S.US.GDDY
A106: =IF(Symbols!A106="","",Symbols!A106) -> S.US.CSX | B106: 1 | C106: S.US.CSX | D106: =IF(A106="","",RTD("cqg.rtd", ,"ContractData",C106, "LongDescription",, "T")) -> CSX Corporation | H106: =IF(A106="","",RTD("cqg.rtd", ,"ContractData",C106, "LastTradeToday",, "T")) -> 50.61 | I106: =IF(A106="","",RTD("cqg.rtd", ,"ContractData",C106, "NetLastTradeToday",, "T")) -> 0.53 | J106: =IF(A106="","",IFERROR(RTD("cqg.rtd", ,"ContractData",C106, "PerCentNetLastTrade",, "T")/100,"")) -> 0.01058306709 | K106: =IF(A106="","",RTD("cqg.rtd", ,"ContractData", C106, "T_CVol",, "T")) -> 1076740.402 | L106: 106 | M106: =IFERROR(RANK($J106,INDIRECT(("$J$"&"1"&":$J$"&$A$449)))+COUNTIF($J$1:J106,J106)-1,"") -> 155 | N106: S.US.CSX | O106: S.US.MLM
A107: =IF(Symbols!A107="","",Symbols!A107) -> S.US.CTAS | B107: 1 | C107: S.US.CTAS | D107: =IF(A107="","",RTD("cqg.rtd", ,"ContractData",C107, "LongDescription",, "T")) -> Cintas Corp | H107: =IF(A107="","",RTD("cqg.rtd", ,"ContractData",C107, "LastTradeToday",, "T")) -> 203.7 | I107: =IF(A107="","",RTD("cqg.rtd", ,"ContractData",C107, "NetLastTradeToday",, "T")) -> 0.19 | J107: =IF(A107="","",IFERROR(RTD("cqg.rtd", ,"ContractData",C107, "PerCentNetLastTrade",, "T")/100,"")) -> 0.0009336150558 | K107: =IF(A107="","",RTD("cqg.rtd", ,"ContractData", C107, "T_CVol",, "T")) -> 214224.0597 | L107: 107 | M107: =IFERROR(RANK($J107,INDIRECT(("$J$"&"1"&":$J$"&$A$449)))+COUNTIF($J$1:J107,J107)-1,"") -> 324 | N107: S.US.CTAS | O107: S.US.BSX
A108: =IF(Symbols!A108="","",Symbols!A108) -> S.US.CTSH | B108: 1 | C108: S.US.CTSH | D108: =IF(A108="","",RTD("cqg.rtd", ,"ContractData",C108, "LongDescription",, "T")) -> COGNIZANT TECH SOL | H108: =IF(A108="","",RTD("cqg.rtd", ,"ContractData",C108, "LastTradeToday",, "T")) -> 58.88 | I108: =IF(A108="","",RTD("cqg.rtd", ,"ContractData",C108, "NetLastTradeToday",, "T")) -> 0.68 | J108: =IF(A108="","",IFERROR(RTD("cqg.rtd", ,"ContractData",C108, "PerCentNetLastTrade",, "T")/100,"")) -> 0.0116838488 | K108: =IF(A108="","",RTD("cqg.rtd", ,"ContractData", C108, "T_CVol",, "T")) -> 689972.2001 | L108: 108 | M108: =IFERROR(RANK($J108,INDIRECT(("$J$"&"1"&":$J$"&$A$449)))+COUNTIF($J$1:J108,J108)-1,"") -> 141 | N108: S.US.CTSH | O108: S.US.SJM
A109: =IF(Symbols!A109="","",Symbols!A109) -> S.US.CTVA | B109: 0 | C109: S.US.CTVA | D109: =IF(A109="","",RTD("cqg.rtd", ,"ContractData",C109, "LongDescription",, "T")) -> Corteva Inc | H109: =IF(A109="","",RTD("cqg.rtd", ,"ContractData",C109, "LastTradeToday",, "T")) -> 75.47 | I109: =IF(A109="","",RTD("cqg.rtd", ,"ContractData",C109, "NetLastTradeToday",, "T")) -> -0.06 | J109: =IF(A109="","",IFERROR(RTD("cqg.rtd", ,"ContractData",C109, "PerCentNetLastTrade",, "T")/100,"")) -> -0.0007943863366 | K109: =IF(A109="","",RTD("cqg.rtd", ,"ContractData", C109, "T_CVol",, "T")) -> 223041.9812 | L109: 109 | M109: =IFERROR(RANK($J109,INDIRECT(("$J$"&"1"&":$J$"&$A$449)))+COUNTIF($J$1:J109,J109)-1,"") -> 348 | N109: S.US.CTVA | O109: S.US.Q
A110: =IF(Symbols!A110="","",Symbols!A110) -> S.US.CVNA | B110: 1 | C110: S.US.CVNA | D110: =IF(A110="","",RTD("cqg.rtd", ,"ContractData",C110, "LongDescription",, "T")) -> Carvana Co. | H110: =IF(A110="","",RTD("cqg.rtd", ,"ContractData",C110, "LastTradeToday",, "T")) -> 74.35 | I110: =IF(A110="","",RTD("cqg.rtd", ,"ContractData",C110, "NetLastTradeToday",, "T")) -> 1.87 | J110: =IF(A110="","",IFERROR(RTD("cqg.rtd", ,"ContractData",C110, "PerCentNetLastTrade",, "T")/100,"")) -> 0.02580022075 | K110: =IF(A110="","",RTD("cqg.rtd", ,"ContractData", C110, "T_CVol",, "T")) -> 1968332.559 | L110: 110 | M110: =IFERROR(RANK($J110,INDIRECT(("$J$"&"1"&":$J$"&$A$449)))+COUNTIF($J$1:J110,J110)-1,"") -> 31 | N110: S.US.CVNA | O110: S.US.MRK
A111: =IF(Symbols!A111="","",Symbols!A111) -> S.US.CVS | B111: 1 | C111: S.US.CVS | D111: =IF(A111="","",RTD("cqg.rtd", ,"ContractData",C111, "LongDescription",, "T")) -> CVS Health Corporation | H111: =IF(A111="","",RTD("cqg.rtd", ,"ContractData",C111, "LastTradeToday",, "T")) -> 96.07 | I111: =IF(A111="","",RTD("cqg.rtd", ,"ContractData",C111, "NetLastTradeToday",, "T")) -> 1.35 | J111: =IF(A111="","",IFERROR(RTD("cqg.rtd", ,"ContractData",C111, "PerCentNetLastTrade",, "T")/100,"")) -> 0.01425253378 | K111: =IF(A111="","",RTD("cqg.rtd", ,"ContractData", C111, "T_CVol",, "T")) -> 976180.2975 | L111: 111 | M111: =IFERROR(RANK($J111,INDIRECT(("$J$"&"1"&":$J$"&$A$449)))+COUNTIF($J$1:J111,J111)-1,"") -> 99 | N111: S.US.CVS | O111: S.US.FDX
A112: =IF(Symbols!A112="","",Symbols!A112) -> S.US.CVX | B112: 0 | C112: S.US.CVX | D112: =IF(A112="","",RTD("cqg.rtd", ,"ContractData",C112, "LongDescription",, "T")) -> Chevron Corp | H112: =IF(A112="","",RTD("cqg.rtd", ,"ContractData",C112, "LastTradeToday",, "T")) -> 196.48 | I112: =IF(A112="","",RTD("cqg.rtd", ,"ContractData",C112, "NetLastTradeToday",, "T")) -> -0.12 | J112: =IF(A112="","",IFERROR(RTD("cqg.rtd", ,"ContractData",C112, "PerCentNetLastTrade",, "T")/100,"")) -> -0.0006103763988 | K112: =IF(A112="","",RTD("cqg.rtd", ,"ContractData", C112, "T_CVol",, "T")) -> 1097752.896 | L112: 112 | M112: =IFERROR(RANK($J112,INDIRECT(("$J$"&"1"&":$J$"&$A$449)))+COUNTIF($J$1:J112,J112)-1,"") -> 347 | N112: S.US.CVX | O112: S.US.SBAC
A113: =IF(Symbols!A113="","",Symbols!A113) -> S.US.D | B113: 1 | C113: S.US.D | D113: =IF(A113="","",RTD("cqg.rtd", ,"ContractData",C113, "LongDescription",, "T")) -> Dominion Energy, Inc. | H113: =IF(A113="","",RTD("cqg.rtd", ,"ContractData",C113, "LastTradeToday",, "T")) -> 68.57 | I113: =IF(A113="","",RTD("cqg.rtd", ,"ContractData",C113, "NetLastTradeToday",, "T")) -> 0.53 | J113: =IF(A113="","",IFERROR(RTD("cqg.rtd", ,"ContractData",C113, "PerCentNetLastTrade",, "T")/100,"")) -> 0.007789535567 | K113: =IF(A113="","",RTD("cqg.rtd", ,"ContractData", C113, "T_CVol",, "T")) -> 547025.7309 | L113: 113 | M113: =IFERROR(RANK($J113,INDIRECT(("$J$"&"1"&":$J$"&$A$449)))+COUNTIF($J$1:J113,J113)-1,"") -> 213 | N113: S.US.D | O113: S.US.TER
A114: =IF(Symbols!A114="","",Symbols!A114) -> S.US.DAL | B114: 1 | C114: S.US.DAL | D114: =IF(A114="","",RTD("cqg.rtd", ,"ContractData",C114, "LongDescription",, "T")) -> Delta Airlines, Inc. | H114: =IF(A114="","",RTD("cqg.rtd", ,"ContractData",C114, "LastTradeToday",, "T")) -> 91.99 | I114: =IF(A114="","",RTD("cqg.rtd", ,"ContractData",C114, "NetLastTradeToday",, "T")) -> 2.05 | J114: =IF(A114="","",IFERROR(RTD("cqg.rtd", ,"ContractData",C114, "PerCentNetLastTrade",, "T")/100,"")) -> 0.02279550762 | K114: =IF(A114="","",RTD("cqg.rtd", ,"ContractData", C114, "T_CVol",, "T")) -> 753153.6498 | L114: 114 | M114: =IFERROR(RANK($J114,INDIRECT(("$J$"&"1"&":$J$"&$A$449)))+COUNTIF($J$1:J114,J114)-1,"") -> 44 | N114: S.US.DAL | O114: S.US.PRU
A115: =IF(Symbols!A115="","",Symbols!A115) -> S.US.DD | B115: 0 | C115: S.US.DD | D115: =IF(A115="","",RTD("cqg.rtd", ,"ContractData",C115, "LongDescription",, "T")) -> E.I. du Pont de Nemours and Co. (DuPont) | H115: =IF(A115="","",RTD("cqg.rtd", ,"ContractData",C115, "LastTradeToday",, "T")) -> 144.21 | I115: =IF(A115="","",RTD("cqg.rtd", ,"ContractData",C115, "NetLastTradeToday",, "T")) -> -0.16 | J115: =IF(A115="","",IFERROR(RTD("cqg.rtd", ,"ContractData",C115, "PerCentNetLastTrade",, "T")/100,"")) -> -0.00110826349 | K115: =IF(A115="","",RTD("cqg.rtd", ,"ContractData", C115, "T_CVol",, "T")) -> 97167.92836 | L115: 115 | M115: =IFERROR(RANK($J115,INDIRECT(("$J$"&"1"&":$J$"&$A$449)))+COUNTIF($J$1:J115,J115)-1,"") -> 351 | N115: S.US.DD | O115: S.US.VTRS
A116: =IF(Symbols!A116="","",Symbols!A116) -> S.US.DE | B116: 0 | C116: S.US.DE | D116: =IF(A116="","",RTD("cqg.rtd", ,"ContractData",C116, "LongDescription",, "T")) -> Deere & Company | H116: =IF(A116="","",RTD("cqg.rtd", ,"ContractData",C116, "LastTradeToday",, "T")) -> 617.95 | I116: =IF(A116="","",RTD("cqg.rtd", ,"ContractData",C116, "NetLastTradeToday",, "T")) -> -1.82 | J116: =IF(A116="","",IFERROR(RTD("cqg.rtd", ,"ContractData",C116, "PerCentNetLastTrade",, "T")/100,"")) -> -0.002936573245 | K116: =IF(A116="","",RTD("cqg.rtd", ,"ContractData", C116, "T_CVol",, "T")) -> 48099.86907 | L116: 116 | M116: =IFERROR(RANK($J116,INDIRECT(("$J$"&"1"&":$J$"&$A$449)))+COUNTIF($J$1:J116,J116)-1,"") -> 369 | N116: S.US.DE | O116: S.US.NSC
A117: =IF(Symbols!A117="","",Symbols!A117) -> S.US.DECK | B117: 1 | C117: S.US.DECK | D117: =IF(A117="","",RTD("cqg.rtd", ,"ContractData",C117, "LongDescription",, "T")) -> Deckers Outdoor Corp | H117: =IF(A117="","",RTD("cqg.rtd", ,"ContractData",C117, "LastTradeToday",, "T")) -> 92.14 | I117: =IF(A117="","",RTD("cqg.rtd", ,"ContractData",C117, "NetLastTradeToday",, "T")) -> 0.94 | J117: =IF(A117="","",IFERROR(RTD("cqg.rtd", ,"ContractData",C117, "PerCentNetLastTrade",, "T")/100,"")) -> 0.01030701754 | K117: =IF(A117="","",RTD("cqg.rtd", ,"ContractData", C117, "T_CVol",, "T")) -> 416648.176 | L117: 117 | M117: =IFERROR(RANK($J117,INDIRECT(("$J$"&"1"&":$J$"&$A$449)))+COUNTIF($J$1:J117,J117)-1,"") -> 161 | N117: S.US.DECK | O117: S.US.UNP
A118: =IF(Symbols!A118="","",Symbols!A118) -> S.US.DELL | B118: 1 | C118: S.US.DELL | D118: =IF(A118="","",RTD("cqg.rtd", ,"ContractData",C118, "LongDescription",, "T")) -> Dell Technologies Inc. | H118: =IF(A118="","",RTD("cqg.rtd", ,"ContractData",C118, "LastTradeToday",, "T")) -> 501.07 | I118: =IF(A118="","",RTD("cqg.rtd", ,"ContractData",C118, "NetLastTradeToday",, "T")) -> 16.57 | J118: =IF(A118="","",IFERROR(RTD("cqg.rtd", ,"ContractData",C118, "PerCentNetLastTrade",, "T")/100,"")) -> 0.0342002064 | K118: =IF(A118="","",RTD("cqg.rtd", ,"ContractData", C118, "T_CVol",, "T")) -> 3442711.216 | L118: 118 | M118: =IFERROR(RANK($J118,INDIRECT(("$J$"&"1"&":$J$"&$A$449)))+COUNTIF($J$1:J118,J118)-1,"") -> 12 | N118: S.US.DELL | O118: S.US.BFB
A119: =IF(Symbols!A119="","",Symbols!A119) -> S.US.DG | B119: 1 | C119: S.US.DG | D119: =IF(A119="","",RTD("cqg.rtd", ,"ContractData",C119, "LongDescription",, "T")) -> Dollar General Corporation | H119: =IF(A119="","",RTD("cqg.rtd", ,"ContractData",C119, "LastTradeToday",, "T")) -> 122.46 | I119: =IF(A119="","",RTD("cqg.rtd", ,"ContractData",C119, "NetLastTradeToday",, "T")) -> 2.86 | J119: =IF(A119="","",IFERROR(RTD("cqg.rtd", ,"ContractData",C119, "PerCentNetLastTrade",, "T")/100,"")) -> 0.02391304348 | K119: =IF(A119="","",RTD("cqg.rtd", ,"ContractData", C119, "T_CVol",, "T")) -> 441282.97 | L119: 119 | M119: =IFERROR(RANK($J119,INDIRECT(("$J$"&"1"&":$J$"&$A$449)))+COUNTIF($J$1:J119,J119)-1,"") -> 36 | N119: S.US.DG | O119: S.US.CPRT
A120: =IF(Symbols!A120="","",Symbols!A120) -> S.US.DGX | B120: 0 | C120: S.US.DGX | D120: =IF(A120="","",RTD("cqg.rtd", ,"ContractData",C120, "LongDescription",, "T")) -> Quest Diagnostics Inc | H120: =IF(A120="","",RTD("cqg.rtd", ,"ContractData",C120, "LastTradeToday",, "T")) -> 237.75 | I120: =IF(A120="","",RTD("cqg.rtd", ,"ContractData",C120, "NetLastTradeToday",, "T")) -> -0.02 | J120: =IF(A120="","",IFERROR(RTD("cqg.rtd", ,"ContractData",C120, "PerCentNetLastTrade",, "T")/100,"")) -> -8.411490095e-05 | K120: =IF(A120="","",RTD("cqg.rtd", ,"ContractData", C120, "T_CVol",, "T")) -> 59921.56852 | L120: 120 | M120: =IFERROR(RANK($J120,INDIRECT(("$J$"&"1"&":$J$"&$A$449)))+COUNTIF($J$1:J120,J120)-1,"") -> 339 | N120: S.US.DGX | O120: S.US.SPG
A121: =IF(Symbols!A121="","",Symbols!A121) -> S.US.DHI | B121: 1 | C121: S.US.DHI | D121: =IF(A121="","",RTD("cqg.rtd", ,"ContractData",C121, "LongDescription",, "T")) -> DR Horton Inc | H121: =IF(A121="","",RTD("cqg.rtd", ,"ContractData",C121, "LastTradeToday",, "T")) -> 148.82 | I121: =IF(A121="","",RTD("cqg.rtd", ,"ContractData",C121, "NetLastTradeToday",, "T")) -> 3 | J121: =IF(A121="","",IFERROR(RTD("cqg.rtd", ,"ContractData",C121, "PerCentNetLastTrade",, "T")/100,"")) -> 0.02057330956 | K121: =IF(A121="","",RTD("cqg.rtd", ,"ContractData", C121, "T_CVol",, "T")) -> 261160.8715 | L121: 121 | M121: =IFERROR(RANK($J121,INDIRECT(("$J$"&"1"&":$J$"&$A$449)))+COUNTIF($J$1:J121,J121)-1,"") -> 55 | N121: S.US.DHI | O121: S.US.WBD
A122: =IF(Symbols!A122="","",Symbols!A122) -> S.US.DHR | B122: 1 | C122: S.US.DHR | D122: =IF(A122="","",RTD("cqg.rtd", ,"ContractData",C122, "LongDescription",, "T")) -> Danaher Corporation | H122: =IF(A122="","",RTD("cqg.rtd", ,"ContractData",C122, "LastTradeToday",, "T")) -> 205.8 | I122: =IF(A122="","",RTD("cqg.rtd", ,"ContractData",C122, "NetLastTradeToday",, "T")) -> 0.01 | J122: =IF(A122="","",IFERROR(RTD("cqg.rtd", ,"ContractData",C122, "PerCentNetLastTrade",, "T")/100,"")) -> 4.85932261e-05 | K122: =IF(A122="","",RTD("cqg.rtd", ,"ContractData", C122, "T_CVol",, "T")) -> 249184.0298 | L122: 122 | M122: =IFERROR(RANK($J122,INDIRECT(("$J$"&"1"&":$J$"&$A$449)))+COUNTIF($J$1:J122,J122)-1,"") -> 335 | N122: S.US.DHR | O122: S.US.PHM
A123: =IF(Symbols!A123="","",Symbols!A123) -> S.US.DIS | B123: 1 | C123: S.US.DIS | D123: =IF(A123="","",RTD("cqg.rtd", ,"ContractData",C123, "LongDescription",, "T")) -> The Walt Disney Company | H123: =IF(A123="","",RTD("cqg.rtd", ,"ContractData",C123, "LastTradeToday",, "T")) -> 104.69 | I123: =IF(A123="","",RTD("cqg.rtd", ,"ContractData",C123, "NetLastTradeToday",, "T")) -> 1.47 | J123: =IF(A123="","",IFERROR(RTD("cqg.rtd", ,"ContractData",C123, "PerCentNetLastTrade",, "T")/100,"")) -> 0.01424142608 | K123: =IF(A123="","",RTD("cqg.rtd", ,"ContractData", C123, "T_CVol",, "T")) -> 1287505.078 | L123: 123 | M123: =IFERROR(RANK($J123,INDIRECT(("$J$"&"1"&":$J$"&$A$449)))+COUNTIF($J$1:J123,J123)-1,"") -> 100 | N123: S.US.DIS | O123: S.US.AWK
A124: =IF(Symbols!A124="","",Symbols!A124) -> S.US.DLR | B124: 1 | C124: S.US.DLR | D124: =IF(A124="","",RTD("cqg.rtd", ,"ContractData",C124, "LongDescription",, "T")) -> Digital Realty | H124: =IF(A124="","",RTD("cqg.rtd", ,"ContractData",C124, "LastTradeToday",, "T")) -> 199.22 | I124: =IF(A124="","",RTD("cqg.rtd", ,"ContractData",C124, "NetLastTradeToday",, "T")) -> 2.16 | J124: =IF(A124="","",IFERROR(RTD("cqg.rtd", ,"ContractData",C124, "PerCentNetLastTrade",, "T")/100,"")) -> 0.01096112859 | K124: =IF(A124="","",RTD("cqg.rtd", ,"ContractData", C124, "T_CVol",, "T")) -> 139177.358 | L124: 124 | M124: =IFERROR(RANK($J124,INDIRECT(("$J$"&"1"&":$J$"&$A$449)))+COUNTIF($J$1:J124,J124)-1,"") -> 151 | N124: S.US.DLR | O124: S.US.CDW
A125: =IF(Symbols!A125="","",Symbols!A125) -> S.US.DLTR | B125: =IF(A125="","",IF(J125>0,1,0)) -> 1 | C125: =A125 -> S.US.DLTR | D125: =IF(A125="","",RTD("cqg.rtd", ,"ContractData",C125, "LongDescription",, "T")) -> DOLLAR TREE INC | H125: =IF(A125="","",RTD("cqg.rtd", ,"ContractData",C125, "LastTradeToday",, "T")) -> 131.4 | I125: =IF(A125="","",RTD("cqg.rtd", ,"ContractData",C125, "NetLastTradeToday",, "T")) -> 2.79 | J125: =IF(A125="","",IFERROR(RTD("cqg.rtd", ,"ContractData",C125, "PerCentNetLastTrade",, "T")/100,"")) -> 0.02169349195 | K125: =IF(A125="","",RTD("cqg.rtd", ,"ContractData", C125, "T_CVol",, "T")) -> 146294.3956 | L125: 125 | M125: =IFERROR(RANK($J125,INDIRECT(("$J$"&"1"&":$J$"&$A$449)))+COUNTIF($J$1:J125,J125)-1,"") -> 47 | N125: S.US.DLTR | O125: S.US.BEN
A126: =IF(Symbols!A126="","",Symbols!A126) -> S.US.DOC | B126: 1 | C126: S.US.DOC | D126: =IF(A126="","",RTD("cqg.rtd", ,"ContractData",C126, "LongDescription",, "T")) -> Healthpeak Properties, Inc. | H126: =IF(A126="","",RTD("cqg.rtd", ,"ContractData",C126, "LastTradeToday",, "T")) -> 20.9 | I126: =IF(A126="","",RTD("cqg.rtd", ,"ContractData",C126, "NetLastTradeToday",, "T")) -> 0.24 | J126: =IF(A126="","",IFERROR(RTD("cqg.rtd", ,"ContractData",C126, "PerCentNetLastTrade",, "T")/100,"")) -> 0.01161665053 | K126: =IF(A126="","",RTD("cqg.rtd", ,"ContractData", C126, "T_CVol",, "T")) -> 298667.2398 | L126: 126 | M126: =IFERROR(RANK($J126,INDIRECT(("$J$"&"1"&":$J$"&$A$449)))+COUNTIF($J$1:J126,J126)-1,"") -> 144 | N126: S.US.DOC | O126: S.US.BG
A127: =IF(Symbols!A127="","",Symbols!A127) -> S.US.DOV | B127: 0 | C127: S.US.DOV | D127: =IF(A127="","",RTD("cqg.rtd", ,"ContractData",C127, "LongDescription",, "T")) -> Dover Corporation | H127: =IF(A127="","",RTD("cqg.rtd", ,"ContractData",C127, "LastTradeToday",, "T")) -> 207.16 | I127: =IF(A127="","",RTD("cqg.rtd", ,"ContractData",C127, "NetLastTradeToday",, "T")) -> -0.91 | J127: =IF(A127="","",IFERROR(RTD("cqg.rtd", ,"ContractData",C127, "PerCentNetLastTrade",, "T")/100,"")) -> -0.00437352814 | K127: =IF(A127="","",RTD("cqg.rtd", ,"ContractData", C127, "T_CVol",, "T")) -> 76043.28286 | L127: 127 | M127: =IFERROR(RANK($J127,INDIRECT(("$J$"&"1"&":$J$"&$A$449)))+COUNTIF($J$1:J127,J127)-1,"") -> 384 | N127: S.US.DOV | O127: S.US.VZ
A128: =IF(Symbols!A128="","",Symbols!A128) -> S.US.DOW | B128: 0 | C128: S.US.DOW | D128: =IF(A128="","",RTD("cqg.rtd", ,"ContractData",C128, "LongDescription",, "T")) -> Dow Inc. | H128: =IF(A128="","",RTD("cqg.rtd", ,"ContractData",C128, "LastTradeToday",, "T")) -> 30.38 | I128: =IF(A128="","",RTD("cqg.rtd", ,"ContractData",C128, "NetLastTradeToday",, "T")) -> -0.19 | J128: =IF(A128="","",IFERROR(RTD("cqg.rtd", ,"ContractData",C128, "PerCentNetLastTrade",, "T")/100,"")) -> -0.006215243703 | K128: =IF(A128="","",RTD("cqg.rtd", ,"ContractData", C128, "T_CVol",, "T")) -> 865938.9914 | L128: 128 | M128: =IFERROR(RANK($J128,INDIRECT(("$J$"&"1"&":$J$"&$A$449)))+COUNTIF($J$1:J128,J128)-1,"") -> 399 | N128: S.US.DOW | O128: S.US.PEP
A129: =IF(Symbols!A129="","",Symbols!A129) -> S.US.DPZ | B129: 0 | C129: S.US.DPZ | D129: =IF(A129="","",RTD("cqg.rtd", ,"ContractData",C129, "LongDescription",, "T")) -> DOMINOS PIZZA INC CM | H129: =IF(A129="","",RTD("cqg.rtd", ,"ContractData",C129, "LastTradeToday",, "T")) -> 353.62 | I129: =IF(A129="","",RTD("cqg.rtd", ,"ContractData",C129, "NetLastTradeToday",, "T")) -> -0.1 | J129: =IF(A129="","",IFERROR(RTD("cqg.rtd", ,"ContractData",C129, "PerCentNetLastTrade",, "T")/100,"")) -> -0.0002827094877 | K129: =IF(A129="","",RTD("cqg.rtd", ,"ContractData", C129, "T_CVol",, "T")) -> 40902.17441 | L129: 129 | M129: =IFERROR(RANK($J129,INDIRECT(("$J$"&"1"&":$J$"&$A$449)))+COUNTIF($J$1:J129,J129)-1,"") -> 343 | N129: S.US.DPZ | O129: S.US.F
A130: =IF(Symbols!A130="","",Symbols!A130) -> S.US.DRI | B130: 1 | C130: S.US.DRI | D130: =IF(A130="","",RTD("cqg.rtd", ,"ContractData",C130, "LongDescription",, "T")) -> Darden Restaurants Inc | H130: =IF(A130="","",RTD("cqg.rtd", ,"ContractData",C130, "LastTradeToday",, "T")) -> 229 | I130: =IF(A130="","",RTD("cqg.rtd", ,"ContractData",C130, "NetLastTradeToday",, "T")) -> 1.32 | J130: =IF(A130="","",IFERROR(RTD("cqg.rtd", ,"ContractData",C130, "PerCentNetLastTrade",, "T")/100,"")) -> 0.005797610682 | K130: =IF(A130="","",RTD("cqg.rtd", ,"ContractData", C130, "T_CVol",, "T")) -> 107292.1967 | L130: 130 | M130: =IFERROR(RANK($J130,INDIRECT(("$J$"&"1"&":$J$"&$A$449)))+COUNTIF($J$1:J130,J130)-1,"") -> 258 | N130: =C130 -> S.US.DRI | O130: =IFERROR(VLOOKUP($L130,$M$1:$N$437,2,FALSE),"") -> S.US.VICI
A131: =IF(Symbols!A131="","",Symbols!A131) -> S.US.DTE | B131: 1 | C131: S.US.DTE | D131: =IF(A131="","",RTD("cqg.rtd", ,"ContractData",C131, "LongDescription",, "T")) -> DTE Energy Corp | H131: =IF(A131="","",RTD("cqg.rtd", ,"ContractData",C131, "LastTradeToday",, "T")) -> 139.47 | I131: =IF(A131="","",RTD("cqg.rtd", ,"ContractData",C131, "NetLastTradeToday",, "T")) -> 0.79 | J131: =IF(A131="","",IFERROR(RTD("cqg.rtd", ,"ContractData",C131, "PerCentNetLastTrade",, "T")/100,"")) -> 0.005696567638 | K131: =IF(A131="","",RTD("cqg.rtd", ,"ContractData", C131, "T_CVol",, "T")) -> 160432.2448 | L131: =L130+1 -> 131 | M131: =IFERROR(RANK($J131,INDIRECT(("$J$"&"1"&":$J$"&$A$449)))+COUNTIF($J$1:J131,J131)-1,"") -> 264 | N131: S.US.DTE | O131: S.US.TFC
A132: =IF(Symbols!A132="","",Symbols!A132) -> S.US.DUK | B132: 1 | C132: S.US.DUK | D132: =IF(A132="","",RTD("cqg.rtd", ,"ContractData",C132, "LongDescription",, "T")) -> Duke Energy Corp | H132: =IF(A132="","",RTD("cqg.rtd", ,"ContractData",C132, "LastTradeToday",, "T")) -> 124.59 | I132: =IF(A132="","",RTD("cqg.rtd", ,"ContractData",C132, "NetLastTradeToday",, "T")) -> 1.1 | J132: =IF(A132="","",IFERROR(RTD("cqg.rtd", ,"ContractData",C132, "PerCentNetLastTrade",, "T")/100,"")) -> 0.008907603855 | K132: =IF(A132="","",RTD("cqg.rtd", ,"ContractData", C132, "T_CVol",, "T")) -> 417629.4373 | L132: 132 | M132: =IFERROR(RANK($J132,INDIRECT(("$J$"&"1"&":$J$"&$A$449)))+COUNTIF($J$1:J132,J132)-1,"") -> 186 | N132: S.US.DUK | O132: S.US.PAYX
A133: =IF(Symbols!A133="","",Symbols!A133) -> S.US.DVA | B133: 1 | C133: S.US.DVA | D133: =IF(A133="","",RTD("cqg.rtd", ,"ContractData",C133, "LongDescription",, "T")) -> DaVita Inc. | H133: =IF(A133="","",RTD("cqg.rtd", ,"ContractData",C133, "LastTradeToday",, "T")) -> 182.07 | I133: =IF(A133="","",RTD("cqg.rtd", ,"ContractData",C133, "NetLastTradeToday",, "T")) -> 0.57 | J133: =IF(A133="","",IFERROR(RTD("cqg.rtd", ,"ContractData",C133, "PerCentNetLastTrade",, "T")/100,"")) -> 0.003140495868 | K133: =IF(A133="","",RTD("cqg.rtd", ,"ContractData", C133, "T_CVol",, "T")) -> 44525.61551 | L133: 133 | M133: =IFERROR(RANK($J133,INDIRECT(("$J$"&"1"&":$J$"&$A$449)))+COUNTIF($J$1:J133,J133)-1,"") -> 299 | N133: S.US.DVA | O133: S.US.BMY
A134: =IF(Symbols!A134="","",Symbols!A134) -> S.US.DVN | B134: 0 | C134: S.US.DVN | D134: =IF(A134="","",RTD("cqg.rtd", ,"ContractData",C134, "LongDescription",, "T")) -> Devon Energy Corp | H134: =IF(A134="","",RTD("cqg.rtd", ,"ContractData",C134, "LastTradeToday",, "T")) -> 44.03 | I134: =IF(A134="","",RTD("cqg.rtd", ,"ContractData",C134, "NetLastTradeToday",, "T")) -> -0.83 | J134: =IF(A134="","",IFERROR(RTD("cqg.rtd", ,"ContractData",C134, "PerCentNetLastTrade",, "T")/100,"")) -> -0.01850200624 | K134: =IF(A134="","",RTD("cqg.rtd", ,"ContractData", C134, "T_CVol",, "T")) -> 1830667.778 | L134: 134 | M134: =IFERROR(RANK($J134,INDIRECT(("$J$"&"1"&":$J$"&$A$449)))+COUNTIF($J$1:J134,J134)-1,"") -> 435 | N134: S.US.DVN | O134: S.US.REGN
A135: =IF(Symbols!A135="","",Symbols!A135) -> S.US.DXCM | B135: 1 | C135: S.US.DXCM | D135: =IF(A135="","",RTD("cqg.rtd", ,"ContractData",C135, "LongDescription",, "T")) -> DEXCOM | H135: =IF(A135="","",RTD("cqg.rtd", ,"ContractData",C135, "LastTradeToday",, "T")) -> 91.05 | I135: =IF(A135="","",RTD("cqg.rtd", ,"ContractData",C135, "NetLastTradeToday",, "T")) -> 0.25 | J135: =IF(A135="","",IFERROR(RTD("cqg.rtd", ,"ContractData",C135, "PerCentNetLastTrade",, "T")/100,"")) -> 0.002753303965 | K135: =IF(A135="","",RTD("cqg.rtd", ,"ContractData", C135, "T_CVol",, "T")) -> 977685.585 | L135: 135 | M135: =IFERROR(RANK($J135,INDIRECT(("$J$"&"1"&":$J$"&$A$449)))+COUNTIF($J$1:J135,J135)-1,"") -> 305 | N135: S.US.DXCM | O135: S.US.AZO
A136: =IF(Symbols!A136="","",Symbols!A136) -> S.US.EBAY | B136: 1 | C136: S.US.EBAY | D136: =IF(A136="","",RTD("cqg.rtd", ,"ContractData",C136, "LongDescription",, "T")) -> EBAY INC. | H136: =IF(A136="","",RTD("cqg.rtd", ,"ContractData",C136, "LastTradeToday",, "T")) -> 104.46 | I136: =IF(A136="","",RTD("cqg.rtd", ,"ContractData",C136, "NetLastTradeToday",, "T")) -> 2.15 | J136: =IF(A136="","",IFERROR(RTD("cqg.rtd", ,"ContractData",C136, "PerCentNetLastTrade",, "T")/100,"")) -> 0.02101456358 | K136: =IF(A136="","",RTD("cqg.rtd", ,"ContractData", C136, "T_CVol",, "T")) -> 510572.6163 | L136: 136 | M136: =IFERROR(RANK($J136,INDIRECT(("$J$"&"1"&":$J$"&$A$449)))+COUNTIF($J$1:J136,J136)-1,"") -> 50 | N136: S.US.EBAY | O136: S.US.ES
A137: =IF(Symbols!A137="","",Symbols!A137) -> S.US.ECL | B137: 0 | C137: S.US.ECL | D137: =IF(A137="","",RTD("cqg.rtd", ,"ContractData",C137, "LongDescription",, "T")) -> Ecolab Inc | H137: =IF(A137="","",RTD("cqg.rtd", ,"ContractData",C137, "LastTradeToday",, "T")) -> 277.97 | I137: =IF(A137="","",RTD("cqg.rtd", ,"ContractData",C137, "NetLastTradeToday",, "T")) -> -0.46 | J137: =IF(A137="","",IFERROR(RTD("cqg.rtd", ,"ContractData",C137, "PerCentNetLastTrade",, "T")/100,"")) -> -0.00165212082 | K137: =IF(A137="","",RTD("cqg.rtd", ,"ContractData", C137, "T_CVol",, "T")) -> 106589.2715 | L137: 137 | M137: =IFERROR(RANK($J137,INDIRECT(("$J$"&"1"&":$J$"&$A$449)))+COUNTIF($J$1:J137,J137)-1,"") -> 360 | N137: S.US.ECL | O137: S.US.NWSA
A138: =IF(Symbols!A138="","",Symbols!A138) -> S.US.ED | B138: 1 | C138: S.US.ED | D138: =IF(A138="","",RTD("cqg.rtd", ,"ContractData",C138, "LongDescription",, "T")) -> Consol Edison Hldg Co | H138: =IF(A138="","",RTD("cqg.rtd", ,"ContractData",C138, "LastTradeToday",, "T")) -> 108.4 | I138: =IF(A138="","",RTD("cqg.rtd", ,"ContractData",C138, "NetLastTradeToday",, "T")) -> 0.62 | J138: =IF(A138="","",IFERROR(RTD("cqg.rtd", ,"ContractData",C138, "PerCentNetLastTrade",, "T")/100,"")) -> 0.005752458712 | K138: =IF(A138="","",RTD("cqg.rtd", ,"ContractData", C138, "T_CVol",, "T")) -> 147253.4051 | L138: 138 | M138: =IFERROR(RANK($J138,INDIRECT(("$J$"&"1"&":$J$"&$A$449)))+COUNTIF($J$1:J138,J138)-1,"") -> 259 | N138: S.US.ED | O138: S.US.ABT
A139: =IF(Symbols!A139="","",Symbols!A139) -> S.US.EFX | B139: 1 | C139: S.US.EFX | D139: =IF(A139="","",RTD("cqg.rtd", ,"ContractData",C139, "LongDescription",, "T")) -> Equifax Inc | H139: =IF(A139="","",RTD("cqg.rtd", ,"ContractData",C139, "LastTradeToday",, "T")) -> 183.63 | I139: =IF(A139="","",RTD("cqg.rtd", ,"ContractData",C139, "NetLastTradeToday",, "T")) -> 3.17 | J139: =IF(A139="","",IFERROR(RTD("cqg.rtd", ,"ContractData",C139, "PerCentNetLastTrade",, "T")/100,"")) -> 0.01756621966 | K139: =IF(A139="","",RTD("cqg.rtd", ,"ContractData", C139, "T_CVol",, "T")) -> 64707.68372 | L139: 139 | M139: =IFERROR(RANK($J139,INDIRECT(("$J$"&"1"&":$J$"&$A$449)))+COUNTIF($J$1:J139,J139)-1,"") -> 76 | N139: S.US.EFX | O139: S.US.EXC
A140: =IF(Symbols!A140="","",Symbols!A140) -> S.US.EG | B140: 1 | C140: S.US.EG | D140: =IF(A140="","",RTD("cqg.rtd", ,"ContractData",C140, "LongDescription",, "T")) -> Everest Group, Ltd. | H140: =IF(A140="","",RTD("cqg.rtd", ,"ContractData",C140, "LastTradeToday",, "T")) -> 365 | I140: =IF(A140="","",RTD("cqg.rtd", ,"ContractData",C140, "NetLastTradeToday",, "T")) -> 1.33 | J140: =IF(A140="","",IFERROR(RTD("cqg.rtd", ,"ContractData",C140, "PerCentNetLastTrade",, "T")/100,"")) -> 0.003657161713 | K140: =IF(A140="","",RTD("cqg.rtd", ,"ContractData", C140, "T_CVol",, "T")) -> 32862.75264 | L140: 140 | M140: =IFERROR(RANK($J140,INDIRECT(("$J$"&"1"&":$J$"&$A$449)))+COUNTIF($J$1:J140,J140)-1,"") -> 291 | N140: S.US.EG | O140: S.US.PGR
A141: =IF(Symbols!A141="","",Symbols!A141) -> S.US.EIX | B141: 1 | C141: S.US.EIX | D141: =IF(A141="","",RTD("cqg.rtd", ,"ContractData",C141, "LongDescription",, "T")) -> Edison International | H141: =IF(A141="","",RTD("cqg.rtd", ,"ContractData",C141, "LastTradeToday",, "T")) -> 70.79 | I141: =IF(A141="","",RTD("cqg.rtd", ,"ContractData",C141, "NetLastTradeToday",, "T")) -> 1.39 | J141: =IF(A141="","",IFERROR(RTD("cqg.rtd", ,"ContractData",C141, "PerCentNetLastTrade",, "T")/100,"")) -> 0.02002881844 | K141: =IF(A141="","",RTD("cqg.rtd", ,"ContractData", C141, "T_CVol",, "T")) -> 331083.7269 | L141: 141 | M141: =IFERROR(RANK($J141,INDIRECT(("$J$"&"1"&":$J$"&$A$449)))+COUNTIF($J$1:J141,J141)-1,"") -> 59 | N141: S.US.EIX | O141: S.US.CTSH
A142: =IF(Symbols!A142="","",Symbols!A142) -> S.US.EL | B142: 1 | C142: S.US.EL | D142: =IF(A142="","",RTD("cqg.rtd", ,"ContractData",C142, "LongDescription",, "T")) -> Estee Lauder Companies | H142: =IF(A142="","",RTD("cqg.rtd", ,"ContractData",C142, "LastTradeToday",, "T")) -> 88.31 | I142: =IF(A142="","",RTD("cqg.rtd", ,"ContractData",C142, "NetLastTradeToday",, "T")) -> 0.63 | J142: =IF(A142="","",IFERROR(RTD("cqg.rtd", ,"ContractData",C142, "PerCentNetLastTrade",, "T")/100,"")) -> 0.007185218978 | K142: =IF(A142="","",RTD("cqg.rtd", ,"ContractData", C142, "T_CVol",, "T")) -> 179231.2271 | L142: 142 | M142: =IFERROR(RANK($J142,INDIRECT(("$J$"&"1"&":$J$"&$A$449)))+COUNTIF($J$1:J142,J142)-1,"") -> 226 | N142: S.US.EL | O142: S.US.HSY
A143: =IF(Symbols!A143="","",Symbols!A143) -> S.US.ELV | B143: 1 | C143: S.US.ELV | D143: =IF(A143="","",RTD("cqg.rtd", ,"ContractData",C143, "LongDescription",, "T")) -> Elevance Health, Inc. | H143: =IF(A143="","",RTD("cqg.rtd", ,"ContractData",C143, "LastTradeToday",, "T")) -> 403.12 | I143: =IF(A143="","",RTD("cqg.rtd", ,"ContractData",C143, "NetLastTradeToday",, "T")) -> 3.98 | J143: =IF(A143="","",IFERROR(RTD("cqg.rtd", ,"ContractData",C143, "PerCentNetLastTrade",, "T")/100,"")) -> 0.009971438593 | K143: =IF(A143="","",RTD("cqg.rtd", ,"ContractData", C143, "T_CVol",, "T")) -> 92722.60761 | L143: 143 | M143: =IFERROR(RANK($J143,INDIRECT(("$J$"&"1"&":$J$"&$A$449)))+COUNTIF($J$1:J143,J143)-1,"") -> 163 | N143: S.US.ELV | O143: S.US.LOW
A144: =IF(Symbols!A144="","",Symbols!A144) -> S.US.EMR | B144: 0 | C144: S.US.EMR | D144: =IF(A144="","",RTD("cqg.rtd", ,"ContractData",C144, "LongDescription",, "T")) -> Emerson Electric Co | H144: =IF(A144="","",RTD("cqg.rtd", ,"ContractData",C144, "LastTradeToday",, "T")) -> 161.52 | I144: =IF(A144="","",RTD("cqg.rtd", ,"ContractData",C144, "NetLastTradeToday",, "T")) -> -2.28 | J144: =IF(A144="","",IFERROR(RTD("cqg.rtd", ,"ContractData",C144, "PerCentNetLastTrade",, "T")/100,"")) -> -0.01391941392 | K144: =IF(A144="","",RTD("cqg.rtd", ,"ContractData", C144, "T_CVol",, "T")) -> 372863.8976 | L144: 144 | M144: =IFERROR(RANK($J144,INDIRECT(("$J$"&"1"&":$J$"&$A$449)))+COUNTIF($J$1:J144,J144)-1,"") -> 429 | N144: S.US.EMR | O144: S.US.DOC
A145: =IF(Symbols!A145="","",Symbols!A145) -> S.US.EOG | B145: 0 | C145: S.US.EOG | D145: =IF(A145="","",RTD("cqg.rtd", ,"ContractData",C145, "LongDescription",, "T")) -> EOG Resources | H145: =IF(A145="","",RTD("cqg.rtd", ,"ContractData",C145, "LastTradeToday",, "T")) -> 141.67 | I145: =IF(A145="","",RTD("cqg.rtd", ,"ContractData",C145, "NetLastTradeToday",, "T")) -> -1.47 | J145: =IF(A145="","",IFERROR(RTD("cqg.rtd", ,"ContractData",C145, "PerCentNetLastTrade",, "T")/100,"")) -> -0.01026966606 | K145: =IF(A145="","",RTD("cqg.rtd", ,"ContractData", C145, "T_CVol",, "T")) -> 555819.7448 | L145: 145 | M145: =IFERROR(RANK($J145,INDIRECT(("$J$"&"1"&":$J$"&$A$449)))+COUNTIF($J$1:J145,J145)-1,"") -> 417 | N145: S.US.EOG | O145: S.US.VEEV
A146: =IF(Symbols!A146="","",Symbols!A146) -> S.US.EQIX | B146: 1 | C146: S.US.EQIX | D146: =IF(A146="","",RTD("cqg.rtd", ,"ContractData",C146, "LongDescription",, "T")) -> EQUINIX, INC. | H146: =IF(A146="","",RTD("cqg.rtd", ,"ContractData",C146, "LastTradeToday",, "T")) -> 1075.43 | I146: =IF(A146="","",RTD("cqg.rtd", ,"ContractData",C146, "NetLastTradeToday",, "T")) -> 6.26 | J146: =IF(A146="","",IFERROR(RTD("cqg.rtd", ,"ContractData",C146, "PerCentNetLastTrade",, "T")/100,"")) -> 0.005855009026 | K146: =IF(A146="","",RTD("cqg.rtd", ,"ContractData", C146, "T_CVol",, "T")) -> 35882.76822 | L146: 146 | M146: =IFERROR(RANK($J146,INDIRECT(("$J$"&"1"&":$J$"&$A$449)))+COUNTIF($J$1:J146,J146)-1,"") -> 255 | N146: S.US.EQIX | O146: S.US.CL
A147: =IF(Symbols!A147="","",Symbols!A147) -> S.US.EQR | B147: 1 | C147: S.US.EQR | D147: =IF(A147="","",RTD("cqg.rtd", ,"ContractData",C147, "LongDescription",, "T")) -> Equity Residential Properties Trust | H147: =IF(A147="","",RTD("cqg.rtd", ,"ContractData",C147, "LastTradeToday",, "T")) -> 66.52 | I147: =IF(A147="","",RTD("cqg.rtd", ,"ContractData",C147, "NetLastTradeToday",, "T")) -> 2.1 | J147: =IF(A147="","",IFERROR(RTD("cqg.rtd", ,"ContractData",C147, "PerCentNetLastTrade",, "T")/100,"")) -> 0.03259857187 | K147: =IF(A147="","",RTD("cqg.rtd", ,"ContractData", C147, "T_CVol",, "T")) -> 785281.637 | L147: 147 | M147: =IFERROR(RANK($J147,INDIRECT(("$J$"&"1"&":$J$"&$A$449)))+COUNTIF($J$1:J147,J147)-1,"") -> 14 | N147: S.US.EQR | O147: S.US.ADBE
A148: =IF(Symbols!A148="","",Symbols!A148) -> S.US.EQT | B148: 0 | C148: S.US.EQT | D148: =IF(A148="","",RTD("cqg.rtd", ,"ContractData",C148, "LongDescription",, "T")) -> EQT Corp | H148: =IF(A148="","",RTD("cqg.rtd", ,"ContractData",C148, "LastTradeToday",, "T")) -> 53.99 | I148: =IF(A148="","",RTD("cqg.rtd", ,"ContractData",C148, "NetLastTradeToday",, "T")) -> -0.07 | J148: =IF(A148="","",IFERROR(RTD("cqg.rtd", ,"ContractData",C148, "PerCentNetLastTrade",, "T")/100,"")) -> -0.001294857566 | K148: =IF(A148="","",RTD("cqg.rtd", ,"ContractData", C148, "T_CVol",, "T")) -> 1028825.231 | L148: 148 | M148: =IFERROR(RANK($J148,INDIRECT(("$J$"&"1"&":$J$"&$A$449)))+COUNTIF($J$1:J148,J148)-1,"") -> 355 | N148: S.US.EQT | O148: S.US.TGT
A149: =IF(Symbols!A149="","",Symbols!A149) -> S.US.ERIE | B149: 0 | C149: S.US.ERIE | D149: =IF(A149="","",RTD("cqg.rtd", ,"ContractData",C149, "LongDescription",, "T")) -> Erie Indemnity Co | H149: =IF(A149="","",RTD("cqg.rtd", ,"ContractData",C149, "LastTradeToday",, "T")) -> 257.2 | I149: =IF(A149="","",RTD("cqg.rtd", ,"ContractData",C149, "NetLastTradeToday",, "T")) -> -0.97 | J149: =IF(A149="","",IFERROR(RTD("cqg.rtd", ,"ContractData",C149, "PerCentNetLastTrade",, "T")/100,"")) -> -0.003757214239 | K149: =IF(A149="","",RTD("cqg.rtd", ,"ContractData", C149, "T_CVol",, "T")) -> 23177.1035 | L149: 149 | M149: =IFERROR(RANK($J149,INDIRECT(("$J$"&"1"&":$J$"&$A$449)))+COUNTIF($J$1:J149,J149)-1,"") -> 382 | N149: S.US.ERIE | O149: S.US.GILD
A150: =IF(Symbols!A150="","",Symbols!A150) -> S.US.ES | B150: 1 | C150: S.US.ES | D150: =IF(A150="","",RTD("cqg.rtd", ,"ContractData",C150, "LongDescription",, "T")) -> Eversource Energy | H150: =IF(A150="","",RTD("cqg.rtd", ,"ContractData",C150, "LastTradeToday",, "T")) -> 72.4 | I150: =IF(A150="","",RTD("cqg.rtd", ,"ContractData",C150, "NetLastTradeToday",, "T")) -> 0.85 | J150: =IF(A150="","",IFERROR(RTD("cqg.rtd", ,"ContractData",C150, "PerCentNetLastTrade",, "T")/100,"")) -> 0.01187980433 | K150: =IF(A150="","",RTD("cqg.rtd", ,"ContractData", C150, "T_CVol",, "T")) -> 143904.0873 | L150: 150 | M150: =IFERROR(RANK($J150,INDIRECT(("$J$"&"1"&":$J$"&$A$449)))+COUNTIF($J$1:J150,J150)-1,"") -> 136 | N150: S.US.ES | O150: S.US.CPAY
A151: =IF(Symbols!A151="","",Symbols!A151) -> S.US.ESS | B151: 1 | C151: S.US.ESS | D151: =IF(A151="","",RTD("cqg.rtd", ,"ContractData",C151, "LongDescription",, "T")) -> Essex Property Trust Inc | H151: =IF(A151="","",RTD("cqg.rtd", ,"ContractData",C151, "LastTradeToday",, "T")) -> 288.72 | I151: =IF(A151="","",RTD("cqg.rtd", ,"ContractData",C151, "NetLastTradeToday",, "T")) -> 7.45 | J151: =IF(A151="","",IFERROR(RTD("cqg.rtd", ,"ContractData",C151, "PerCentNetLastTrade",, "T")/100,"")) -> 0.02648700537 | K151: =IF(A151="","",RTD("cqg.rtd", ,"ContractData", C151, "T_CVol",, "T")) -> 33503.24919 | L151: 151 | M151: =IFERROR(RANK($J151,INDIRECT(("$J$"&"1"&":$J$"&$A$449)))+COUNTIF($J$1:J151,J151)-1,"") -> 29 | N151: S.US.ESS | O151: S.US.DLR
A152: =IF(Symbols!A152="","",Symbols!A152) -> S.US.ETN | B152: 0 | C152: S.US.ETN | D152: =IF(A152="","",RTD("cqg.rtd", ,"ContractData",C152, "LongDescription",, "T")) -> Eaton Corporation | H152: =IF(A152="","",RTD("cqg.rtd", ,"ContractData",C152, "LastTradeToday",, "T")) -> 455.12 | I152: =IF(A152="","",RTD("cqg.rtd", ,"ContractData",C152, "NetLastTradeToday",, "T")) -> -4.84 | J152: =IF(A152="","",IFERROR(RTD("cqg.rtd", ,"ContractData",C152, "PerCentNetLastTrade",, "T")/100,"")) -> -0.01052265414 | K152: =IF(A152="","",RTD("cqg.rtd", ,"ContractData", C152, "T_CVol",, "T")) -> 205921.3465 | L152: 152 | M152: =IFERROR(RANK($J152,INDIRECT(("$J$"&"1"&":$J$"&$A$449)))+COUNTIF($J$1:J152,J152)-1,"") -> 420 | N152: S.US.ETN | O152: S.US.SNPS
A153: =IF(Symbols!A153="","",Symbols!A153) -> S.US.ETR | B153: 0 | C153: S.US.ETR | D153: =IF(A153="","",RTD("cqg.rtd", ,"ContractData",C153, "LongDescription",, "T")) -> Entergy Corporation | H153: =IF(A153="","",RTD("cqg.rtd", ,"ContractData",C153, "LastTradeToday",, "T")) -> 107.35 | I153: =IF(A153="","",RTD("cqg.rtd", ,"ContractData",C153, "NetLastTradeToday",, "T")) -> -0.5 | J153: =IF(A153="","",IFERROR(RTD("cqg.rtd", ,"ContractData",C153, "PerCentNetLastTrade",, "T")/100,"")) -> -0.004636068614 | K153: =IF(A153="","",RTD("cqg.rtd", ,"ContractData", C153, "T_CVol",, "T")) -> 230778.3146 | L153: 153 | M153: =IFERROR(RANK($J153,INDIRECT(("$J$"&"1"&":$J$"&$A$449)))+COUNTIF($J$1:J153,J153)-1,"") -> 387 | N153: S.US.ETR | O153: S.US.NWS
A154: =IF(Symbols!A154="","",Symbols!A154) -> S.US.EVRG | B154: 1 | C154: S.US.EVRG | D154: =IF(A154="","",RTD("cqg.rtd", ,"ContractData",C154, "LongDescription",, "T")) -> Evergy, Inc. | H154: =IF(A154="","",RTD("cqg.rtd", ,"ContractData",C154, "LastTradeToday",, "T")) -> 83.66 | I154: =IF(A154="","",RTD("cqg.rtd", ,"ContractData",C154, "NetLastTradeToday",, "T")) -> 0.34 | J154: =IF(A154="","",IFERROR(RTD("cqg.rtd", ,"ContractData",C154, "PerCentNetLastTrade",, "T")/100,"")) -> 0.004080652904 | K154: =IF(A154="","",RTD("cqg.rtd", ,"ContractData", C154, "T_CVol",, "T")) -> 141030.674 | L154: 154 | M154: =IFERROR(RANK($J154,INDIRECT(("$J$"&"1"&":$J$"&$A$449)))+COUNTIF($J$1:J154,J154)-1,"") -> 280 | N154: S.US.EVRG | O154: S.US.COIN
A155: =IF(Symbols!A155="","",Symbols!A155) -> S.US.EW | B155: 1 | C155: S.US.EW | D155: =IF(A155="","",RTD("cqg.rtd", ,"ContractData",C155, "LongDescription",, "T")) -> Edwards LifeSciences | H155: =IF(A155="","",RTD("cqg.rtd", ,"ContractData",C155, "LastTradeToday",, "T")) -> 93.41 | I155: =IF(A155="","",RTD("cqg.rtd", ,"ContractData",C155, "NetLastTradeToday",, "T")) -> 0.36 | J155: =IF(A155="","",IFERROR(RTD("cqg.rtd", ,"ContractData",C155, "PerCentNetLastTrade",, "T")/100,"")) -> 0.003868887695 | K155: =IF(A155="","",RTD("cqg.rtd", ,"ContractData", C155, "T_CVol",, "T")) -> 181856.9703 | L155: 155 | M155: =IFERROR(RANK($J155,INDIRECT(("$J$"&"1"&":$J$"&$A$449)))+COUNTIF($J$1:J155,J155)-1,"") -> 284 | N155: S.US.EW | O155: S.US.CSX
A156: =IF(Symbols!A156="","",Symbols!A156) -> S.US.EXC | B156: 1 | C156: S.US.EXC | D156: =IF(A156="","",RTD("cqg.rtd", ,"ContractData",C156, "LongDescription",, "T")) -> EXELON CORP CMN STK | H156: =IF(A156="","",RTD("cqg.rtd", ,"ContractData",C156, "LastTradeToday",, "T")) -> 45.75 | I156: =IF(A156="","",RTD("cqg.rtd", ,"ContractData",C156, "NetLastTradeToday",, "T")) -> 0.53 | J156: =IF(A156="","",IFERROR(RTD("cqg.rtd", ,"ContractData",C156, "PerCentNetLastTrade",, "T")/100,"")) -> 0.01172047766 | K156: =IF(A156="","",RTD("cqg.rtd", ,"ContractData", C156, "T_CVol",, "T")) -> 524436.4789 | L156: 156 | M156: =IFERROR(RANK($J156,INDIRECT(("$J$"&"1"&":$J$"&$A$449)))+COUNTIF($J$1:J156,J156)-1,"") -> 139 | N156: S.US.EXC | O156: S.US.CME
A157: =IF(Symbols!A157="","",Symbols!A157) -> S.US.EXE | B157: 0 | C157: S.US.EXE | D157: =IF(A157="","",RTD("cqg.rtd", ,"ContractData",C157, "LongDescription",, "T")) -> EXPAND ENERGY COR CS | H157: =IF(A157="","",RTD("cqg.rtd", ,"ContractData",C157, "LastTradeToday",, "T")) -> 94.56 | I157: =IF(A157="","",RTD("cqg.rtd", ,"ContractData",C157, "NetLastTradeToday",, "T")) -> -1.72 | J157: =IF(A157="","",IFERROR(RTD("cqg.rtd", ,"ContractData",C157, "PerCentNetLastTrade",, "T")/100,"")) -> -0.0178645617 | K157: =IF(A157="","",RTD("cqg.rtd", ,"ContractData", C157, "T_CVol",, "T")) -> 242022.3397 | L157: 157 | M157: =IFERROR(RANK($J157,INDIRECT(("$J$"&"1"&":$J$"&$A$449)))+COUNTIF($J$1:J157,J157)-1,"") -> 434 | N157: S.US.EXE | O157: S.US.KO
A158: =IF(Symbols!A158="","",Symbols!A158) -> S.US.EXPD | B158: 1 | C158: S.US.EXPD | D158: =IF(A158="","",RTD("cqg.rtd", ,"ContractData",C158, "LongDescription",, "T")) -> Expeditors Intl of WA Inc | H158: =IF(A158="","",RTD("cqg.rtd", ,"ContractData",C158, "LastTradeToday",, "T")) -> 186.02 | I158: =IF(A158="","",RTD("cqg.rtd", ,"ContractData",C158, "NetLastTradeToday",, "T")) -> 1.55 | J158: =IF(A158="","",IFERROR(RTD("cqg.rtd", ,"ContractData",C158, "PerCentNetLastTrade",, "T")/100,"")) -> 0.008402450263 | K158: =IF(A158="","",RTD("cqg.rtd", ,"ContractData", C158, "T_CVol",, "T")) -> 108008.892 | L158: 158 | M158: =IFERROR(RANK($J158,INDIRECT(("$J$"&"1"&":$J$"&$A$449)))+COUNTIF($J$1:J158,J158)-1,"") -> 199 | N158: S.US.EXPD | O158: S.US.VRSK
A159: =IF(Symbols!A159="","",Symbols!A159) -> S.US.EXR | B159: 1 | C159: S.US.EXR | D159: =IF(A159="","",RTD("cqg.rtd", ,"ContractData",C159, "LongDescription",, "T")) -> Extra Space Storage Inc | H159: =IF(A159="","",RTD("cqg.rtd", ,"ContractData",C159, "LastTradeToday",, "T")) -> 149.5 | I159: =IF(A159="","",RTD("cqg.rtd", ,"ContractData",C159, "NetLastTradeToday",, "T")) -> 2.74 | J159: =IF(A159="","",IFERROR(RTD("cqg.rtd", ,"ContractData",C159, "PerCentNetLastTrade",, "T")/100,"")) -> 0.01866993731 | K159: =IF(A159="","",RTD("cqg.rtd", ,"ContractData", C159, "T_CVol",, "T")) -> 82742.08869 | L159: 159 | M159: =IFERROR(RANK($J159,INDIRECT(("$J$"&"1"&":$J$"&$A$449)))+COUNTIF($J$1:J159,J159)-1,"") -> 67 | N159: S.US.EXR | O159: S.US.UPS
A160: =IF(Symbols!A160="","",Symbols!A160) -> S.US.F | B160: 1 | C160: S.US.F | D160: =IF(A160="","",RTD("cqg.rtd", ,"ContractData",C160, "LongDescription",, "T")) -> Ford Motor Company | H160: =IF(A160="","",RTD("cqg.rtd", ,"ContractData",C160, "LastTradeToday",, "T")) -> 14 | I160: =IF(A160="","",RTD("cqg.rtd", ,"ContractData",C160, "NetLastTradeToday",, "T")) -> 0.17 | J160: =IF(A160="","",IFERROR(RTD("cqg.rtd", ,"ContractData",C160, "PerCentNetLastTrade",, "T")/100,"")) -> 0.01229211858 | K160: =IF(A160="","",RTD("cqg.rtd", ,"ContractData", C160, "T_CVol",, "T")) -> 4804745.192 | L160: 160 | M160: =IFERROR(RANK($J160,INDIRECT(("$J$"&"1"&":$J$"&$A$449)))+COUNTIF($J$1:J160,J160)-1,"") -> 129 | N160: S.US.F | O160: S.US.RSG
A161: =IF(Symbols!A161="","",Symbols!A161) -> S.US.FANG | B161: 0 | C161: S.US.FANG | D161: =IF(A161="","",RTD("cqg.rtd", ,"ContractData",C161, "LongDescription",, "T")) -> DIAMONDBACK ENERGY | H161: =IF(A161="","",RTD("cqg.rtd", ,"ContractData",C161, "LastTradeToday",, "T")) -> 198.18 | I161: =IF(A161="","",RTD("cqg.rtd", ,"ContractData",C161, "NetLastTradeToday",, "T")) -> -2.66 | J161: =IF(A161="","",IFERROR(RTD("cqg.rtd", ,"ContractData",C161, "PerCentNetLastTrade",, "T")/100,"")) -> -0.01324437363 | K161: =IF(A161="","",RTD("cqg.rtd", ,"ContractData", C161, "T_CVol",, "T")) -> 161354.8892 | L161: 161 | M161: =IFERROR(RANK($J161,INDIRECT(("$J$"&"1"&":$J$"&$A$449)))+COUNTIF($J$1:J161,J161)-1,"") -> 426 | N161: S.US.FANG | O161: S.US.DECK
A162: =IF(Symbols!A162="","",Symbols!A162) -> S.US.FAST | B162: 0 | C162: S.US.FAST | D162: =IF(A162="","",RTD("cqg.rtd", ,"ContractData",C162, "LongDescription",, "T")) -> Fastenal Co | H162: =IF(A162="","",RTD("cqg.rtd", ,"ContractData",C162, "LastTradeToday",, "T")) -> 52.06 | I162: =IF(A162="","",RTD("cqg.rtd", ,"ContractData",C162, "NetLastTradeToday",, "T")) -> -0.16 | J162: =IF(A162="","",IFERROR(RTD("cqg.rtd", ,"ContractData",C162, "PerCentNetLastTrade",, "T")/100,"")) -> -0.003063960169 | K162: =IF(A162="","",RTD("cqg.rtd", ,"ContractData", C162, "T_CVol",, "T")) -> 657582.4289 | L162: 162 | M162: =IFERROR(RANK($J162,INDIRECT(("$J$"&"1"&":$J$"&$A$449)))+COUNTIF($J$1:J162,J162)-1,"") -> 371 | N162: S.US.FAST | O162: S.US.ALGN
A163: =IF(Symbols!A163="","",Symbols!A163) -> S.US.FCX | B163: 0 | C163: S.US.FCX | D163: =IF(A163="","",RTD("cqg.rtd", ,"ContractData",C163, "LongDescription",, "T")) -> Freeport-McMoRan Inc. | H163: =IF(A163="","",RTD("cqg.rtd", ,"ContractData",C163, "LastTradeToday",, "T")) -> 68.2 | I163: =IF(A163="","",RTD("cqg.rtd", ,"ContractData",C163, "NetLastTradeToday",, "T")) -> -1.02 | J163: =IF(A163="","",IFERROR(RTD("cqg.rtd", ,"ContractData",C163, "PerCentNetLastTrade",, "T")/100,"")) -> -0.01473562554 | K163: =IF(A163="","",RTD("cqg.rtd", ,"ContractData", C163, "T_CVol",, "T")) -> 1872363.601 | L163: 163 | M163: =IFERROR(RANK($J163,INDIRECT(("$J$"&"1"&":$J$"&$A$449)))+COUNTIF($J$1:J163,J163)-1,"") -> 431 | N163: S.US.FCX | O163: S.US.ELV
A164: =IF(Symbols!A164="","",Symbols!A164) -> S.US.FDS | B164: 1 | C164: S.US.FDS | D164: =IF(A164="","",RTD("cqg.rtd", ,"ContractData",C164, "LongDescription",, "T")) -> Factet Research | H164: =IF(A164="","",RTD("cqg.rtd", ,"ContractData",C164, "LastTradeToday",, "T")) -> 280.39 | I164: =IF(A164="","",RTD("cqg.rtd", ,"ContractData",C164, "NetLastTradeToday",, "T")) -> 2.4 | J164: =IF(A164="","",IFERROR(RTD("cqg.rtd", ,"ContractData",C164, "PerCentNetLastTrade",, "T")/100,"")) -> 0.008633404079 | K164: =IF(A164="","",RTD("cqg.rtd", ,"ContractData", C164, "T_CVol",, "T")) -> 53430.80557 | L164: 164 | M164: =IFERROR(RANK($J164,INDIRECT(("$J$"&"1"&":$J$"&$A$449)))+COUNTIF($J$1:J164,J164)-1,"") -> 193 | N164: S.US.FDS | O164: S.US.COO
A165: =IF(Symbols!A165="","",Symbols!A165) -> S.US.FDX | B165: 1 | C165: S.US.FDX | D165: =IF(A165="","",RTD("cqg.rtd", ,"ContractData",C165, "LongDescription",, "T")) -> FedEx Corp | H165: =IF(A165="","",RTD("cqg.rtd", ,"ContractData",C165, "LastTradeToday",, "T")) -> 331.14 | I165: =IF(A165="","",RTD("cqg.rtd", ,"ContractData",C165, "NetLastTradeToday",, "T")) -> 4.37 | J165: =IF(A165="","",IFERROR(RTD("cqg.rtd", ,"ContractData",C165, "PerCentNetLastTrade",, "T")/100,"")) -> 0.01337332068 | K165: =IF(A165="","",RTD("cqg.rtd", ,"ContractData", C165, "T_CVol",, "T")) -> 300637.585 | L165: 165 | M165: =IFERROR(RANK($J165,INDIRECT(("$J$"&"1"&":$J$"&$A$449)))+COUNTIF($J$1:J165,J165)-1,"") -> 111 | N165: S.US.FDX | O165: S.US.LYV
A166: =IF(Symbols!A166="","",Symbols!A166) -> S.US.FDXF | B166: 1 | C166: S.US.FDXF | D166: =IF(A166="","",RTD("cqg.rtd", ,"ContractData",C166, "LongDescription",, "T")) -> FedEx Freight Holding Company, Inc. | H166: =IF(A166="","",RTD("cqg.rtd", ,"ContractData",C166, "LastTradeToday",, "T")) -> 144.49 | I166: =IF(A166="","",RTD("cqg.rtd", ,"ContractData",C166, "NetLastTradeToday",, "T")) -> 3.25 | J166: =IF(A166="","",IFERROR(RTD("cqg.rtd", ,"ContractData",C166, "PerCentNetLastTrade",, "T")/100,"")) -> 0.02301047862 | K166: =IF(A166="","",RTD("cqg.rtd", ,"ContractData", C166, "T_CVol",, "T")) -> 73653.41978 | L166: 166 | M166: =IFERROR(RANK($J166,INDIRECT(("$J$"&"1"&":$J$"&$A$449)))+COUNTIF($J$1:J166,J166)-1,"") -> 42 | N166: S.US.FDXF | O166: S.US.SOLV
A167: =IF(Symbols!A167="","",Symbols!A167) -> S.US.FE | B167: 1 | C167: S.US.FE | D167: =IF(A167="","",RTD("cqg.rtd", ,"ContractData",C167, "LongDescription",, "T")) -> FirstEnergy Corp | H167: =IF(A167="","",RTD("cqg.rtd", ,"ContractData",C167, "LastTradeToday",, "T")) -> 47.3 | I167: =IF(A167="","",RTD("cqg.rtd", ,"ContractData",C167, "NetLastTradeToday",, "T")) -> 0.29 | J167: =IF(A167="","",IFERROR(RTD("cqg.rtd", ,"ContractData",C167, "PerCentNetLastTrade",, "T")/100,"")) -> 0.006168900234 | K167: =IF(A167="","",RTD("cqg.rtd", ,"ContractData", C167, "T_CVol",, "T")) -> 197380.3953 | L167: 167 | M167: =IFERROR(RANK($J167,INDIRECT(("$J$"&"1"&":$J$"&$A$449)))+COUNTIF($J$1:J167,J167)-1,"") -> 245 | N167: S.US.FE | O167: S.US.MCO
A168: =IF(Symbols!A168="","",Symbols!A168) -> S.US.FERG | B168: 0 | C168: S.US.FERG | D168: =IF(A168="","",RTD("cqg.rtd", ,"ContractData",C168, "LongDescription",, "T")) -> Ferguson plc | H168: =IF(A168="","",RTD("cqg.rtd", ,"ContractData",C168, "LastTradeToday",, "T")) -> 244.3 | I168: =IF(A168="","",RTD("cqg.rtd", ,"ContractData",C168, "NetLastTradeToday",, "T")) -> -0.88 | J168: =IF(A168="","",IFERROR(RTD("cqg.rtd", ,"ContractData",C168, "PerCentNetLastTrade",, "T")/100,"")) -> -0.003589199772 | K168: =IF(A168="","",RTD("cqg.rtd", ,"ContractData", C168, "T_CVol",, "T")) -> 158470.7357 | L168: 168 | M168: =IFERROR(RANK($J168,INDIRECT(("$J$"&"1"&":$J$"&$A$449)))+COUNTIF($J$1:J168,J168)-1,"") -> 378 | N168: S.US.FERG | O168: S.US.CRM
A169: =IF(Symbols!A169="","",Symbols!A169) -> S.US.FFIV | B169: 0 | C169: S.US.FFIV | D169: =IF(A169="","",RTD("cqg.rtd", ,"ContractData",C169, "LongDescription",, "T")) -> F5, INC. COMMON STK | H169: =IF(A169="","",RTD("cqg.rtd", ,"ContractData",C169, "LastTradeToday",, "T")) -> 422.42 | I169: =IF(A169="","",RTD("cqg.rtd", ,"ContractData",C169, "NetLastTradeToday",, "T")) -> -0.53 | J169: =IF(A169="","",IFERROR(RTD("cqg.rtd", ,"ContractData",C169, "PerCentNetLastTrade",, "T")/100,"")) -> -0.001253103204 | K169: =IF(A169="","",RTD("cqg.rtd", ,"ContractData", C169, "T_CVol",, "T")) -> 52304.52052 | L169: 169 | M169: =IFERROR(RANK($J169,INDIRECT(("$J$"&"1"&":$J$"&$A$449)))+COUNTIF($J$1:J169,J169)-1,"") -> 353 | N169: S.US.FFIV | O169: S.US.O
A170: =IF(Symbols!A170="","",Symbols!A170) -> S.US.FICO | B170: 1 | C170: S.US.FICO | D170: =IF(A170="","",RTD("cqg.rtd", ,"ContractData",C170, "LongDescription",, "T")) -> Fair Isaac Inc | H170: =IF(A170="","",RTD("cqg.rtd", ,"ContractData",C170, "LastTradeToday",, "T")) -> 1076.22 | I170: =IF(A170="","",RTD("cqg.rtd", ,"ContractData",C170, "NetLastTradeToday",, "T")) -> 32.01 | J170: =IF(A170="","",IFERROR(RTD("cqg.rtd", ,"ContractData",C170, "PerCentNetLastTrade",, "T")/100,"")) -> 0.03065475335 | K170: =IF(A170="","",RTD("cqg.rtd", ,"ContractData", C170, "T_CVol",, "T")) -> 38502.97217 | L170: 170 | M170: =IFERROR(RANK($J170,INDIRECT(("$J$"&"1"&":$J$"&$A$449)))+COUNTIF($J$1:J170,J170)-1,"") -> 18 | N170: S.US.FICO | O170: S.US.XEL
A171: =IF(Symbols!A171="","",Symbols!A171) -> S.US.FIS | B171: 1 | C171: S.US.FIS | D171: =IF(A171="","",RTD("cqg.rtd", ,"ContractData",C171, "LongDescription",, "T")) -> Fidelity National Info Services | H171: =IF(A171="","",RTD("cqg.rtd", ,"ContractData",C171, "LastTradeToday",, "T")) -> 42.9 | I171: =IF(A171="","",RTD("cqg.rtd", ,"ContractData",C171, "NetLastTradeToday",, "T")) -> 0.98 | J171: =IF(A171="","",IFERROR(RTD("cqg.rtd", ,"ContractData",C171, "PerCentNetLastTrade",, "T")/100,"")) -> 0.0233778626 | K171: =IF(A171="","",RTD("cqg.rtd", ,"ContractData", C171, "T_CVol",, "T")) -> 532867.4145 | L171: 171 | M171: =IFERROR(RANK($J171,INDIRECT(("$J$"&"1"&":$J$"&$A$449)))+COUNTIF($J$1:J171,J171)-1,"") -> 39 | N171: S.US.FIS | O171: S.US.C
A172: =IF(Symbols!A172="","",Symbols!A172) -> S.US.FISV | B172: 1 | C172: S.US.FISV | D172: =IF(A172="","",RTD("cqg.rtd", ,"ContractData",C172, "LongDescription",, "T")) -> FISERV, INC. CMN STK | H172: =IF(A172="","",RTD("cqg.rtd", ,"ContractData",C172, "LastTradeToday",, "T")) -> 53.12 | I172: =IF(A172="","",RTD("cqg.rtd", ,"ContractData",C172, "NetLastTradeToday",, "T")) -> 1.56 | J172: =IF(A172="","",IFERROR(RTD("cqg.rtd", ,"ContractData",C172, "PerCentNetLastTrade",, "T")/100,"")) -> 0.03025601241 | K172: =IF(A172="","",RTD("cqg.rtd", ,"ContractData", C172, "T_CVol",, "T")) -> 1314216.852 | L172: 172 | M172: =IFERROR(RANK($J172,INDIRECT(("$J$"&"1"&":$J$"&$A$449)))+COUNTIF($J$1:J172,J172)-1,"") -> 19 | N172: S.US.FISV | O172: S.US.AIZ
A173: =IF(Symbols!A173="","",Symbols!A173) -> S.US.FITB | B173: 1 | C173: S.US.FITB | D173: =IF(A173="","",RTD("cqg.rtd", ,"ContractData",C173, "LongDescription",, "T")) -> FIFTH THIRD BNCP | H173: =IF(A173="","",RTD("cqg.rtd", ,"ContractData",C173, "LastTradeToday",, "T")) -> 58.35 | I173: =IF(A173="","",RTD("cqg.rtd", ,"ContractData",C173, "NetLastTradeToday",, "T")) -> 0.34 | J173: =IF(A173="","",IFERROR(RTD("cqg.rtd", ,"ContractData",C173, "PerCentNetLastTrade",, "T")/100,"")) -> 0.005861058438 | K173: =IF(A173="","",RTD("cqg.rtd", ,"ContractData", C173, "T_CVol",, "T")) -> 560905.9353 | L173: 173 | M173: =IFERROR(RANK($J173,INDIRECT(("$J$"&"1"&":$J$"&$A$449)))+COUNTIF($J$1:J173,J173)-1,"") -> 254 | N173: S.US.FITB | O173: S.US.KEY
A174: =IF(Symbols!A174="","",Symbols!A174) -> S.US.FOX | B174: 1 | C174: S.US.FOX | D174: =IF(A174="","",RTD("cqg.rtd", ,"ContractData",C174, "LongDescription",, "T")) -> FOX CORP CM B | H174: =IF(A174="","",RTD("cqg.rtd", ,"ContractData",C174, "LastTradeToday",, "T")) -> 57.32 | I174: =IF(A174="","",RTD("cqg.rtd", ,"ContractData",C174, "NetLastTradeToday",, "T")) -> 1.35 | J174: =IF(A174="","",IFERROR(RTD("cqg.rtd", ,"ContractData",C174, "PerCentNetLastTrade",, "T")/100,"")) -> 0.02412006432 | K174: =IF(A174="","",RTD("cqg.rtd", ,"ContractData", C174, "T_CVol",, "T")) -> 80562.43412 | L174: 174 | M174: =IFERROR(RANK($J174,INDIRECT(("$J$"&"1"&":$J$"&$A$449)))+COUNTIF($J$1:J174,J174)-1,"") -> 33 | N174: S.US.FOX | O174: S.US.PLD
A175: =IF(Symbols!A175="","",Symbols!A175) -> S.US.FOXA | B175: 1 | C175: S.US.FOXA | D175: =IF(A175="","",RTD("cqg.rtd", ,"ContractData",C175, "LongDescription",, "T")) -> FOX CORP CM A | H175: =IF(A175="","",RTD("cqg.rtd", ,"ContractData",C175, "LastTradeToday",, "T")) -> 64.55 | I175: =IF(A175="","",RTD("cqg.rtd", ,"ContractData",C175, "NetLastTradeToday",, "T")) -> 1.5 | J175: =IF(A175="","",IFERROR(RTD("cqg.rtd", ,"ContractData",C175, "PerCentNetLastTrade",, "T")/100,"")) -> 0.02379064235 | K175: =IF(A175="","",RTD("cqg.rtd", ,"ContractData", C175, "T_CVol",, "T")) -> 466259.019 | L175: 175 | M175: =IFERROR(RANK($J175,INDIRECT(("$J$"&"1"&":$J$"&$A$449)))+COUNTIF($J$1:J175,J175)-1,"") -> 38 | N175: S.US.FOXA | O175: S.US.GNRC
A176: =IF(Symbols!A176="","",Symbols!A176) -> S.US.FRT | B176: 1 | C176: S.US.FRT | D176: =IF(A176="","",RTD("cqg.rtd", ,"ContractData",C176, "LongDescription",, "T")) -> Federal Realty Invstmt Trst | H176: =IF(A176="","",RTD("cqg.rtd", ,"ContractData",C176, "LastTradeToday",, "T")) -> 118.86 | I176: =IF(A176="","",RTD("cqg.rtd", ,"ContractData",C176, "NetLastTradeToday",, "T")) -> 1.65 | J176: =IF(A176="","",IFERROR(RTD("cqg.rtd", ,"ContractData",C176, "PerCentNetLastTrade",, "T")/100,"")) -> 0.01407729716 | K176: =IF(A176="","",RTD("cqg.rtd", ,"ContractData", C176, "T_CVol",, "T")) -> 43250.23351 | L176: 176 | M176: =IFERROR(RANK($J176,INDIRECT(("$J$"&"1"&":$J$"&$A$449)))+COUNTIF($J$1:J176,J176)-1,"") -> 104 | N176: S.US.FRT | O176: S.US.PFG
A177: =IF(Symbols!A177="","",Symbols!A177) -> S.US.FTNT | B177: 1 | C177: S.US.FTNT | D177: =IF(A177="","",RTD("cqg.rtd", ,"ContractData",C177, "LongDescription",, "T")) -> Fortinet, Inc. | H177: =IF(A177="","",RTD("cqg.rtd", ,"ContractData",C177, "LastTradeToday",, "T")) -> 163.58 | I177: =IF(A177="","",RTD("cqg.rtd", ,"ContractData",C177, "NetLastTradeToday",, "T")) -> 2.74 | J177: =IF(A177="","",IFERROR(RTD("cqg.rtd", ,"ContractData",C177, "PerCentNetLastTrade",, "T")/100,"")) -> 0.01703556329 | K177: =IF(A177="","",RTD("cqg.rtd", ,"ContractData", C177, "T_CVol",, "T")) -> 508013.8717 | L177: 177 | M177: =IFERROR(RANK($J177,INDIRECT(("$J$"&"1"&":$J$"&$A$449)))+COUNTIF($J$1:J177,J177)-1,"") -> 81 | N177: S.US.FTNT | O177: S.US.AAPL
A178: =IF(Symbols!A178="","",Symbols!A178) -> S.US.FTV | B178: 0 | C178: S.US.FTV | D178: =IF(A178="","",RTD("cqg.rtd", ,"ContractData",C178, "LongDescription",, "T")) -> Fortive Corporation | H178: =IF(A178="","",RTD("cqg.rtd", ,"ContractData",C178, "LastTradeToday",, "T")) -> 61.48 | I178: =IF(A178="","",RTD("cqg.rtd", ,"ContractData",C178, "NetLastTradeToday",, "T")) -> -0.06 | J178: =IF(A178="","",IFERROR(RTD("cqg.rtd", ,"ContractData",C178, "PerCentNetLastTrade",, "T")/100,"")) -> -0.0009749756256 | K178: =IF(A178="","",RTD("cqg.rtd", ,"ContractData", C178, "T_CVol",, "T")) -> 210682.9759 | L178: 178 | M178: =IFERROR(RANK($J178,INDIRECT(("$J$"&"1"&":$J$"&$A$449)))+COUNTIF($J$1:J178,J178)-1,"") -> 350 | N178: S.US.FTV | O178: S.US.NVR
A179: =IF(Symbols!A179="","",Symbols!A179) -> S.US.GD | B179: 0 | C179: S.US.GD | D179: =IF(A179="","",RTD("cqg.rtd", ,"ContractData",C179, "LongDescription",, "T")) -> General Dynamics Corp | H179: =IF(A179="","",RTD("cqg.rtd", ,"ContractData",C179, "LastTradeToday",, "T")) -> 392.99 | I179: =IF(A179="","",RTD("cqg.rtd", ,"ContractData",C179, "NetLastTradeToday",, "T")) -> -1.22 | J179: =IF(A179="","",IFERROR(RTD("cqg.rtd", ,"ContractData",C179, "PerCentNetLastTrade",, "T")/100,"")) -> -0.003094797189 | K179: =IF(A179="","",RTD("cqg.rtd", ,"ContractData", C179, "T_CVol",, "T")) -> 62367.39046 | L179: 179 | M179: =IFERROR(RANK($J179,INDIRECT(("$J$"&"1"&":$J$"&$A$449)))+COUNTIF($J$1:J179,J179)-1,"") -> 372 | N179: S.US.GD | O179: S.US.REG
A180: =IF(Symbols!A180="","",Symbols!A180) -> S.US.GDDY | B180: 1 | C180: S.US.GDDY | D180: =IF(A180="","",RTD("cqg.rtd", ,"ContractData",C180, "LongDescription",, "T")) -> GoDaddy Inc. | H180: =IF(A180="","",RTD("cqg.rtd", ,"ContractData",C180, "LastTradeToday",, "T")) -> 93.11 | I180: =IF(A180="","",RTD("cqg.rtd", ,"ContractData",C180, "NetLastTradeToday",, "T")) -> 1.29 | J180: =IF(A180="","",IFERROR(RTD("cqg.rtd", ,"ContractData",C180, "PerCentNetLastTrade",, "T")/100,"")) -> 0.01404922675 | K180: =IF(A180="","",RTD("cqg.rtd", ,"ContractData", C180, "T_CVol",, "T")) -> 148375.9094 | L180: 180 | M180: =IFERROR(RANK($J180,INDIRECT(("$J$"&"1"&":$J$"&$A$449)))+COUNTIF($J$1:J180,J180)-1,"") -> 105 | N180: S.US.GDDY | O180: S.US.MET
A181: =IF(Symbols!A181="","",Symbols!A181) -> S.US.GE | B181: 0 | C181: S.US.GE | D181: =IF(A181="","",RTD("cqg.rtd", ,"ContractData",C181, "LongDescription",, "T")) -> General Electric Co | H181: =IF(A181="","",RTD("cqg.rtd", ,"ContractData",C181, "LastTradeToday",, "T")) -> 362.7 | I181: =IF(A181="","",RTD("cqg.rtd", ,"ContractData",C181, "NetLastTradeToday",, "T")) -> -2.63 | J181: =IF(A181="","",IFERROR(RTD("cqg.rtd", ,"ContractData",C181, "PerCentNetLastTrade",, "T")/100,"")) -> -0.007198970794 | K181: =IF(A181="","",RTD("cqg.rtd", ,"ContractData", C181, "T_CVol",, "T")) -> 385370.4141 | L181: 181 | M181: =IFERROR(RANK($J181,INDIRECT(("$J$"&"1"&":$J$"&$A$449)))+COUNTIF($J$1:J181,J181)-1,"") -> 404 | N181: S.US.GE | O181: S.US.ICE
A182: =IF(Symbols!A182="","",Symbols!A182) -> S.US.GEHC | B182: 1 | C182: S.US.GEHC | D182: =IF(A182="","",RTD("cqg.rtd", ,"ContractData",C182, "LongDescription",, "T")) -> GE HEALTHCARE CM | H182: =IF(A182="","",RTD("cqg.rtd", ,"ContractData",C182, "LastTradeToday",, "T")) -> 73.78 | I182: =IF(A182="","",RTD("cqg.rtd", ,"ContractData",C182, "NetLastTradeToday",, "T")) -> 1.5 | J182: =IF(A182="","",IFERROR(RTD("cqg.rtd", ,"ContractData",C182, "PerCentNetLastTrade",, "T")/100,"")) -> 0.02075262867 | K182: =IF(A182="","",RTD("cqg.rtd", ,"ContractData", C182, "T_CVol",, "T")) -> 404661.2297 | L182: 182 | M182: =IFERROR(RANK($J182,INDIRECT(("$J$"&"1"&":$J$"&$A$449)))+COUNTIF($J$1:J182,J182)-1,"") -> 52 | N182: S.US.GEHC | O182: S.US.IBM
A183: =IF(Symbols!A183="","",Symbols!A183) -> S.US.GEN | B183: 1 | C183: S.US.GEN | D183: =IF(A183="","",RTD("cqg.rtd", ,"ContractData",C183, "LongDescription",, "T")) -> GEN DIGITAL INC. CMN | H183: =IF(A183="","",RTD("cqg.rtd", ,"ContractData",C183, "LastTradeToday",, "T")) -> 29.06 | I183: =IF(A183="","",RTD("cqg.rtd", ,"ContractData",C183, "NetLastTradeToday",, "T")) -> 0.42 | J183: =IF(A183="","",IFERROR(RTD("cqg.rtd", ,"ContractData",C183, "PerCentNetLastTrade",, "T")/100,"")) -> 0.01466480447 | K183: =IF(A183="","",RTD("cqg.rtd", ,"ContractData", C183, "T_CVol",, "T")) -> 452672.4884 | L183: 183 | M183: =IFERROR(RANK($J183,INDIRECT(("$J$"&"1"&":$J$"&$A$449)))+COUNTIF($J$1:J183,J183)-1,"") -> 96 | N183: S.US.GEN | O183: S.US.OMC
A184: =IF(Symbols!A184="","",Symbols!A184) -> S.US.GILD | B184: 1 | C184: S.US.GILD | D184: =IF(A184="","",RTD("cqg.rtd", ,"ContractData",C184, "LongDescription",, "T")) -> GILEAD SCIENCES, INC | H184: =IF(A184="","",RTD("cqg.rtd", ,"ContractData",C184, "LastTradeToday",, "T")) -> 137.41 | I184: =IF(A184="","",RTD("cqg.rtd", ,"ContractData",C184, "NetLastTradeToday",, "T")) -> 1.54 | J184: =IF(A184="","",IFERROR(RTD("cqg.rtd", ,"ContractData",C184, "PerCentNetLastTrade",, "T")/100,"")) -> 0.01133436373 | K184: =IF(A184="","",RTD("cqg.rtd", ,"ContractData", C184, "T_CVol",, "T")) -> 608928.4406 | L184: 184 | M184: =IFERROR(RANK($J184,INDIRECT(("$J$"&"1"&":$J$"&$A$449)))+COUNTIF($J$1:J184,J184)-1,"") -> 149 | N184: S.US.GILD | O184: S.US.CHD
A185: =IF(Symbols!A185="","",Symbols!A185) -> S.US.GIS | B185: 1 | C185: S.US.GIS | D185: =IF(A185="","",RTD("cqg.rtd", ,"ContractData",C185, "LongDescription",, "T")) -> General Mills Inc | H185: =IF(A185="","",RTD("cqg.rtd", ,"ContractData",C185, "LastTradeToday",, "T")) -> 39.01 | I185: =IF(A185="","",RTD("cqg.rtd", ,"ContractData",C185, "NetLastTradeToday",, "T")) -> 0.83 | J185: =IF(A185="","",IFERROR(RTD("cqg.rtd", ,"ContractData",C185, "PerCentNetLastTrade",, "T")/100,"")) -> 0.02173913043 | K185: =IF(A185="","",RTD("cqg.rtd", ,"ContractData", C185, "T_CVol",, "T")) -> 1306123.31 | L185: 185 | M185: =IFERROR(RANK($J185,INDIRECT(("$J$"&"1"&":$J$"&$A$449)))+COUNTIF($J$1:J185,J185)-1,"") -> 46 | N185: S.US.GIS | O185: S.US.CFG
A186: =IF(Symbols!A186="","",Symbols!A186) -> S.US.GL | B186: 1 | C186: S.US.GL | D186: =IF(A186="","",RTD("cqg.rtd", ,"ContractData",C186, "LongDescription",, "T")) -> Globe Life Inc. | H186: =IF(A186="","",RTD("cqg.rtd", ,"ContractData",C186, "LastTradeToday",, "T")) -> 181.02 | I186: =IF(A186="","",RTD("cqg.rtd", ,"ContractData",C186, "NetLastTradeToday",, "T")) -> 3.11 | J186: =IF(A186="","",IFERROR(RTD("cqg.rtd", ,"ContractData",C186, "PerCentNetLastTrade",, "T")/100,"")) -> 0.01748074869 | K186: =IF(A186="","",RTD("cqg.rtd", ,"ContractData", C186, "T_CVol",, "T")) -> 117937.0281 | L186: 186 | M186: =IFERROR(RANK($J186,INDIRECT(("$J$"&"1"&":$J$"&$A$449)))+COUNTIF($J$1:J186,J186)-1,"") -> 78 | N186: S.US.GL | O186: S.US.DUK
A187: =IF(Symbols!A187="","",Symbols!A187) -> S.US.GLW | B187: 0 | C187: S.US.GLW | D187: =IF(A187="","",RTD("cqg.rtd", ,"ContractData",C187, "LongDescription",, "T")) -> Corning Incorporated | H187: =IF(A187="","",RTD("cqg.rtd", ,"ContractData",C187, "LastTradeToday",, "T")) -> 166.57 | I187: =IF(A187="","",RTD("cqg.rtd", ,"ContractData",C187, "NetLastTradeToday",, "T")) -> -0.87 | J187: =IF(A187="","",IFERROR(RTD("cqg.rtd", ,"ContractData",C187, "PerCentNetLastTrade",, "T")/100,"")) -> -0.005195891065 | K187: =IF(A187="","",RTD("cqg.rtd", ,"ContractData", C187, "T_CVol",, "T")) -> 1250272.557 | L187: 187 | M187: =IFERROR(RANK($J187,INDIRECT(("$J$"&"1"&":$J$"&$A$449)))+COUNTIF($J$1:J187,J187)-1,"") -> 390 | N187: S.US.GLW | O187: S.US.NDAQ
A188: =IF(Symbols!A188="","",Symbols!A188) -> S.US.GM | B188: 1 | C188: S.US.GM | D188: =IF(A188="","",RTD("cqg.rtd", ,"ContractData",C188, "LongDescription",, "T")) -> General Motors Company | H188: =IF(A188="","",RTD("cqg.rtd", ,"ContractData",C188, "LastTradeToday",, "T")) -> 87.28 | I188: =IF(A188="","",RTD("cqg.rtd", ,"ContractData",C188, "NetLastTradeToday",, "T")) -> 0.52 | J188: =IF(A188="","",IFERROR(RTD("cqg.rtd", ,"ContractData",C188, "PerCentNetLastTrade",, "T")/100,"")) -> 0.005993545413 | K188: =IF(A188="","",RTD("cqg.rtd", ,"ContractData", C188, "T_CVol",, "T")) -> 532946.7306 | L188: 188 | M188: =IFERROR(RANK($J188,INDIRECT(("$J$"&"1"&":$J$"&$A$449)))+COUNTIF($J$1:J188,J188)-1,"") -> 249 | N188: S.US.GM | O188: S.US.MGM
A189: =IF(Symbols!A189="","",Symbols!A189) -> S.US.GNRC | B189: =IF(A189="","",IF(J189>0,1,0)) -> 1 | C189: =A189 -> S.US.GNRC | D189: =IF(A189="","",RTD("cqg.rtd", ,"ContractData",C189, "LongDescription",, "T")) -> Generac Holdings Inc. | H189: =IF(A189="","",RTD("cqg.rtd", ,"ContractData",C189, "LastTradeToday",, "T")) -> 224.01 | I189: =IF(A189="","",RTD("cqg.rtd", ,"ContractData",C189, "NetLastTradeToday",, "T")) -> 2.11 | J189: =IF(A189="","",IFERROR(RTD("cqg.rtd", ,"ContractData",C189, "PerCentNetLastTrade",, "T")/100,"")) -> 0.009508787742 | K189: =IF(A189="","",RTD("cqg.rtd", ,"ContractData", C189, "T_CVol",, "T")) -> 84062.14 | L189: 189 | M189: =IFERROR(RANK($J189,INDIRECT(("$J$"&"1"&":$J$"&$A$449)))+COUNTIF($J$1:J189,J189)-1,"") -> 175 | N189: S.US.GNRC | O189: S.US.MDT
A190: =IF(Symbols!A190="","",Symbols!A190) -> S.US.GPC | B190: 1 | C190: S.US.GPC | D190: =IF(A190="","",RTD("cqg.rtd", ,"ContractData",C190, "LongDescription",, "T")) -> Genuine Parts Company | H190: =IF(A190="","",RTD("cqg.rtd", ,"ContractData",C190, "LastTradeToday",, "T")) -> 134.86 | I190: =IF(A190="","",RTD("cqg.rtd", ,"ContractData",C190, "NetLastTradeToday",, "T")) -> 0.85 | J190: =IF(A190="","",IFERROR(RTD("cqg.rtd", ,"ContractData",C190, "PerCentNetLastTrade",, "T")/100,"")) -> 0.006342810238 | K190: =IF(A190="","",RTD("cqg.rtd", ,"ContractData", C190, "T_CVol",, "T")) -> 90977.6979 | L190: 190 | M190: =IFERROR(RANK($J190,INDIRECT(("$J$"&"1"&":$J$"&$A$449)))+COUNTIF($J$1:J190,J190)-1,"") -> 240 | N190: S.US.GPC | O190: S.US.PG
A191: =IF(Symbols!A191="","",Symbols!A191) -> S.US.GPN | B191: 1 | C191: S.US.GPN | D191: =IF(A191="","",RTD("cqg.rtd", ,"ContractData",C191, "LongDescription",, "T")) -> Global Payments | H191: =IF(A191="","",RTD("cqg.rtd", ,"ContractData",C191, "LastTradeToday",, "T")) -> 90.98 | I191: =IF(A191="","",RTD("cqg.rtd", ,"ContractData",C191, "NetLastTradeToday",, "T")) -> 2.45 | J191: =IF(A191="","",IFERROR(RTD("cqg.rtd", ,"ContractData",C191, "PerCentNetLastTrade",, "T")/100,"")) -> 0.02767423472 | K191: =IF(A191="","",RTD("cqg.rtd", ,"ContractData", C191, "T_CVol",, "T")) -> 373623.5703 | L191: 191 | M191: =IFERROR(RANK($J191,INDIRECT(("$J$"&"1"&":$J$"&$A$449)))+COUNTIF($J$1:J191,J191)-1,"") -> 25 | N191: S.US.GPN | O191: S.US.PNC
A192: =IF(Symbols!A192="","",Symbols!A192) -> S.US.GRMN | B192: 1 | C192: S.US.GRMN | D192: =IF(A192="","",RTD("cqg.rtd", ,"ContractData",C192, "LongDescription",, "T")) -> Garmin Ltd | H192: =IF(A192="","",RTD("cqg.rtd", ,"ContractData",C192, "LastTradeToday",, "T")) -> 311.76 | I192: =IF(A192="","",RTD("cqg.rtd", ,"ContractData",C192, "NetLastTradeToday",, "T")) -> 1.78 | J192: =IF(A192="","",IFERROR(RTD("cqg.rtd", ,"ContractData",C192, "PerCentNetLastTrade",, "T")/100,"")) -> 0.005742305955 | K192: =IF(A192="","",RTD("cqg.rtd", ,"ContractData", C192, "T_CVol",, "T")) -> 67205.52886 | L192: 192 | M192: =IFERROR(RANK($J192,INDIRECT(("$J$"&"1"&":$J$"&$A$449)))+COUNTIF($J$1:J192,J192)-1,"") -> 260 | N192: S.US.GRMN | O192: S.US.KIM
A193: =IF(Symbols!A193="","",Symbols!A193) -> S.US.GS | B193: 1 | C193: S.US.GS | D193: =IF(A193="","",RTD("cqg.rtd", ,"ContractData",C193, "LongDescription",, "T")) -> Goldman Sachs Group | H193: =IF(A193="","",RTD("cqg.rtd", ,"ContractData",C193, "LastTradeToday",, "T")) -> 1057.04 | I193: =IF(A193="","",RTD("cqg.rtd", ,"ContractData",C193, "NetLastTradeToday",, "T")) -> 19.83 | J193: =IF(A193="","",IFERROR(RTD("cqg.rtd", ,"ContractData",C193, "PerCentNetLastTrade",, "T")/100,"")) -> 0.01911859701 | K193: =IF(A193="","",RTD("cqg.rtd", ,"ContractData", C193, "T_CVol",, "T")) -> 306343.6803 | L193: 193 | M193: =IFERROR(RANK($J193,INDIRECT(("$J$"&"1"&":$J$"&$A$449)))+COUNTIF($J$1:J193,J193)-1,"") -> 62 | N193: S.US.GS | O193: S.US.FDS
A194: =IF(Symbols!A194="","",Symbols!A194) -> S.US.GWW | B194: 1 | C194: S.US.GWW | D194: =IF(A194="","",RTD("cqg.rtd", ,"ContractData",C194, "LongDescription",, "T")) -> Grainger (WW) Inc | H194: =IF(A194="","",RTD("cqg.rtd", ,"ContractData",C194, "LastTradeToday",, "T")) -> 1308.75 | I194: =IF(A194="","",RTD("cqg.rtd", ,"ContractData",C194, "NetLastTradeToday",, "T")) -> 3.87 | J194: =IF(A194="","",IFERROR(RTD("cqg.rtd", ,"ContractData",C194, "PerCentNetLastTrade",, "T")/100,"")) -> 0.002965789958 | K194: =IF(A194="","",RTD("cqg.rtd", ,"ContractData", C194, "T_CVol",, "T")) -> 17716.76545 | L194: 194 | M194: =IFERROR(RANK($J194,INDIRECT(("$J$"&"1"&":$J$"&$A$449)))+COUNTIF($J$1:J194,J194)-1,"") -> 301 | N194: =C194 -> S.US.GWW | O194: =IFERROR(VLOOKUP($L194,$M$1:$N$437,2,FALSE),"") -> S.US.SRE
A195: =IF(Symbols!A195="","",Symbols!A195) -> S.US.HAL | B195: 0 | C195: S.US.HAL | D195: =IF(A195="","",RTD("cqg.rtd", ,"ContractData",C195, "LongDescription",, "T")) -> Halliburton Company | H195: =IF(A195="","",RTD("cqg.rtd", ,"ContractData",C195, "LastTradeToday",, "T")) -> 32.93 | I195: =IF(A195="","",RTD("cqg.rtd", ,"ContractData",C195, "NetLastTradeToday",, "T")) -> -0.36 | J195: =IF(A195="","",IFERROR(RTD("cqg.rtd", ,"ContractData",C195, "PerCentNetLastTrade",, "T")/100,"")) -> -0.01081405828 | K195: =IF(A195="","",RTD("cqg.rtd", ,"ContractData", C195, "T_CVol",, "T")) -> 1126129.476 | L195: =L194+1 -> 195 | M195: =IFERROR(RANK($J195,INDIRECT(("$J$"&"1"&":$J$"&$A$449)))+COUNTIF($J$1:J195,J195)-1,"") -> 422 | N195: S.US.HAL | O195: S.US.CBOE
A196: =IF(Symbols!A196="","",Symbols!A196) -> S.US.HAS | B196: 1 | C196: S.US.HAS | D196: =IF(A196="","",RTD("cqg.rtd", ,"ContractData",C196, "LongDescription",, "T")) -> Hasbro Inc | H196: =IF(A196="","",RTD("cqg.rtd", ,"ContractData",C196, "LastTradeToday",, "T")) -> 95.49 | I196: =IF(A196="","",RTD("cqg.rtd", ,"ContractData",C196, "NetLastTradeToday",, "T")) -> 0.6 | J196: =IF(A196="","",IFERROR(RTD("cqg.rtd", ,"ContractData",C196, "PerCentNetLastTrade",, "T")/100,"")) -> 0.006323110971 | K196: =IF(A196="","",RTD("cqg.rtd", ,"ContractData", C196, "T_CVol",, "T")) -> 80044.34325 | L196: 196 | M196: =IFERROR(RANK($J196,INDIRECT(("$J$"&"1"&":$J$"&$A$449)))+COUNTIF($J$1:J196,J196)-1,"") -> 242 | N196: S.US.HAS | O196: S.US.ALL
A197: =IF(Symbols!A197="","",Symbols!A197) -> S.US.HBAN | B197: 1 | C197: S.US.HBAN | D197: =IF(A197="","",RTD("cqg.rtd", ,"ContractData",C197, "LongDescription",, "T")) -> HUNTINGTON BCSHS | H197: =IF(A197="","",RTD("cqg.rtd", ,"ContractData",C197, "LastTradeToday",, "T")) -> 18 | I197: =IF(A197="","",RTD("cqg.rtd", ,"ContractData",C197, "NetLastTradeToday",, "T")) -> 0.14 | J197: =IF(A197="","",IFERROR(RTD("cqg.rtd", ,"ContractData",C197, "PerCentNetLastTrade",, "T")/100,"")) -> 0.007838745801 | K197: =IF(A197="","",RTD("cqg.rtd", ,"ContractData", C197, "T_CVol",, "T")) -> 1919679.253 | L197: 197 | M197: =IFERROR(RANK($J197,INDIRECT(("$J$"&"1"&":$J$"&$A$449)))+COUNTIF($J$1:J197,J197)-1,"") -> 212 | N197: S.US.HBAN | O197: S.US.WY
A198: =IF(Symbols!A198="","",Symbols!A198) -> S.US.HD | B198: 1 | C198: S.US.HD | D198: =IF(A198="","",RTD("cqg.rtd", ,"ContractData",C198, "LongDescription",, "T")) -> Home Depot, Inc. | H198: =IF(A198="","",RTD("cqg.rtd", ,"ContractData",C198, "LastTradeToday",, "T")) -> 344.91 | I198: =IF(A198="","",RTD("cqg.rtd", ,"ContractData",C198, "NetLastTradeToday",, "T")) -> 1.48 | J198: =IF(A198="","",IFERROR(RTD("cqg.rtd", ,"ContractData",C198, "PerCentNetLastTrade",, "T")/100,"")) -> 0.004309466267 | K198: =IF(A198="","",RTD("cqg.rtd", ,"ContractData", C198, "T_CVol",, "T")) -> 418924.9704 | L198: 198 | M198: =IFERROR(RANK($J198,INDIRECT(("$J$"&"1"&":$J$"&$A$449)))+COUNTIF($J$1:J198,J198)-1,"") -> 277 | N198: S.US.HD | O198: S.US.PPL
A199: =IF(Symbols!A199="","",Symbols!A199) -> S.US.HIG | B199: 1 | C199: S.US.HIG | D199: =IF(A199="","",RTD("cqg.rtd", ,"ContractData",C199, "LongDescription",, "T")) -> The Hartford Insurance Group, Inc. | H199: =IF(A199="","",RTD("cqg.rtd", ,"ContractData",C199, "LastTradeToday",, "T")) -> 137.96 | I199: =IF(A199="","",RTD("cqg.rtd", ,"ContractData",C199, "NetLastTradeToday",, "T")) -> 0.52 | J199: =IF(A199="","",IFERROR(RTD("cqg.rtd", ,"ContractData",C199, "PerCentNetLastTrade",, "T")/100,"")) -> 0.00378346915 | K199: =IF(A199="","",RTD("cqg.rtd", ,"ContractData", C199, "T_CVol",, "T")) -> 129793.095 | L199: 199 | M199: =IFERROR(RANK($J199,INDIRECT(("$J$"&"1"&":$J$"&$A$449)))+COUNTIF($J$1:J199,J199)-1,"") -> 286 | N199: S.US.HIG | O199: S.US.EXPD
A200: =IF(Symbols!A200="","",Symbols!A200) -> S.US.HII | B200: 1 | C200: S.US.HII | D200: =IF(A200="","",RTD("cqg.rtd", ,"ContractData",C200, "LongDescription",, "T")) -> Huntington Ingalls Industries | H200: =IF(A200="","",RTD("cqg.rtd", ,"ContractData",C200, "LastTradeToday",, "T")) -> 328.26 | I200: =IF(A200="","",RTD("cqg.rtd", ,"ContractData",C200, "NetLastTradeToday",, "T")) -> 1.46 | J200: =IF(A200="","",IFERROR(RTD("cqg.rtd", ,"ContractData",C200, "PerCentNetLastTrade",, "T")/100,"")) -> 0.004467564259 | K200: =IF(A200="","",RTD("cqg.rtd", ,"ContractData", C200, "T_CVol",, "T")) -> 48291.71714 | L200: 200 | M200: =IFERROR(RANK($J200,INDIRECT(("$J$"&"1"&":$J$"&$A$449)))+COUNTIF($J$1:J200,J200)-1,"") -> 276 | N200: S.US.HII | O200: S.US.SW
... 241 more rows

Sheet Symbols
A1: S.US.A | B1: =IF(A1="","",RTD("cqg.rtd", ,"ContractData",A1, "LongDescription",, "T")) -> Agilent Technologies
A2: S.US.AAPL | B2: =IF(A2="","",RTD("cqg.rtd", ,"ContractData",A2, "LongDescription",, "T")) -> APPLE INC.
A3: S.US.ABBV | B3: =IF(A3="","",RTD("cqg.rtd", ,"ContractData",A3, "LongDescription",, "T")) -> AbbVie Inc.
A4: S.US.ABNB | B4: =IF(A4="","",RTD("cqg.rtd", ,"ContractData",A4, "LongDescription",, "T")) -> Airbnb, Inc. Class A
A5: S.US.ABT | B5: =IF(A5="","",RTD("cqg.rtd", ,"ContractData",A5, "LongDescription",, "T")) -> Abbott Laboratories
A6: S.US.ACGL | B6: =IF(A6="","",RTD("cqg.rtd", ,"ContractData",A6, "LongDescription",, "T")) -> Arch Capital Grp Ltd
A7: S.US.ACN | B7: =IF(A7="","",RTD("cqg.rtd", ,"ContractData",A7, "LongDescription",, "T")) -> Accenture PLC Ireland
A8: S.US.ADBE | B8: =IF(A8="","",RTD("cqg.rtd", ,"ContractData",A8, "LongDescription",, "T")) -> Adobe Inc.
A9: S.US.ADI | B9: =IF(A9="","",RTD("cqg.rtd", ,"ContractData",A9, "LongDescription",, "T")) -> Analog Devices Inc
A10: S.US.ADM | B10: =IF(A10="","",RTD("cqg.rtd", ,"ContractData",A10, "LongDescription",, "T")) -> Archer-Daniels-Midland
A11: S.US.ADP | B11: =IF(A11="","",RTD("cqg.rtd", ,"ContractData",A11, "LongDescription",, "T")) -> AUTOMATIC DATA PROCS | D11: Web site link:
A12: S.US.ADSK | B12: =IF(A12="","",RTD("cqg.rtd", ,"ContractData",A12, "LongDescription",, "T")) -> Autodesk Inc | D12: https://www.ishares.com/us/products/239728/ishares-sp-500-value-etf
A13: S.US.AEE | B13: =IF(A13="","",RTD("cqg.rtd", ,"ContractData",A13, "LongDescription",, "T")) -> Ameren Corp
A14: S.US.AEP | B14: =IF(A14="","",RTD("cqg.rtd", ,"ContractData",A14, "LongDescription",, "T")) -> AMER ELC PWR CO CMN
A15: S.US.AES | B15: =IF(A15="","",RTD("cqg.rtd", ,"ContractData",A15, "LongDescription",, "T")) -> AES Corp
A16: S.US.AFL | B16: =IF(A16="","",RTD("cqg.rtd", ,"ContractData",A16, "LongDescription",, "T")) -> AFLAC Inc
A17: S.US.AIG | B17: =IF(A17="","",RTD("cqg.rtd", ,"ContractData",A17, "LongDescription",, "T")) -> American Intl Group Inc
A18: S.US.AIZ | B18: =IF(A18="","",RTD("cqg.rtd", ,"ContractData",A18, "LongDescription",, "T")) -> Assurant Inc | C18: To update the Ticker List:
A19: S.US.AJG | B19: =IF(A19="","",RTD("cqg.rtd", ,"ContractData",A19, "LongDescription",, "T")) -> Arthur J Gallagher Co
A20: S.US.AKAM | B20: =IF(A20="","",RTD("cqg.rtd", ,"ContractData",A20, "LongDescription",, "T")) -> AKAMAI TECHNOLOGIES
A21: S.US.ALB | B21: =IF(A21="","",RTD("cqg.rtd", ,"ContractData",A21, "LongDescription",, "T")) -> Albemarle Corporation | C21: 1) From their Web site download the CSV File.
A22: S.US.ALGN | B22: =IF(A22="","",RTD("cqg.rtd", ,"ContractData",A22, "LongDescription",, "T")) -> Align Technology Inc
A23: S.US.ALL | B23: =IF(A23="","",RTD("cqg.rtd", ,"ContractData",A23, "LongDescription",, "T")) -> Allstate Corporation
A24: S.US.ALLE | B24: =IF(A24="","",RTD("cqg.rtd", ,"ContractData",A24, "LongDescription",, "T")) -> Allegion plc | C24: 2) Copy the Tickers from the file. | G24: Merge "S.US." to the Tickers. ="S.US."&H1
A25: S.US.AMCR | B25: =IF(A25="","",RTD("cqg.rtd", ,"ContractData",A25, "LongDescription",, "T")) -> Amcor PLC
A26: S.US.AME | B26: =IF(A26="","",RTD("cqg.rtd", ,"ContractData",A26, "LongDescription",, "T")) -> Ametek Inc New
A27: S.US.AMGN | B27: =IF(A27="","",RTD("cqg.rtd", ,"ContractData",A27, "LongDescription",, "T")) -> AMGEN | C27: 3) Remove money market fund tickers.
A28: S.US.AMP | B28: =IF(A28="","",RTD("cqg.rtd", ,"ContractData",A28, "LongDescription",, "T")) -> Ameriprise Financial Inc
A29: S.US.AMT | B29: =IF(A29="","",RTD("cqg.rtd", ,"ContractData",A29, "LongDescription",, "T")) -> American Tower Corp ClA
A30: S.US.AMZN | B30: =IF(A30="","",RTD("cqg.rtd", ,"ContractData",A30, "LongDescription",, "T")) -> Amazon.com Inc | C30: 4) Copy and Paste "As Values" the updated Ticker List to column A.
A31: S.US.AON | B31: =IF(A31="","",RTD("cqg.rtd", ,"ContractData",A31, "LongDescription",, "T")) -> AON Corporation
A32: S.US.AOS | B32: =IF(A32="","",RTD("cqg.rtd", ,"ContractData",A32, "LongDescription",, "T")) -> AO Smith Corp
A33: S.US.APA | B33: =IF(A33="","",RTD("cqg.rtd", ,"ContractData",A33, "LongDescription",, "T")) -> APA CORPORATION CMN
A34: S.US.APD | B34: =IF(A34="","",RTD("cqg.rtd", ,"ContractData",A34, "LongDescription",, "T")) -> Air Products & Chems Inc
A35: S.US.APO | B35: =IF(A35="","",RTD("cqg.rtd", ,"ContractData",A35, "LongDescription",, "T")) -> Apollo Global Management, LLC
A36: S.US.APTV | B36: =IF(A36="","",RTD("cqg.rtd", ,"ContractData",A36, "LongDescription",, "T")) -> Aptiv PLC
A37: S.US.ARE | B37: =IF(A37="","",RTD("cqg.rtd", ,"ContractData",A37, "LongDescription",, "T")) -> Alexandria Real Estate Equities Inc
A38: S.US.ARES | B38: =IF(A38="","",RTD("cqg.rtd", ,"ContractData",A38, "LongDescription",, "T")) -> Ares Management, L.P.
A39: S.US.ATO | B39: =IF(A39="","",RTD("cqg.rtd", ,"ContractData",A39, "LongDescription",, "T")) -> Atmos Energy Corp
A40: S.US.AVB | B40: =IF(A40="","",RTD("cqg.rtd", ,"ContractData",A40, "LongDescription",, "T")) -> AvalonBay Communities, Inc.
A41: S.US.AVY | B41: =IF(A41="","",RTD("cqg.rtd", ,"ContractData",A41, "LongDescription",, "T")) -> Avery Dennison Corp
A42: S.US.AWK | B42: =IF(A42="","",RTD("cqg.rtd", ,"ContractData",A42, "LongDescription",, "T")) -> American Water Works
A43: S.US.AXON | B43: =IF(A43="","",RTD("cqg.rtd", ,"ContractData",A43, "LongDescription",, "T")) -> AXON ENTERPRISE, INC
A44: S.US.AXP | B44: =IF(A44="","",RTD("cqg.rtd", ,"ContractData",A44, "LongDescription",, "T")) -> American Express Co
A45: S.US.AZO | B45: =IF(A45="","",RTD("cqg.rtd", ,"ContractData",A45, "LongDescription",, "T")) -> Autozone Inc
A46: S.US.BA | B46: =IF(A46="","",RTD("cqg.rtd", ,"ContractData",A46, "LongDescription",, "T")) -> Boeing Company
A47: S.US.BAC | B47: =IF(A47="","",RTD("cqg.rtd", ,"ContractData",A47, "LongDescription",, "T")) -> Bank of America Corp
A48: S.US.BALL | B48: =IF(A48="","",RTD("cqg.rtd", ,"ContractData",A48, "LongDescription",, "T")) -> Ball Corp
A49: S.US.BAX | B49: =IF(A49="","",RTD("cqg.rtd", ,"ContractData",A49, "LongDescription",, "T")) -> Baxter International Inc
A50: S.US.BBY | B50: =IF(A50="","",RTD("cqg.rtd", ,"ContractData",A50, "LongDescription",, "T")) -> Best Buy Co Inc
A51: S.US.BDX | B51: =IF(A51="","",RTD("cqg.rtd", ,"ContractData",A51, "LongDescription",, "T")) -> Becton Dickinson & Co
A52: S.US.BEN | B52: =IF(A52="","",RTD("cqg.rtd", ,"ContractData",A52, "LongDescription",, "T")) -> Franklin Resources Inc
A53: S.US.BFB | B53: =IF(A53="","",RTD("cqg.rtd", ,"ContractData",A53, "LongDescription",, "T")) -> Brown-Forman Corporation ClsB
A54: S.US.BG | B54: =IF(A54="","",RTD("cqg.rtd", ,"ContractData",A54, "LongDescription",, "T")) -> Bunge Limited
A55: S.US.BIIB | B55: =IF(A55="","",RTD("cqg.rtd", ,"ContractData",A55, "LongDescription",, "T")) -> BIOGEN INC CMN
A56: S.US.BKR | B56: =IF(A56="","",RTD("cqg.rtd", ,"ContractData",A56, "LongDescription",, "T")) -> BAKER HUGHES CO
A57: S.US.BLDR | B57: =IF(A57="","",RTD("cqg.rtd", ,"ContractData",A57, "LongDescription",, "T")) -> Builders FirstSource Inc
A58: S.US.BLK | B58: =IF(A58="","",RTD("cqg.rtd", ,"ContractData",A58, "LongDescription",, "T")) -> BlackRock, Inc.
A59: S.US.BMY | B59: =IF(A59="","",RTD("cqg.rtd", ,"ContractData",A59, "LongDescription",, "T")) -> Bristol-Myers Squibb Co
A60: S.US.BNY | B60: =IF(A60="","",RTD("cqg.rtd", ,"ContractData",A60, "LongDescription",, "T")) -> Bank of New York Co Inc
A61: S.US.BR | B61: =IF(A61="","",RTD("cqg.rtd", ,"ContractData",A61, "LongDescription",, "T")) -> Broadridge Financial Solutions
A62: S.US.BRO | B62: =IF(A62="","",RTD("cqg.rtd", ,"ContractData",A62, "LongDescription",, "T")) -> BROWN AND BROWN INC
A63: S.US.BSX | B63: =IF(A63="","",RTD("cqg.rtd", ,"ContractData",A63, "LongDescription",, "T")) -> Boston Scientific Corp
A64: S.US.BX | B64: =IF(A64="","",RTD("cqg.rtd", ,"ContractData",A64, "LongDescription",, "T")) -> Blackstone Inc.
A65: S.US.BXP | B65: =IF(A65="","",RTD("cqg.rtd", ,"ContractData",A65, "LongDescription",, "T")) -> BXP, Inc.
A66: S.US.C | B66: =IF(A66="","",RTD("cqg.rtd", ,"ContractData",A66, "LongDescription",, "T")) -> Citigroup Inc
A67: S.US.CAH | B67: =IF(A67="","",RTD("cqg.rtd", ,"ContractData",A67, "LongDescription",, "T")) -> Cardinal Health Inc
A68: S.US.CARR | B68: =IF(A68="","",RTD("cqg.rtd", ,"ContractData",A68, "LongDescription",, "T")) -> Carrier Global Corporation
A69: S.US.CB | B69: =IF(A69="","",RTD("cqg.rtd", ,"ContractData",A69, "LongDescription",, "T")) -> Chubb Limited
A70: S.US.CBOE | B70: =IF(A70="","",RTD("cqg.rtd", ,"ContractData",A70, "LongDescription",, "T")) -> Cboe Global Markets, Inc.
A71: S.US.CBRE | B71: =IF(A71="","",RTD("cqg.rtd", ,"ContractData",A71, "LongDescription",, "T")) -> CBRE Group, Inc.
A72: S.US.CCI | B72: =IF(A72="","",RTD("cqg.rtd", ,"ContractData",A72, "LongDescription",, "T")) -> Crown Castle Intl
A73: S.US.CDNS | B73: =IF(A73="","",RTD("cqg.rtd", ,"ContractData",A73, "LongDescription",, "T")) -> CADENCE DESIGN SYS
A74: S.US.CDW | B74: =IF(A74="","",RTD("cqg.rtd", ,"ContractData",A74, "LongDescription",, "T")) -> CDW Corporation
A75: S.US.CEG | B75: =IF(A75="","",RTD("cqg.rtd", ,"ContractData",A75, "LongDescription",, "T")) -> CONSTELLATION EN CM
A76: S.US.CF | B76: =IF(A76="","",RTD("cqg.rtd", ,"ContractData",A76, "LongDescription",, "T")) -> CF Industries Holdings, Inc
A77: S.US.CFG | B77: =IF(A77="","",RTD("cqg.rtd", ,"ContractData",A77, "LongDescription",, "T")) -> Citizens Financial Group, Inc.
A78: S.US.CHD | B78: =IF(A78="","",RTD("cqg.rtd", ,"ContractData",A78, "LongDescription",, "T")) -> Church/Dwight Co Inc
A79: S.US.CHRW | B79: =IF(A79="","",RTD("cqg.rtd", ,"ContractData",A79, "LongDescription",, "T")) -> C.H. ROBINSON WW
A80: S.US.CHTR | B80: =IF(A80="","",RTD("cqg.rtd", ,"ContractData",A80, "LongDescription",, "T")) -> CHARTER COMMUNICATIO
A81: S.US.CI | B81: =IF(A81="","",RTD("cqg.rtd", ,"ContractData",A81, "LongDescription",, "T")) -> The Cigna Group
A82: S.US.CINF | B82: =IF(A82="","",RTD("cqg.rtd", ,"ContractData",A82, "LongDescription",, "T")) -> CINCINNATI FINANCIAL
A83: S.US.CL | B83: =IF(A83="","",RTD("cqg.rtd", ,"ContractData",A83, "LongDescription",, "T")) -> Colgate-Palmolive Co
A84: S.US.CLX | B84: =IF(A84="","",RTD("cqg.rtd", ,"ContractData",A84, "LongDescription",, "T")) -> Clorox Company
A85: S.US.CMCSA | B85: =IF(A85="","",RTD("cqg.rtd", ,"ContractData",A85, "LongDescription",, "T")) -> COMCAST CORP A
A86: S.US.CME | B86: =IF(A86="","",RTD("cqg.rtd", ,"ContractData",A86, "LongDescription",, "T")) -> CME GROUP INC
A87: S.US.CMG | B87: =IF(A87="","",RTD("cqg.rtd", ,"ContractData",A87, "LongDescription",, "T")) -> Chipotle Mexican Grill
A88: S.US.CMI | B88: =IF(A88="","",RTD("cqg.rtd", ,"ContractData",A88, "LongDescription",, "T")) -> Cummins Inc
A89: S.US.CMS | B89: =IF(A89="","",RTD("cqg.rtd", ,"ContractData",A89, "LongDescription",, "T")) -> CMS Energy Corporation
A90: S.US.CNC | B90: =IF(A90="","",RTD("cqg.rtd", ,"ContractData",A90, "LongDescription",, "T")) -> Cenetene Corporation
A91: S.US.CNP | B91: =IF(A91="","",RTD("cqg.rtd", ,"ContractData",A91, "LongDescription",, "T")) -> Centerpoint Energy Holding Co.
A92: S.US.COF | B92: =IF(A92="","",RTD("cqg.rtd", ,"ContractData",A92, "LongDescription",, "T")) -> Capital One Financl Corp
A93: S.US.COIN | B93: =IF(A93="","",RTD("cqg.rtd", ,"ContractData",A93, "LongDescription",, "T")) -> COINBASE GLB CL A CM
A94: S.US.COO | B94: =IF(A94="","",RTD("cqg.rtd", ,"ContractData",A94, "LongDescription",, "T")) -> THE COOPER CO INC CM
A95: S.US.COP | B95: =IF(A95="","",RTD("cqg.rtd", ,"ContractData",A95, "LongDescription",, "T")) -> ConocoPhillips
A96: S.US.COR | B96: =IF(A96="","",RTD("cqg.rtd", ,"ContractData",A96, "LongDescription",, "T")) -> Cencora Inc.
A97: S.US.COST | B97: =IF(A97="","",RTD("cqg.rtd", ,"ContractData",A97, "LongDescription",, "T")) -> COSTCO WHOLESALE
A98: S.US.CPAY | B98: =IF(A98="","",RTD("cqg.rtd", ,"ContractData",A98, "LongDescription",, "T")) -> Corpay, Inc.
A99: S.US.CPRT | B99: =IF(A99="","",RTD("cqg.rtd", ,"ContractData",A99, "LongDescription",, "T")) -> COPART, INC.
A100: S.US.CPT | B100: =IF(A100="","",RTD("cqg.rtd", ,"ContractData",A100, "LongDescription",, "T")) -> Camden Property Trust
A101: S.US.CRH | B101: =IF(A101="","",RTD("cqg.rtd", ,"ContractData",A101, "LongDescription",, "T")) -> CRH Public Limited Company
A102: S.US.CRL | B102: =IF(A102="","",RTD("cqg.rtd", ,"ContractData",A102, "LongDescription",, "T")) -> Charles River Labs Hldgs Inc
A103: S.US.CRM | B103: =IF(A103="","",RTD("cqg.rtd", ,"ContractData",A103, "LongDescription",, "T")) -> Salesforce, Inc.
A104: S.US.CSCO | B104: =IF(A104="","",RTD("cqg.rtd", ,"ContractData",A104, "LongDescription",, "T")) -> CISCO SYSTEMS INC.
A105: S.US.CSGP | B105: =IF(A105="","",RTD("cqg.rtd", ,"ContractData",A105, "LongDescription",, "T")) -> COSTAR GROUP INC ##
A106: S.US.CSX | B106: =IF(A106="","",RTD("cqg.rtd", ,"ContractData",A106, "LongDescription",, "T")) -> CSX Corporation
A107: S.US.CTAS | B107: =IF(A107="","",RTD("cqg.rtd", ,"ContractData",A107, "LongDescription",, "T")) -> Cintas Corp
A108: S.US.CTSH | B108: =IF(A108="","",RTD("cqg.rtd", ,"ContractData",A108, "LongDescription",, "T")) -> COGNIZANT TECH SOL
A109: S.US.CTVA | B109: =IF(A109="","",RTD("cqg.rtd", ,"ContractData",A109, "LongDescription",, "T")) -> Corteva Inc
A110: S.US.CVNA | B110: =IF(A110="","",RTD("cqg.rtd", ,"ContractData",A110, "LongDescription",, "T")) -> Carvana Co.
A111: S.US.CVS | B111: =IF(A111="","",RTD("cqg.rtd", ,"ContractData",A111, "LongDescription",, "T")) -> CVS Health Corporation
A112: S.US.CVX | B112: =IF(A112="","",RTD("cqg.rtd", ,"ContractData",A112, "LongDescription",, "T")) -> Chevron Corp
A113: S.US.D | B113: =IF(A113="","",RTD("cqg.rtd", ,"ContractData",A113, "LongDescription",, "T")) -> Dominion Energy, Inc.
A114: S.US.DAL | B114: =IF(A114="","",RTD("cqg.rtd", ,"ContractData",A114, "LongDescription",, "T")) -> Delta Airlines, Inc.
A115: S.US.DD | B115: =IF(A115="","",RTD("cqg.rtd", ,"ContractData",A115, "LongDescription",, "T")) -> E.I. du Pont de Nemours and Co. (DuPont)
A116: S.US.DE | B116: =IF(A116="","",RTD("cqg.rtd", ,"ContractData",A116, "LongDescription",, "T")) -> Deere & Company
A117: S.US.DECK | B117: =IF(A117="","",RTD("cqg.rtd", ,"ContractData",A117, "LongDescription",, "T")) -> Deckers Outdoor Corp
A118: S.US.DELL | B118: =IF(A118="","",RTD("cqg.rtd", ,"ContractData",A118, "LongDescription",, "T")) -> Dell Technologies Inc.
A119: S.US.DG | B119: =IF(A119="","",RTD("cqg.rtd", ,"ContractData",A119, "LongDescription",, "T")) -> Dollar General Corporation
A120: S.US.DGX | B120: =IF(A120="","",RTD("cqg.rtd", ,"ContractData",A120, "LongDescription",, "T")) -> Quest Diagnostics Inc
A121: S.US.DHI | B121: =IF(A121="","",RTD("cqg.rtd", ,"ContractData",A121, "LongDescription",, "T")) -> DR Horton Inc
A122: S.US.DHR | B122: =IF(A122="","",RTD("cqg.rtd", ,"ContractData",A122, "LongDescription",, "T")) -> Danaher Corporation
A123: S.US.DIS | B123: =IF(A123="","",RTD("cqg.rtd", ,"ContractData",A123, "LongDescription",, "T")) -> The Walt Disney Company
A124: S.US.DLR | B124: =IF(A124="","",RTD("cqg.rtd", ,"ContractData",A124, "LongDescription",, "T")) -> Digital Realty
A125: S.US.DLTR | B125: =IF(A125="","",RTD("cqg.rtd", ,"ContractData",A125, "LongDescription",, "T")) -> DOLLAR TREE INC
A126: S.US.DOC | B126: =IF(A126="","",RTD("cqg.rtd", ,"ContractData",A126, "LongDescription",, "T")) -> Healthpeak Properties, Inc.
A127: S.US.DOV | B127: =IF(A127="","",RTD("cqg.rtd", ,"ContractData",A127, "LongDescription",, "T")) -> Dover Corporation
A128: S.US.DOW | B128: =IF(A128="","",RTD("cqg.rtd", ,"ContractData",A128, "LongDescription",, "T")) -> Dow Inc.
A129: S.US.DPZ | B129: =IF(A129="","",RTD("cqg.rtd", ,"ContractData",A129, "LongDescription",, "T")) -> DOMINOS PIZZA INC CM
A130: S.US.DRI | B130: =IF(A130="","",RTD("cqg.rtd", ,"ContractData",A130, "LongDescription",, "T")) -> Darden Restaurants Inc
A131: S.US.DTE | B131: =IF(A131="","",RTD("cqg.rtd", ,"ContractData",A131, "LongDescription",, "T")) -> DTE Energy Corp
A132: S.US.DUK | B132: =IF(A132="","",RTD("cqg.rtd", ,"ContractData",A132, "LongDescription",, "T")) -> Duke Energy Corp
A133: S.US.DVA | B133: =IF(A133="","",RTD("cqg.rtd", ,"ContractData",A133, "LongDescription",, "T")) -> DaVita Inc.
A134: S.US.DVN | B134: =IF(A134="","",RTD("cqg.rtd", ,"ContractData",A134, "LongDescription",, "T")) -> Devon Energy Corp
A135: S.US.DXCM | B135: =IF(A135="","",RTD("cqg.rtd", ,"ContractData",A135, "LongDescription",, "T")) -> DEXCOM
A136: S.US.EBAY | B136: =IF(A136="","",RTD("cqg.rtd", ,"ContractData",A136, "LongDescription",, "T")) -> EBAY INC.
A137: S.US.ECL | B137: =IF(A137="","",RTD("cqg.rtd", ,"ContractData",A137, "LongDescription",, "T")) -> Ecolab Inc
A138: S.US.ED | B138: =IF(A138="","",RTD("cqg.rtd", ,"ContractData",A138, "LongDescription",, "T")) -> Consol Edison Hldg Co
A139: S.US.EFX | B139: =IF(A139="","",RTD("cqg.rtd", ,"ContractData",A139, "LongDescription",, "T")) -> Equifax Inc
A140: S.US.EG | B140: =IF(A140="","",RTD("cqg.rtd", ,"ContractData",A140, "LongDescription",, "T")) -> Everest Group, Ltd.
A141: S.US.EIX | B141: =IF(A141="","",RTD("cqg.rtd", ,"ContractData",A141, "LongDescription",, "T")) -> Edison International
A142: S.US.EL | B142: =IF(A142="","",RTD("cqg.rtd", ,"ContractData",A142, "LongDescription",, "T")) -> Estee Lauder Companies
A143: S.US.ELV | B143: =IF(A143="","",RTD("cqg.rtd", ,"ContractData",A143, "LongDescription",, "T")) -> Elevance Health, Inc.
A144: S.US.EMR | B144: =IF(A144="","",RTD("cqg.rtd", ,"ContractData",A144, "LongDescription",, "T")) -> Emerson Electric Co
A145: S.US.EOG | B145: =IF(A145="","",RTD("cqg.rtd", ,"ContractData",A145, "LongDescription",, "T")) -> EOG Resources
A146: S.US.EQIX | B146: =IF(A146="","",RTD("cqg.rtd", ,"ContractData",A146, "LongDescription",, "T")) -> EQUINIX, INC.
A147: S.US.EQR | B147: =IF(A147="","",RTD("cqg.rtd", ,"ContractData",A147, "LongDescription",, "T")) -> Equity Residential Properties Trust
A148: S.US.EQT | B148: =IF(A148="","",RTD("cqg.rtd", ,"ContractData",A148, "LongDescription",, "T")) -> EQT Corp
A149: S.US.ERIE | B149: =IF(A149="","",RTD("cqg.rtd", ,"ContractData",A149, "LongDescription",, "T")) -> Erie Indemnity Co
A150: S.US.ES | B150: =IF(A150="","",RTD("cqg.rtd", ,"ContractData",A150, "LongDescription",, "T")) -> Eversource Energy
A151: S.US.ESS | B151: =IF(A151="","",RTD("cqg.rtd", ,"ContractData",A151, "LongDescription",, "T")) -> Essex Property Trust Inc
A152: S.US.ETN | B152: =IF(A152="","",RTD("cqg.rtd", ,"ContractData",A152, "LongDescription",, "T")) -> Eaton Corporation
A153: S.US.ETR | B153: =IF(A153="","",RTD("cqg.rtd", ,"ContractData",A153, "LongDescription",, "T")) -> Entergy Corporation
A154: S.US.EVRG | B154: =IF(A154="","",RTD("cqg.rtd", ,"ContractData",A154, "LongDescription",, "T")) -> Evergy, Inc.
A155: S.US.EW | B155: =IF(A155="","",RTD("cqg.rtd", ,"ContractData",A155, "LongDescription",, "T")) -> Edwards LifeSciences
A156: S.US.EXC | B156: =IF(A156="","",RTD("cqg.rtd", ,"ContractData",A156, "LongDescription",, "T")) -> EXELON CORP CMN STK
A157: S.US.EXE | B157: =IF(A157="","",RTD("cqg.rtd", ,"ContractData",A157, "LongDescription",, "T")) -> EXPAND ENERGY COR CS
A158: S.US.EXPD | B158: =IF(A158="","",RTD("cqg.rtd", ,"ContractData",A158, "LongDescription",, "T")) -> Expeditors Intl of WA Inc
A159: S.US.EXR | B159: =IF(A159="","",RTD("cqg.rtd", ,"ContractData",A159, "LongDescription",, "T")) -> Extra Space Storage Inc
A160: S.US.F | B160: =IF(A160="","",RTD("cqg.rtd", ,"ContractData",A160, "LongDescription",, "T")) -> Ford Motor Company
A161: S.US.FANG | B161: =IF(A161="","",RTD("cqg.rtd", ,"ContractData",A161, "LongDescription",, "T")) -> DIAMONDBACK ENERGY
A162: S.US.FAST | B162: =IF(A162="","",RTD("cqg.rtd", ,"ContractData",A162, "LongDescription",, "T")) -> Fastenal Co
A163: S.US.FCX | B163: =IF(A163="","",RTD("cqg.rtd", ,"ContractData",A163, "LongDescription",, "T")) -> Freeport-McMoRan Inc.
A164: S.US.FDS | B164: =IF(A164="","",RTD("cqg.rtd", ,"ContractData",A164, "LongDescription",, "T")) -> Factet Research
A165: S.US.FDX | B165: =IF(A165="","",RTD("cqg.rtd", ,"ContractData",A165, "LongDescription",, "T")) -> FedEx Corp
A166: S.US.FDXF | B166: =IF(A166="","",RTD("cqg.rtd", ,"ContractData",A166, "LongDescription",, "T")) -> FedEx Freight Holding Company, Inc.
A167: S.US.FE | B167: =IF(A167="","",RTD("cqg.rtd", ,"ContractData",A167, "LongDescription",, "T")) -> FirstEnergy Corp
A168: S.US.FERG | B168: =IF(A168="","",RTD("cqg.rtd", ,"ContractData",A168, "LongDescription",, "T")) -> Ferguson plc
A169: S.US.FFIV | B169: =IF(A169="","",RTD("cqg.rtd", ,"ContractData",A169, "LongDescription",, "T")) -> F5, INC. COMMON STK
A170: S.US.FICO | B170: =IF(A170="","",RTD("cqg.rtd", ,"ContractData",A170, "LongDescription",, "T")) -> Fair Isaac Inc
A171: S.US.FIS | B171: =IF(A171="","",RTD("cqg.rtd", ,"ContractData",A171, "LongDescription",, "T")) -> Fidelity National Info Services
A172: S.US.FISV | B172: =IF(A172="","",RTD("cqg.rtd", ,"ContractData",A172, "LongDescription",, "T")) -> FISERV, INC. CMN STK
A173: S.US.FITB | B173: =IF(A173="","",RTD("cqg.rtd", ,"ContractData",A173, "LongDescription",, "T")) -> FIFTH THIRD BNCP
A174: S.US.FOX | B174: =IF(A174="","",RTD("cqg.rtd", ,"ContractData",A174, "LongDescription",, "T")) -> FOX CORP CM B
A175: S.US.FOXA | B175: =IF(A175="","",RTD("cqg.rtd", ,"ContractData",A175, "LongDescription",, "T")) -> FOX CORP CM A
A176: S.US.FRT | B176: =IF(A176="","",RTD("cqg.rtd", ,"ContractData",A176, "LongDescription",, "T")) -> Federal Realty Invstmt Trst
A177: S.US.FTNT | B177: =IF(A177="","",RTD("cqg.rtd", ,"ContractData",A177, "LongDescription",, "T")) -> Fortinet, Inc.
A178: S.US.FTV | B178: =IF(A178="","",RTD("cqg.rtd", ,"ContractData",A178, "LongDescription",, "T")) -> Fortive Corporation
A179: S.US.GD | B179: =IF(A179="","",RTD("cqg.rtd", ,"ContractData",A179, "LongDescription",, "T")) -> General Dynamics Corp
A180: S.US.GDDY | B180: =IF(A180="","",RTD("cqg.rtd", ,"ContractData",A180, "LongDescription",, "T")) -> GoDaddy Inc.
A181: S.US.GE | B181: =IF(A181="","",RTD("cqg.rtd", ,"ContractData",A181, "LongDescription",, "T")) -> General Electric Co
A182: S.US.GEHC | B182: =IF(A182="","",RTD("cqg.rtd", ,"ContractData",A182, "LongDescription",, "T")) -> GE HEALTHCARE CM
A183: S.US.GEN | B183: =IF(A183="","",RTD("cqg.rtd", ,"ContractData",A183, "LongDescription",, "T")) -> GEN DIGITAL INC. CMN
A184: S.US.GILD | B184: =IF(A184="","",RTD("cqg.rtd", ,"ContractData",A184, "LongDescription",, "T")) -> GILEAD SCIENCES, INC
A185: S.US.GIS | B185: =IF(A185="","",RTD("cqg.rtd", ,"ContractData",A185, "LongDescription",, "T")) -> General Mills Inc
A186: S.US.GL | B186: =IF(A186="","",RTD("cqg.rtd", ,"ContractData",A186, "LongDescription",, "T")) -> Globe Life Inc.
A187: S.US.GLW | B187: =IF(A187="","",RTD("cqg.rtd", ,"ContractData",A187, "LongDescription",, "T")) -> Corning Incorporated
A188: S.US.GM | B188: =IF(A188="","",RTD("cqg.rtd", ,"ContractData",A188, "LongDescription",, "T")) -> General Motors Company
A189: S.US.GNRC | B189: =IF(A189="","",RTD("cqg.rtd", ,"ContractData",A189, "LongDescription",, "T")) -> Generac Holdings Inc.
A190: S.US.GPC | B190: =IF(A190="","",RTD("cqg.rtd", ,"ContractData",A190, "LongDescription",, "T")) -> Genuine Parts Company
A191: S.US.GPN | B191: =IF(A191="","",RTD("cqg.rtd", ,"ContractData",A191, "LongDescription",, "T")) -> Global Payments
A192: S.US.GRMN | B192: =IF(A192="","",RTD("cqg.rtd", ,"ContractData",A192, "LongDescription",, "T")) -> Garmin Ltd
A193: S.US.GS | B193: =IF(A193="","",RTD("cqg.rtd", ,"ContractData",A193, "LongDescription",, "T")) -> Goldman Sachs Group
A194: S.US.GWW | B194: =IF(A194="","",RTD("cqg.rtd", ,"ContractData",A194, "LongDescription",, "T")) -> Grainger (WW) Inc
A195: S.US.HAL | B195: =IF(A195="","",RTD("cqg.rtd", ,"ContractData",A195, "LongDescription",, "T")) -> Halliburton Company
A196: S.US.HAS | B196: =IF(A196="","",RTD("cqg.rtd", ,"ContractData",A196, "LongDescription",, "T")) -> Hasbro Inc
A197: S.US.HBAN | B197: =IF(A197="","",RTD("cqg.rtd", ,"ContractData",A197, "LongDescription",, "T")) -> HUNTINGTON BCSHS
A198: S.US.HD | B198: =IF(A198="","",RTD("cqg.rtd", ,"ContractData",A198, "LongDescription",, "T")) -> Home Depot, Inc.
A199: S.US.HIG | B199: =IF(A199="","",RTD("cqg.rtd", ,"ContractData",A199, "LongDescription",, "T")) -> The Hartford Insurance Group, Inc.
A200: S.US.HII | B200: =IF(A200="","",RTD("cqg.rtd", ,"ContractData",A200, "LongDescription",, "T")) -> Huntington Ingalls Industries
... 238 more rows
